Department Family,Entity,Date,Expense Type,Expense Area,Supplier,Transaction Number, Amount ,Item Description
BEIS,UKRI - MRC,28/05/2019,Chemicals,Genomics Core Laboratory,"10X Genomics, Inc.",98489619," 20,432.25 ",Chemicals
BEIS,UKRI - MRC,28/05/2019,Research Consumables,Genomics Core Laboratory,"10X Genomics, Inc.",98489619, 505.76 ,Research Consumables
BEIS,UKRI - MRC,28/05/2019,Research Consumables,Genomics Core Laboratory,"10X Genomics, Inc.",98489619,-84.29 ,Research Consumables
BEIS,UKRI - MRC,28/05/2019,Chemicals,Genomics Core Laboratory,"10X Genomics, Inc.",98489619,"-3,405.37 ",Chemicals
BEIS,UKRI - Innovate UK,29/05/2019,Assessor Fees,SBRI,1-10-100.LTD,37237, 800.00 ,Assessor Fees
BEIS,UKRI - Innovate UK,29/05/2019,Assessor Fees,SBRI,1-10-100.LTD,37237, 800.00 ,Assessor Fees
BEIS,UKRI - AHRC,10/05/2019,Catering Contracts,HR,1st Biotech Ltd,98468921," 1,036.80 ",Catering Contracts
BEIS,UKRI - MRC,02/05/2019,Other Clothing,Unspecified,1st Biotech Ltd,98473614, 335.52 ,Other Clothing
BEIS,UKRI - MRC,02/05/2019,Postage & Courier Services,Unspecified,1st Biotech Ltd,98473614, 17.94 ,Postage & Courier Services
BEIS,UKRI - AHRC,10/05/2019,Catering Contracts,HR,1st Biotech Ltd,98468921, 14.95 ,Catering Contracts
BEIS,UKRI - AHRC,10/05/2019,Catering Contracts,HR,1st Biotech Ltd,98468921, 2.99 ,Catering Contracts
BEIS,UKRI - STFC,02/05/2019,T&S UK - Public Transport,ASTEC PP+NP Facilities Design Studies,1st Class Travel UK Ltd,98473721, 144.00 ,T&S UK - Public Transport
BEIS,UKRI - STFC,30/05/2019,VAT Input Tax Control (for UK VAT),Balance Sheet,1st Class Travel UK Ltd,98492660, 142.20 ,VAT Input Tax Control (for UK VAT)
BEIS,UKRI - STFC,30/05/2019,T&S UK - Public Transport,Hartree Indirect,1st Class Travel UK Ltd,98492660, 139.80 ,T&S UK - Public Transport
BEIS,UKRI - STFC,02/05/2019,VAT Input Tax Control (for UK VAT),Balance Sheet,1st Class Travel UK Ltd,98473721, 137.40 ,VAT Input Tax Control (for UK VAT)
BEIS,UKRI - STFC,20/05/2019,T&S UK - Public Transport,ASTEC PP+NP Facilities Design Studies,1st Class Travel UK Ltd,98483506, 136.00 ,T&S UK - Public Transport
BEIS,UKRI - STFC,20/05/2019,T&S UK - Public Transport,ASTEC Overheads,1st Class Travel UK Ltd,98483506, 135.00 ,T&S UK - Public Transport
BEIS,UKRI - STFC,30/05/2019,T&S UK - Public Transport,Hartree Indirect,1st Class Travel UK Ltd,98492660, 128.00 ,T&S UK - Public Transport
BEIS,UKRI - STFC,02/05/2019,T&S UK - Public Transport,TD Nuclear Physics,1st Class Travel UK Ltd,98473721, 123.00 ,T&S UK - Public Transport
BEIS,UKRI - STFC,20/05/2019,T&S UK - Public Transport,ASTEC Overheads,1st Class Travel UK Ltd,98483506, 117.60 ,T&S UK - Public Transport
BEIS,UKRI - STFC,20/05/2019,T&S UK - Public Transport,Business Development - Daresbury,1st Class Travel UK Ltd,98483506, 115.00 ,T&S UK - Public Transport
BEIS,UKRI - STFC,02/05/2019,T&S UK - Public Transport,ASTEC PP+NP Facilities Design Studies,1st Class Travel UK Ltd,98473721, 108.00 ,T&S UK - Public Transport
BEIS,UKRI - STFC,30/05/2019,T&S UK - Public Transport,Business Development - Daresbury,1st Class Travel UK Ltd,98492660, 103.00 ,T&S UK - Public Transport
BEIS,UKRI - STFC,20/05/2019,T&S UK - Public Transport,ASTEC Overheads,1st Class Travel UK Ltd,98483506, 100.00 ,T&S UK - Public Transport
BEIS,UKRI - STFC,30/05/2019,T&S UK - Public Transport,Communications - General,1st Class Travel UK Ltd,98492660, 100.00 ,T&S UK - Public Transport
BEIS,UKRI - STFC,20/05/2019,T&S UK - Public Transport,TD Nuclear Physics,1st Class Travel UK Ltd,98483506, 95.00 ,T&S UK - Public Transport
BEIS,UKRI - STFC,02/05/2019,Projects CIP,ESS,1st Class Travel UK Ltd,98473721, 90.00 ,Projects CIP
BEIS,UKRI - STFC,02/05/2019,T&S UK - Public Transport,TD Nuclear Physics,1st Class Travel UK Ltd,98473721, 90.00 ,T&S UK - Public Transport
BEIS,UKRI - STFC,30/05/2019,Projects CIP,ESS,1st Class Travel UK Ltd,98492660, 90.00 ,Projects CIP
BEIS,UKRI - STFC,30/05/2019,T&S UK - Public Transport,Communications - General,1st Class Travel UK Ltd,98492660, 90.00 ,T&S UK - Public Transport
BEIS,UKRI - STFC,30/05/2019,Projects CIP,ESS,1st Class Travel UK Ltd,98492660, 88.00 ,Projects CIP
BEIS,UKRI - STFC,02/05/2019,T&S UK - Public Transport,ASTEC PP+NP Facilities Design Studies,1st Class Travel UK Ltd,98473721, 85.00 ,T&S UK - Public Transport
BEIS,UKRI - STFC,20/05/2019,T&S UK - Public Transport,ASTEC PP+NP Facilities Design Studies,1st Class Travel UK Ltd,98483506, 85.00 ,T&S UK - Public Transport
BEIS,UKRI - STFC,30/05/2019,T&S UK - Public Transport,ASTEC High Brightness Experiments,1st Class Travel UK Ltd,98492660, 85.00 ,T&S UK - Public Transport
BEIS,UKRI - STFC,20/05/2019,T&S UK - Public Transport,ASTEC Overheads,1st Class Travel UK Ltd,98483506, 83.00 ,T&S UK - Public Transport
BEIS,UKRI - STFC,30/05/2019,T&S UK - Public Transport,ASTEC High Brightness Experiments,1st Class Travel UK Ltd,98492660, 83.00 ,T&S UK - Public Transport
BEIS,UKRI - STFC,02/05/2019,Projects CIP,ESS,1st Class Travel UK Ltd,98473721, 80.00 ,Projects CIP
BEIS,UKRI - STFC,02/05/2019,T&S UK - Public Transport,ASTEC PP+NP Facilities Design Studies,1st Class Travel UK Ltd,98473721, 80.00 ,T&S UK - Public Transport
BEIS,UKRI - STFC,30/05/2019,T&S UK - Public Transport,ASTEC Overheads,1st Class Travel UK Ltd,98492660, 80.00 ,T&S UK - Public Transport
BEIS,UKRI - STFC,30/05/2019,T&S UK - Public Transport,SCD Overheads,1st Class Travel UK Ltd,98492660, 80.00 ,T&S UK - Public Transport
BEIS,UKRI - STFC,02/05/2019,Projects CIP,ESS,1st Class Travel UK Ltd,98473721, 78.00 ,Projects CIP
BEIS,UKRI - STFC,20/05/2019,T&S UK - Public Transport,ASTEC PP+NP Facilities Design Studies,1st Class Travel UK Ltd,98483506, 78.00 ,T&S UK - Public Transport
BEIS,UKRI - STFC,30/05/2019,T&S UK - Public Transport,ASTEC Overheads,1st Class Travel UK Ltd,98492660, 78.00 ,T&S UK - Public Transport
BEIS,UKRI - STFC,30/05/2019,T&S UK - Public Transport,SCD Overheads,1st Class Travel UK Ltd,98492660, 76.60 ,T&S UK - Public Transport
BEIS,UKRI - STFC,02/05/2019,Projects CIP,ESS,1st Class Travel UK Ltd,98473721, 75.00 ,Projects CIP
BEIS,UKRI - STFC,02/05/2019,T&S UK - Public Transport,ASTEC PP+NP Facilities Design Studies,1st Class Travel UK Ltd,98473721, 75.00 ,T&S UK - Public Transport
BEIS,UKRI - STFC,30/05/2019,Projects CIP,ESS,1st Class Travel UK Ltd,98492660, 75.00 ,Projects CIP
BEIS,UKRI - STFC,20/05/2019,Projects CIP,ESS,1st Class Travel UK Ltd,98483506, 73.00 ,Projects CIP
BEIS,UKRI - STFC,30/05/2019,Projects CIP,ESS,1st Class Travel UK Ltd,98492660, 73.00 ,Projects CIP
BEIS,UKRI - STFC,30/05/2019,Projects CIP,ESS,1st Class Travel UK Ltd,98492660, 73.00 ,Projects CIP
BEIS,UKRI - STFC,20/05/2019,T&S UK - Public Transport,Campus Incubators,1st Class Travel UK Ltd,98483506, 70.00 ,T&S UK - Public Transport
BEIS,UKRI - STFC,30/05/2019,Projects CIP,ESS,1st Class Travel UK Ltd,98492660, 70.00 ,Projects CIP
BEIS,UKRI - STFC,30/05/2019,T&S UK - Public Transport,Business Development - Daresbury,1st Class Travel UK Ltd,98492660, 70.00 ,T&S UK - Public Transport
BEIS,UKRI - STFC,30/05/2019,T&S UK - Public Transport,Campus Incubators,1st Class Travel UK Ltd,98492660, 70.00 ,T&S UK - Public Transport
BEIS,UKRI - STFC,30/05/2019,T&S UK - Public Transport,Hartree Indirect,1st Class Travel UK Ltd,98492660, 70.00 ,T&S UK - Public Transport
BEIS,UKRI - STFC,02/05/2019,Projects CIP,ESS,1st Class Travel UK Ltd,98473721, 68.00 ,Projects CIP
BEIS,UKRI - STFC,30/05/2019,Projects CIP,ESS,1st Class Travel UK Ltd,98492660, 68.00 ,Projects CIP
BEIS,UKRI - STFC,30/05/2019,T&S UK - Public Transport,ASTEC High Brightness Experiments,1st Class Travel UK Ltd,98492660, 68.00 ,T&S UK - Public Transport
BEIS,UKRI - STFC,20/05/2019,T&S UK - Public Transport,ASTEC PP+NP Facilities Design Studies,1st Class Travel UK Ltd,98483506, 66.30 ,T&S UK - Public Transport
BEIS,UKRI - STFC,02/05/2019,T&S UK - Public Transport,ASTEC PP+NP Facilities Design Studies,1st Class Travel UK Ltd,98473721, 65.00 ,T&S UK - Public Transport
BEIS,UKRI - STFC,02/05/2019,T&S UK - Public Transport,Campus Incubators,1st Class Travel UK Ltd,98473721, 65.00 ,T&S UK - Public Transport
BEIS,UKRI - STFC,02/05/2019,T&S UK - Public Transport,SCD EPSRC SLA,1st Class Travel UK Ltd,98473721, 65.00 ,T&S UK - Public Transport
BEIS,UKRI - STFC,20/05/2019,T&S UK - Public Transport,ASTEC Overheads,1st Class Travel UK Ltd,98483506, 65.00 ,T&S UK - Public Transport
BEIS,UKRI - STFC,30/05/2019,T&S UK - Public Transport,ASTEC High Brightness Experiments,1st Class Travel UK Ltd,98492660, 65.00 ,T&S UK - Public Transport
BEIS,UKRI - STFC,30/05/2019,T&S UK - Public Transport,Hartree Indirect,1st Class Travel UK Ltd,98492660, 65.00 ,T&S UK - Public Transport
BEIS,UKRI - STFC,02/05/2019,T&S UK - Public Transport,SCD EPSRC SLA,1st Class Travel UK Ltd,98473721, 63.00 ,T&S UK - Public Transport
BEIS,UKRI - STFC,20/05/2019,T&S UK - Public Transport,Hartree Indirect,1st Class Travel UK Ltd,98483506, 63.00 ,T&S UK - Public Transport
BEIS,UKRI - STFC,30/05/2019,T&S UK - Public Transport,ASTEC Overheads,1st Class Travel UK Ltd,98492660, 61.20 ,T&S UK - Public Transport
BEIS,UKRI - STFC,30/05/2019,T&S UK - Public Transport,ASTEC High Brightness Experiments,1st Class Travel UK Ltd,98492660, 60.20 ,T&S UK - Public Transport
BEIS,UKRI - STFC,02/05/2019,Projects CIP,ESS,1st Class Travel UK Ltd,98473721, 60.00 ,Projects CIP
BEIS,UKRI - STFC,02/05/2019,T&S UK - Public Transport,SHE Corporate,1st Class Travel UK Ltd,98473721, 60.00 ,T&S UK - Public Transport
BEIS,UKRI - STFC,20/05/2019,T&S UK - Public Transport,ASTEC Overheads,1st Class Travel UK Ltd,98483506, 60.00 ,T&S UK - Public Transport
BEIS,UKRI - STFC,20/05/2019,T&S UK - Public Transport,SHE Corporate,1st Class Travel UK Ltd,98483506, 60.00 ,T&S UK - Public Transport
BEIS,UKRI - STFC,20/05/2019,T&S UK - Public Transport,SHE Corporate,1st Class Travel UK Ltd,98483506, 60.00 ,T&S UK - Public Transport
BEIS,UKRI - STFC,30/05/2019,T&S UK - Public Transport,Hartree Indirect,1st Class Travel UK Ltd,98492660, 60.00 ,T&S UK - Public Transport
BEIS,UKRI - STFC,30/05/2019,T&S UK - Public Transport,National Labs Public Engagement,1st Class Travel UK Ltd,98492660, 60.00 ,T&S UK - Public Transport
BEIS,UKRI - STFC,30/05/2019,T&S UK - Public Transport,SCD Overheads,1st Class Travel UK Ltd,98492660, 60.00 ,T&S UK - Public Transport
BEIS,UKRI - STFC,30/05/2019,T&S UK - Public Transport,SCD Conferences,1st Class Travel UK Ltd,98492660, 58.80 ,T&S UK - Public Transport
BEIS,UKRI - STFC,20/05/2019,T&S UK - Public Transport,Hartree Indirect,1st Class Travel UK Ltd,98483506, 58.60 ,T&S UK - Public Transport
BEIS,UKRI - STFC,02/05/2019,Projects CIP,ESS,1st Class Travel UK Ltd,98473721, 58.00 ,Projects CIP
BEIS,UKRI - STFC,02/05/2019,Projects CIP,ESS,1st Class Travel UK Ltd,98473721, 58.00 ,Projects CIP
BEIS,UKRI - STFC,02/05/2019,T&S UK - Public Transport,ASTEC PP+NP Facilities Design Studies,1st Class Travel UK Ltd,98473721, 58.00 ,T&S UK - Public Transport
BEIS,UKRI - STFC,30/05/2019,T&S UK - Public Transport,SCD Overheads,1st Class Travel UK Ltd,98492660, 58.00 ,T&S UK - Public Transport
BEIS,UKRI - STFC,30/05/2019,T&S UK - Public Transport,SCD RC Grants,1st Class Travel UK Ltd,98492660, 58.00 ,T&S UK - Public Transport
BEIS,UKRI - STFC,20/05/2019,VAT Input Tax Control (for UK VAT),Balance Sheet,1st Class Travel UK Ltd,98483506, 55.90 ,VAT Input Tax Control (for UK VAT)
BEIS,UKRI - STFC,02/05/2019,T&S UK - Public Transport,ASTEC Overheads,1st Class Travel UK Ltd,98473721, 55.00 ,T&S UK - Public Transport
BEIS,UKRI - STFC,02/05/2019,T&S UK - Public Transport,ASTEC PP+NP Facilities Design Studies,1st Class Travel UK Ltd,98473721, 55.00 ,T&S UK - Public Transport
BEIS,UKRI - STFC,20/05/2019,T&S UK - Public Transport,ASTEC Overheads,1st Class Travel UK Ltd,98483506, 55.00 ,T&S UK - Public Transport
BEIS,UKRI - STFC,20/05/2019,T&S UK - Public Transport,TD Nuclear Physics,1st Class Travel UK Ltd,98483506, 55.00 ,T&S UK - Public Transport
BEIS,UKRI - STFC,30/05/2019,T&S UK - Public Transport,SCD Conferences,1st Class Travel UK Ltd,98492660, 55.00 ,T&S UK - Public Transport
BEIS,UKRI - STFC,02/05/2019,T&S UK - Public Transport,ASTEC Overheads,1st Class Travel UK Ltd,98473721, 53.00 ,T&S UK - Public Transport
BEIS,UKRI - STFC,02/05/2019,T&S UK - Public Transport,DI - Management and Support,1st Class Travel UK Ltd,98473721, 53.00 ,T&S UK - Public Transport
BEIS,UKRI - STFC,30/05/2019,T&S UK - Public Transport,Hartree Indirect,1st Class Travel UK Ltd,98492660, 53.00 ,T&S UK - Public Transport
BEIS,UKRI - STFC,30/05/2019,T&S UK - Public Transport,ASTEC Overheads,1st Class Travel UK Ltd,98492660, 52.00 ,T&S UK - Public Transport
BEIS,UKRI - STFC,30/05/2019,T&S UK - Public Transport,National Labs Public Engagement,1st Class Travel UK Ltd,98492660, 51.60 ,T&S UK - Public Transport
BEIS,UKRI - STFC,02/05/2019,Projects CIP,ESS,1st Class Travel UK Ltd,98473721, 50.00 ,Projects CIP
BEIS,UKRI - STFC,02/05/2019,T&S UK - Public Transport,ASTEC PP+NP Facilities Design Studies,1st Class Travel UK Ltd,98473721, 50.00 ,T&S UK - Public Transport
BEIS,UKRI - STFC,02/05/2019,T&S UK - Public Transport,DI - Management and Support,1st Class Travel UK Ltd,98473721, 50.00 ,T&S UK - Public Transport
BEIS,UKRI - STFC,02/05/2019,T&S UK - Public Transport,Hartree Indirect,1st Class Travel UK Ltd,98473721, 50.00 ,T&S UK - Public Transport
BEIS,UKRI - STFC,02/05/2019,T&S UK - Public Transport,Hartree Indirect,1st Class Travel UK Ltd,98473721, 50.00 ,T&S UK - Public Transport
BEIS,UKRI - STFC,02/05/2019,T&S UK - Public Transport,Hartree Indirect,1st Class Travel UK Ltd,98473721, 50.00 ,T&S UK - Public Transport
BEIS,UKRI - STFC,20/05/2019,Projects CIP,ESS,1st Class Travel UK Ltd,98483506, 50.00 ,Projects CIP
BEIS,UKRI - STFC,20/05/2019,T&S UK - Public Transport,Communications - General,1st Class Travel UK Ltd,98483506, 50.00 ,T&S UK - Public Transport
BEIS,UKRI - STFC,20/05/2019,T&S UK - Public Transport,PD Enabling Themes Programme Management,1st Class Travel UK Ltd,98483506, 50.00 ,T&S UK - Public Transport
BEIS,UKRI - STFC,30/05/2019,T&S UK - Public Transport,Campus Incubators,1st Class Travel UK Ltd,98492660, 50.00 ,T&S UK - Public Transport
BEIS,UKRI - STFC,30/05/2019,T&S UK - Public Transport,Hartree Indirect,1st Class Travel UK Ltd,98492660, 50.00 ,T&S UK - Public Transport
BEIS,UKRI - STFC,30/05/2019,T&S UK - Public Transport,SCD Conferences,1st Class Travel UK Ltd,98492660, 50.00 ,T&S UK - Public Transport
BEIS,UKRI - STFC,02/05/2019,T&S UK - Public Transport,ASTEC PP+NP Facilities Design Studies,1st Class Travel UK Ltd,98473721, 48.00 ,T&S UK - Public Transport
BEIS,UKRI - STFC,02/05/2019,T&S UK - Public Transport,ASTEC PP+NP Facilities Design Studies,1st Class Travel UK Ltd,98473721, 48.00 ,T&S UK - Public Transport
BEIS,UKRI - STFC,02/05/2019,T&S UK - Public Transport,ASTEC PP+NP Facilities Design Studies,1st Class Travel UK Ltd,98473721, 48.00 ,T&S UK - Public Transport
BEIS,UKRI - STFC,20/05/2019,Projects CIP,ESS,1st Class Travel UK Ltd,98483506, 48.00 ,Projects CIP
BEIS,UKRI - STFC,20/05/2019,Projects CIP,ESS,1st Class Travel UK Ltd,98483506, 48.00 ,Projects CIP
BEIS,UKRI - STFC,20/05/2019,T&S UK - Public Transport,ASTEC PP+NP Facilities Design Studies,1st Class Travel UK Ltd,98483506, 48.00 ,T&S UK - Public Transport
BEIS,UKRI - STFC,20/05/2019,T&S UK - Public Transport,TD Nuclear Physics,1st Class Travel UK Ltd,98483506, 48.00 ,T&S UK - Public Transport
BEIS,UKRI - STFC,30/05/2019,Projects CIP,ESS,1st Class Travel UK Ltd,98492660, 48.00 ,Projects CIP
BEIS,UKRI - STFC,30/05/2019,Projects CIP,ESS,1st Class Travel UK Ltd,98492660, 48.00 ,Projects CIP
BEIS,UKRI - STFC,30/05/2019,Projects CIP,ESS,1st Class Travel UK Ltd,98492660, 48.00 ,Projects CIP
BEIS,UKRI - STFC,30/05/2019,T&S UK - Public Transport,ASTEC Overheads,1st Class Travel UK Ltd,98492660, 48.00 ,T&S UK - Public Transport
BEIS,UKRI - STFC,30/05/2019,T&S UK - Public Transport,ASTEC Overheads,1st Class Travel UK Ltd,98492660, 48.00 ,T&S UK - Public Transport
BEIS,UKRI - STFC,30/05/2019,T&S UK - Public Transport,Hartree Indirect,1st Class Travel UK Ltd,98492660, 48.00 ,T&S UK - Public Transport
BEIS,UKRI - STFC,30/05/2019,T&S UK - Public Transport,National Labs Public Engagement,1st Class Travel UK Ltd,98492660, 48.00 ,T&S UK - Public Transport
BEIS,UKRI - STFC,30/05/2019,T&S UK - Public Transport,SCD Conferences,1st Class Travel UK Ltd,98492660, 48.00 ,T&S UK - Public Transport
BEIS,UKRI - STFC,30/05/2019,T&S UK - Public Transport,SCD Conferences,1st Class Travel UK Ltd,98492660, 48.00 ,T&S UK - Public Transport
BEIS,UKRI - STFC,30/05/2019,T&S UK - Public Transport,SCD Conferences,1st Class Travel UK Ltd,98492660, 48.00 ,T&S UK - Public Transport
BEIS,UKRI - STFC,02/05/2019,T&S UK - Public Transport,Communications - General,1st Class Travel UK Ltd,98473721, 45.00 ,T&S UK - Public Transport
BEIS,UKRI - STFC,02/05/2019,T&S UK - Public Transport,DI - Management and Support,1st Class Travel UK Ltd,98473721, 45.00 ,T&S UK - Public Transport
BEIS,UKRI - STFC,02/05/2019,T&S UK - Public Transport,Innovations Management,1st Class Travel UK Ltd,98473721, 45.00 ,T&S UK - Public Transport
BEIS,UKRI - STFC,02/05/2019,T&S UK - Public Transport,Innovations Management,1st Class Travel UK Ltd,98473721, 45.00 ,T&S UK - Public Transport
BEIS,UKRI - STFC,20/05/2019,T&S UK - Public Transport,Communications - General,1st Class Travel UK Ltd,98483506, 45.00 ,T&S UK - Public Transport
BEIS,UKRI - STFC,30/05/2019,T&S UK - Public Transport,Director (S P and C),1st Class Travel UK Ltd,98492660, 45.00 ,T&S UK - Public Transport
BEIS,UKRI - STFC,30/05/2019,T&S UK - Public Transport,Finance - Administration,1st Class Travel UK Ltd,98492660, 45.00 ,T&S UK - Public Transport
BEIS,UKRI - STFC,30/05/2019,T&S UK - Public Transport,Finance - Administration,1st Class Travel UK Ltd,98492660, 45.00 ,T&S UK - Public Transport
BEIS,UKRI - STFC,30/05/2019,T&S UK - Public Transport,Hartree Indirect,1st Class Travel UK Ltd,98492660, 45.00 ,T&S UK - Public Transport
BEIS,UKRI - STFC,30/05/2019,T&S UK - Public Transport,National Laboratories Core (Programme),1st Class Travel UK Ltd,98492660, 45.00 ,T&S UK - Public Transport
BEIS,UKRI - STFC,02/05/2019,T&S UK - Public Transport,TD Nuclear Physics,1st Class Travel UK Ltd,98473721, 42.60 ,T&S UK - Public Transport
BEIS,UKRI - STFC,02/05/2019,T&S UK - Public Transport,Business Support and Helpdesk,1st Class Travel UK Ltd,98473721, 40.00 ,T&S UK - Public Transport
BEIS,UKRI - STFC,02/05/2019,T&S UK - Public Transport,DI - Management and Support,1st Class Travel UK Ltd,98473721, 40.00 ,T&S UK - Public Transport
BEIS,UKRI - STFC,02/05/2019,T&S UK - Public Transport,DI - Management and Support,1st Class Travel UK Ltd,98473721, 40.00 ,T&S UK - Public Transport
BEIS,UKRI - STFC,02/05/2019,T&S UK - Public Transport,DI - Management and Support,1st Class Travel UK Ltd,98473721, 40.00 ,T&S UK - Public Transport
BEIS,UKRI - STFC,02/05/2019,T&S UK - Public Transport,SCD Overheads,1st Class Travel UK Ltd,98473721, 40.00 ,T&S UK - Public Transport
BEIS,UKRI - STFC,20/05/2019,T&S UK - Public Transport,ASTEC Overheads,1st Class Travel UK Ltd,98483506, 40.00 ,T&S UK - Public Transport
BEIS,UKRI - STFC,20/05/2019,T&S UK - Public Transport,B and I Directorate Costs (Programme),1st Class Travel UK Ltd,98483506, 40.00 ,T&S UK - Public Transport
BEIS,UKRI - STFC,20/05/2019,T&S UK - Public Transport,Business Support and Helpdesk,1st Class Travel UK Ltd,98483506, 40.00 ,T&S UK - Public Transport
BEIS,UKRI - STFC,20/05/2019,T&S UK - Public Transport,Business Support and Helpdesk,1st Class Travel UK Ltd,98483506, 40.00 ,T&S UK - Public Transport
BEIS,UKRI - STFC,20/05/2019,T&S UK - Public Transport,DI - Management and Support,1st Class Travel UK Ltd,98483506, 40.00 ,T&S UK - Public Transport
BEIS,UKRI - STFC,30/05/2019,T&S UK - Public Transport,DI - Management and Support,1st Class Travel UK Ltd,98492660, 40.00 ,T&S UK - Public Transport
BEIS,UKRI - STFC,30/05/2019,T&S UK - Public Transport,DI - Management and Support,1st Class Travel UK Ltd,98492660, 40.00 ,T&S UK - Public Transport
BEIS,UKRI - STFC,30/05/2019,T&S UK - Public Transport,National Labs Public Engagement,1st Class Travel UK Ltd,98492660, 40.00 ,T&S UK - Public Transport
BEIS,UKRI - STFC,30/05/2019,T&S UK - Public Transport,National Labs Public Engagement,1st Class Travel UK Ltd,98492660, 40.00 ,T&S UK - Public Transport
BEIS,UKRI - STFC,30/05/2019,T&S UK - Public Transport,SCD Overheads,1st Class Travel UK Ltd,98492660, 40.00 ,T&S UK - Public Transport
BEIS,UKRI - STFC,30/05/2019,T&S UK - Public Transport,SCD Overheads,1st Class Travel UK Ltd,98492660, 40.00 ,T&S UK - Public Transport
BEIS,UKRI - STFC,30/05/2019,T&S UK - Public Transport,SCD Overheads,1st Class Travel UK Ltd,98492660, 40.00 ,T&S UK - Public Transport
BEIS,UKRI - STFC,30/05/2019,T&S UK - Public Transport,SCD Overheads,1st Class Travel UK Ltd,98492660, 40.00 ,T&S UK - Public Transport
BEIS,UKRI - STFC,20/05/2019,T&S UK - Public Transport,TD Nuclear Physics,1st Class Travel UK Ltd,98483506, 39.60 ,T&S UK - Public Transport
BEIS,UKRI - STFC,02/05/2019,T&S UK - Public Transport,Hartree Indirect,1st Class Travel UK Ltd,98473721, 39.00 ,T&S UK - Public Transport
BEIS,UKRI - STFC,30/05/2019,T&S UK - Public Transport,Communications - General,1st Class Travel UK Ltd,98492660, 38.00 ,T&S UK - Public Transport
BEIS,UKRI - STFC,20/05/2019,T&S UK - Public Transport,B and I Directorate Costs (Programme),1st Class Travel UK Ltd,98483506, 35.00 ,T&S UK - Public Transport
BEIS,UKRI - STFC,20/05/2019,T&S UK - Public Transport,Campus Incubators,1st Class Travel UK Ltd,98483506, 35.00 ,T&S UK - Public Transport
BEIS,UKRI - STFC,20/05/2019,T&S UK - Public Transport,SPC Futures - Programme,1st Class Travel UK Ltd,98483506, 35.00 ,T&S UK - Public Transport
BEIS,UKRI - STFC,30/05/2019,T&S UK - Public Transport,Business Development - Daresbury,1st Class Travel UK Ltd,98492660, 34.60 ,T&S UK - Public Transport
BEIS,UKRI - STFC,02/05/2019,T&S UK - Public Transport,ASTEC Overheads,1st Class Travel UK Ltd,98473721, 33.60 ,T&S UK - Public Transport
BEIS,UKRI - STFC,02/05/2019,Projects CIP,ESS,1st Class Travel UK Ltd,98473721, 30.00 ,Projects CIP
BEIS,UKRI - STFC,02/05/2019,T&S UK - Public Transport,TD Operational Overheads,1st Class Travel UK Ltd,98473721, 30.00 ,T&S UK - Public Transport
BEIS,UKRI - STFC,20/05/2019,T&S UK - Public Transport,ASTEC Overheads,1st Class Travel UK Ltd,98483506, 30.00 ,T&S UK - Public Transport
BEIS,UKRI - STFC,20/05/2019,T&S UK - Public Transport,DI - Sustaining Operations,1st Class Travel UK Ltd,98483506, 30.00 ,T&S UK - Public Transport
BEIS,UKRI - STFC,30/05/2019,T&S UK - Public Transport,Hartree Commercial Engagement,1st Class Travel UK Ltd,98492660, 30.00 ,T&S UK - Public Transport
BEIS,UKRI - STFC,30/05/2019,T&S UK - Public Transport,Hartree Indirect,1st Class Travel UK Ltd,98492660, 30.00 ,T&S UK - Public Transport
BEIS,UKRI - STFC,20/05/2019,T&S UK - Public Transport,Communications - General,1st Class Travel UK Ltd,98483506, 27.00 ,T&S UK - Public Transport
BEIS,UKRI - STFC,02/05/2019,T&S UK - Public Transport,SCD EPSRC SLA,1st Class Travel UK Ltd,98473721, 25.60 ,T&S UK - Public Transport
BEIS,UKRI - STFC,02/05/2019,T&S UK - Public Transport,Business Support and Helpdesk,1st Class Travel UK Ltd,98473721, 25.00 ,T&S UK - Public Transport
BEIS,UKRI - STFC,02/05/2019,T&S UK - Public Transport,DI - Management and Support,1st Class Travel UK Ltd,98473721, 25.00 ,T&S UK - Public Transport
BEIS,UKRI - STFC,02/05/2019,T&S UK - Public Transport,DI - Management and Support,1st Class Travel UK Ltd,98473721, 25.00 ,T&S UK - Public Transport
BEIS,UKRI - STFC,02/05/2019,T&S UK - Public Transport,Hartree Indirect,1st Class Travel UK Ltd,98473721, 25.00 ,T&S UK - Public Transport
BEIS,UKRI - STFC,20/05/2019,T&S UK - Public Transport,Estates Corporate Management,1st Class Travel UK Ltd,98483506, 25.00 ,T&S UK - Public Transport
BEIS,UKRI - STFC,20/05/2019,T&S UK - Public Transport,HR Operations,1st Class Travel UK Ltd,98483506, 25.00 ,T&S UK - Public Transport
BEIS,UKRI - STFC,20/05/2019,T&S UK - Public Transport,Hartree Indirect,1st Class Travel UK Ltd,98483506, 25.00 ,T&S UK - Public Transport
BEIS,UKRI - STFC,20/05/2019,T&S UK - Public Transport,Hartree Indirect,1st Class Travel UK Ltd,98483506, 25.00 ,T&S UK - Public Transport
BEIS,UKRI - STFC,20/05/2019,T&S UK - Public Transport,Hartree Indirect,1st Class Travel UK Ltd,98483506, 25.00 ,T&S UK - Public Transport
BEIS,UKRI - STFC,20/05/2019,T&S UK - Public Transport,Hartree Indirect,1st Class Travel UK Ltd,98483506, 25.00 ,T&S UK - Public Transport
BEIS,UKRI - STFC,20/05/2019,T&S UK - Public Transport,Hartree Indirect,1st Class Travel UK Ltd,98483506, 25.00 ,T&S UK - Public Transport
BEIS,UKRI - STFC,20/05/2019,T&S UK - Public Transport,Hartree Indirect,1st Class Travel UK Ltd,98483506, 25.00 ,T&S UK - Public Transport
BEIS,UKRI - STFC,20/05/2019,T&S UK - Public Transport,SCD Overheads,1st Class Travel UK Ltd,98483506, 25.00 ,T&S UK - Public Transport
BEIS,UKRI - STFC,20/05/2019,T&S UK - Public Transport,SHE Daresbury,1st Class Travel UK Ltd,98483506, 25.00 ,T&S UK - Public Transport
BEIS,UKRI - STFC,30/05/2019,T&S UK - Public Transport,DI - Management and Support,1st Class Travel UK Ltd,98492660, 25.00 ,T&S UK - Public Transport
BEIS,UKRI - STFC,30/05/2019,T&S UK - Public Transport,DI - Management and Support,1st Class Travel UK Ltd,98492660, 25.00 ,T&S UK - Public Transport
BEIS,UKRI - STFC,30/05/2019,T&S UK - Public Transport,DI - Sustaining Operations,1st Class Travel UK Ltd,98492660, 25.00 ,T&S UK - Public Transport
BEIS,UKRI - STFC,30/05/2019,T&S UK - Public Transport,Hartree Indirect,1st Class Travel UK Ltd,98492660, 25.00 ,T&S UK - Public Transport
BEIS,UKRI - STFC,30/05/2019,T&S UK - Public Transport,Hartree Indirect,1st Class Travel UK Ltd,98492660, 25.00 ,T&S UK - Public Transport
BEIS,UKRI - STFC,30/05/2019,T&S UK - Public Transport,National Labs Public Engagement,1st Class Travel UK Ltd,98492660, 25.00 ,T&S UK - Public Transport
BEIS,UKRI - STFC,30/05/2019,T&S UK - Public Transport,National Labs Public Engagement,1st Class Travel UK Ltd,98492660, 25.00 ,T&S UK - Public Transport
BEIS,UKRI - STFC,30/05/2019,T&S UK - Public Transport,SCD Conferences,1st Class Travel UK Ltd,98492660, 25.00 ,T&S UK - Public Transport
BEIS,UKRI - STFC,30/05/2019,T&S UK - Public Transport,SCD Overheads,1st Class Travel UK Ltd,98492660, 25.00 ,T&S UK - Public Transport
BEIS,UKRI - STFC,30/05/2019,T&S UK - Public Transport,SHE Daresbury,1st Class Travel UK Ltd,98492660, 25.00 ,T&S UK - Public Transport
BEIS,UKRI - STFC,20/05/2019,T&S UK - Public Transport,SHE Corporate,1st Class Travel UK Ltd,98483506, 24.00 ,T&S UK - Public Transport
BEIS,UKRI - STFC,30/05/2019,T&S UK - Public Transport,Campus Incubators,1st Class Travel UK Ltd,98492660, 24.00 ,T&S UK - Public Transport
BEIS,UKRI - STFC,20/05/2019,T&S UK - Public Transport,Business Development - Daresbury,1st Class Travel UK Ltd,98483506, 23.00 ,T&S UK - Public Transport
BEIS,UKRI - STFC,20/05/2019,T&S UK - Public Transport,Campus Incubators,1st Class Travel UK Ltd,98483506, 21.00 ,T&S UK - Public Transport
BEIS,UKRI - STFC,02/05/2019,Projects CIP,ESS,1st Class Travel UK Ltd,98473721, 20.00 ,Projects CIP
BEIS,UKRI - STFC,02/05/2019,Projects CIP,ESS,1st Class Travel UK Ltd,98473721, 20.00 ,Projects CIP
BEIS,UKRI - STFC,02/05/2019,T&S UK - Public Transport,ASTEC Overheads,1st Class Travel UK Ltd,98473721, 20.00 ,T&S UK - Public Transport
BEIS,UKRI - STFC,02/05/2019,T&S UK - Public Transport,ASTEC Overheads,1st Class Travel UK Ltd,98473721, 20.00 ,T&S UK - Public Transport
BEIS,UKRI - STFC,02/05/2019,T&S UK - Public Transport,ASTEC Overheads,1st Class Travel UK Ltd,98473721, 20.00 ,T&S UK - Public Transport
BEIS,UKRI - STFC,02/05/2019,T&S UK - Public Transport,Hartree Indirect,1st Class Travel UK Ltd,98473721, 20.00 ,T&S UK - Public Transport
BEIS,UKRI - STFC,20/05/2019,T&S UK - Public Transport,ASTEC Overheads,1st Class Travel UK Ltd,98483506, 20.00 ,T&S UK - Public Transport
BEIS,UKRI - STFC,20/05/2019,T&S UK - Public Transport,ASTEC PP+NP Facilities Design Studies,1st Class Travel UK Ltd,98483506, 20.00 ,T&S UK - Public Transport
BEIS,UKRI - STFC,20/05/2019,T&S UK - Public Transport,Communications - General,1st Class Travel UK Ltd,98483506, 20.00 ,T&S UK - Public Transport
BEIS,UKRI - STFC,20/05/2019,T&S UK - Public Transport,Communications - General,1st Class Travel UK Ltd,98483506, 20.00 ,T&S UK - Public Transport
BEIS,UKRI - STFC,20/05/2019,T&S UK - Public Transport,Hartree Indirect,1st Class Travel UK Ltd,98483506, 20.00 ,T&S UK - Public Transport
BEIS,UKRI - STFC,20/05/2019,T&S UK - Public Transport,Hartree Indirect,1st Class Travel UK Ltd,98483506, 20.00 ,T&S UK - Public Transport
BEIS,UKRI - STFC,20/05/2019,T&S UK - Public Transport,Hartree Indirect,1st Class Travel UK Ltd,98483506, 20.00 ,T&S UK - Public Transport
BEIS,UKRI - STFC,20/05/2019,T&S UK - Public Transport,Hartree Indirect,1st Class Travel UK Ltd,98483506, 20.00 ,T&S UK - Public Transport
BEIS,UKRI - STFC,20/05/2019,T&S UK - Public Transport,SCD Overheads,1st Class Travel UK Ltd,98483506, 20.00 ,T&S UK - Public Transport
BEIS,UKRI - STFC,30/05/2019,T&S UK - Public Transport,DI - Management and Support,1st Class Travel UK Ltd,98492660, 20.00 ,T&S UK - Public Transport
BEIS,UKRI - STFC,30/05/2019,T&S UK - Public Transport,Estates Corporate Management,1st Class Travel UK Ltd,98492660, 20.00 ,T&S UK - Public Transport
BEIS,UKRI - STFC,30/05/2019,T&S UK - Public Transport,Hartree Indirect,1st Class Travel UK Ltd,98492660, 20.00 ,T&S UK - Public Transport
BEIS,UKRI - STFC,30/05/2019,T&S UK - Public Transport,Hartree Indirect,1st Class Travel UK Ltd,98492660, 20.00 ,T&S UK - Public Transport
BEIS,UKRI - STFC,30/05/2019,T&S UK - Public Transport,Hartree Indirect,1st Class Travel UK Ltd,98492660, 20.00 ,T&S UK - Public Transport
BEIS,UKRI - STFC,30/05/2019,T&S UK - Public Transport,Hartree Indirect,1st Class Travel UK Ltd,98492660, 20.00 ,T&S UK - Public Transport
BEIS,UKRI - STFC,30/05/2019,T&S UK - Public Transport,Hartree Indirect,1st Class Travel UK Ltd,98492660, 20.00 ,T&S UK - Public Transport
BEIS,UKRI - STFC,30/05/2019,T&S UK - Public Transport,National Labs Public Engagement,1st Class Travel UK Ltd,98492660, 20.00 ,T&S UK - Public Transport
BEIS,UKRI - STFC,30/05/2019,T&S UK - Public Transport,SCD Conferences,1st Class Travel UK Ltd,98492660, 20.00 ,T&S UK - Public Transport
BEIS,UKRI - STFC,02/05/2019,T&S UK - Public Transport,Innovations Management,1st Class Travel UK Ltd,98473721, 18.00 ,T&S UK - Public Transport
BEIS,UKRI - STFC,30/05/2019,T&S UK - Public Transport,Finance - Administration,1st Class Travel UK Ltd,98492660, 18.00 ,T&S UK - Public Transport
BEIS,UKRI - STFC,20/05/2019,T&S UK - Public Transport,Business Support and Helpdesk,1st Class Travel UK Ltd,98483506, 16.00 ,T&S UK - Public Transport
BEIS,UKRI - STFC,20/05/2019,T&S UK - Public Transport,B and I Directorate Costs (Programme),1st Class Travel UK Ltd,98483506, 15.00 ,T&S UK - Public Transport
BEIS,UKRI - STFC,02/05/2019,T&S UK - Public Transport,Business Support and Helpdesk,1st Class Travel UK Ltd,98473721, 13.00 ,T&S UK - Public Transport
BEIS,UKRI - STFC,02/05/2019,T&S UK - Public Transport,Campus Incubators,1st Class Travel UK Ltd,98473721, 13.00 ,T&S UK - Public Transport
BEIS,UKRI - STFC,20/05/2019,T&S UK - Public Transport,ASTEC PP+NP Facilities Design Studies,1st Class Travel UK Ltd,98483506, 12.50 ,T&S UK - Public Transport
BEIS,UKRI - STFC,20/05/2019,T&S UK - Public Transport,ASTEC PP+NP Facilities Design Studies,1st Class Travel UK Ltd,98483506, 12.50 ,T&S UK - Public Transport
BEIS,UKRI - STFC,02/05/2019,T&S UK - Public Transport,SHE Corporate,1st Class Travel UK Ltd,98473721, 12.00 ,T&S UK - Public Transport
BEIS,UKRI - STFC,30/05/2019,T&S UK - Public Transport,SCD RC Grants,1st Class Travel UK Ltd,98492660, 11.60 ,T&S UK - Public Transport
BEIS,UKRI - STFC,20/05/2019,T&S UK - Public Transport,PD Enabling Themes Programme Management,1st Class Travel UK Ltd,98483506, 10.00 ,T&S UK - Public Transport
BEIS,UKRI - STFC,02/05/2019,T&S UK - Public Transport,Communications - General,1st Class Travel UK Ltd,98473721, 9.00 ,T&S UK - Public Transport
BEIS,UKRI - STFC,20/05/2019,T&S UK - Public Transport,SCD Overheads,1st Class Travel UK Ltd,98483506, 9.00 ,T&S UK - Public Transport
BEIS,UKRI - STFC,30/05/2019,T&S UK - Public Transport,Director (S P and C),1st Class Travel UK Ltd,98492660, 9.00 ,T&S UK - Public Transport
BEIS,UKRI - STFC,30/05/2019,T&S UK - Public Transport,National Laboratories Core (Programme),1st Class Travel UK Ltd,98492660, 9.00 ,T&S UK - Public Transport
BEIS,UKRI - STFC,02/05/2019,T&S UK - Public Transport,SCD Overheads,1st Class Travel UK Ltd,98473721, 8.00 ,T&S UK - Public Transport
BEIS,UKRI - STFC,20/05/2019,T&S UK - Public Transport,DI - Management and Support,1st Class Travel UK Ltd,98483506, 8.00 ,T&S UK - Public Transport
BEIS,UKRI - STFC,20/05/2019,T&S UK - Public Transport,SPC Futures - Programme,1st Class Travel UK Ltd,98483506, 7.00 ,T&S UK - Public Transport
BEIS,UKRI - STFC,02/05/2019,T&S UK - Public Transport,TD Operational Overheads,1st Class Travel UK Ltd,98473721, 6.00 ,T&S UK - Public Transport
BEIS,UKRI - STFC,20/05/2019,T&S UK - Public Transport,DI - Sustaining Operations,1st Class Travel UK Ltd,98483506, 6.00 ,T&S UK - Public Transport
BEIS,UKRI - STFC,20/05/2019,T&S UK - Public Transport,Estates Corporate Management,1st Class Travel UK Ltd,98483506, 5.00 ,T&S UK - Public Transport
BEIS,UKRI - STFC,20/05/2019,T&S UK - Public Transport,HR Operations,1st Class Travel UK Ltd,98483506, 5.00 ,T&S UK - Public Transport
BEIS,UKRI - STFC,20/05/2019,T&S UK - Public Transport,SHE Daresbury,1st Class Travel UK Ltd,98483506, 5.00 ,T&S UK - Public Transport
BEIS,UKRI - STFC,30/05/2019,T&S UK - Public Transport,DI - Sustaining Operations,1st Class Travel UK Ltd,98492660, 5.00 ,T&S UK - Public Transport
BEIS,UKRI - STFC,30/05/2019,T&S UK - Public Transport,SHE Daresbury,1st Class Travel UK Ltd,98492660, 5.00 ,T&S UK - Public Transport
BEIS,UKRI - STFC,30/05/2019,T&S UK - Public Transport,Estates Corporate Management,1st Class Travel UK Ltd,98492660, 4.00 ,T&S UK - Public Transport
BEIS,UKRI - Innovate UK,17/05/2019,Resource grants,Emerging Technologies,2 EXCEL GEO LIMITED,34237," 6,899.00 ",Resource grants
BEIS,UKRI - Innovate UK,01/05/2019,Not Co-Funded Monitoring Officer Fees,Emerging Technologies,2020 Insights LLP,33760," 1,250.59 ",Not Co-Funded Monitoring Officer Fees
BEIS,UKRI - Innovate UK,01/05/2019,Not Co-Funded Monitoring Officer Travel & Subs,Emerging Technologies,2020 Insights LLP,33760," 1,250.59 ",Not Co-Funded Monitoring Officer Travel & Subs
BEIS,UKRI - Innovate UK,01/05/2019,Not Co-Funded Monitoring Officer Travel & Subs,Emerging Technologies,2020 Insights LLP,33760," 1,250.59 ",Not Co-Funded Monitoring Officer Travel & Subs
BEIS,UKRI - Innovate UK,01/05/2019,Not Co-Funded Monitoring Officer Travel & Subs,Emerging Technologies,2020 Insights LLP,33760," 1,250.59 ",Not Co-Funded Monitoring Officer Travel & Subs
BEIS,UKRI - Innovate UK,01/05/2019,Not Co-Funded Monitoring Officer Fees,Resp - Smart,2020 Insights LLP,32746, 932.60 ,Not Co-Funded Monitoring Officer Fees
BEIS,UKRI - Innovate UK,01/05/2019,Not Co-Funded Monitoring Officer Travel & Subs,Resp - Smart,2020 Insights LLP,32746, 932.60 ,Not Co-Funded Monitoring Officer Travel & Subs
BEIS,UKRI - Innovate UK,01/05/2019,Not Co-Funded Monitoring Officer Travel & Subs,Resp - Smart,2020 Insights LLP,32746, 932.60 ,Not Co-Funded Monitoring Officer Travel & Subs
BEIS,UKRI - Innovate UK,29/05/2019,Assessor Fees,SBRI,2020 Insights LLP,37325, 600.00 ,Assessor Fees
BEIS,UKRI - Innovate UK,20/05/2019,Not Co-Funded Monitoring Officer Fees,Emerging Technologies,2020 Insights LLP,34842, 480.00 ,Not Co-Funded Monitoring Officer Fees
BEIS,UKRI - Innovate UK,15/05/2019,Not Co-Funded Monitoring Officer Fees,Resp - Smart,2020 Insights LLP,34618, 480.00 ,Not Co-Funded Monitoring Officer Fees
BEIS,UKRI - Innovate UK,15/05/2019,Not Co-Funded Monitoring Officer Fees,Emerging Technologies,2020 Insights LLP,34616, 420.00 ,Not Co-Funded Monitoring Officer Fees
BEIS,UKRI - Innovate UK,29/05/2019,Assessor Fees,SBRI,2020 Insights LLP,37279, 360.00 ,Assessor Fees
BEIS,UKRI - MRC,10/05/2019,Chemicals,Unspecified,2B Scientific Ltd,98463952, 998.40 ,Chemicals
BEIS,UKRI - MRC,17/05/2019,Chemicals,Unspecified,2B Scientific Ltd,98484438, 300.00 ,Chemicals
BEIS,UKRI - MRC,10/05/2019,Chemicals,Unspecified,2B Scientific Ltd,98478155, 248.40 ,Chemicals
BEIS,UKRI - MRC,16/05/2019,Chemicals,Unspecified,2B Scientific Ltd,98482342, 202.80 ,Chemicals
BEIS,UKRI - MRC,10/05/2019,Postage & Courier Services,Unspecified,2B Scientific Ltd,98463952, 66.00 ,Postage & Courier Services
BEIS,UKRI - Innovate UK,01/05/2019,Not Co-Funded Monitoring Officer Fees,CHALLENGE - Energy Batteries,2B-CONSULTING LTD,33843," 1,251.30 ",Not Co-Funded Monitoring Officer Fees
BEIS,UKRI - Innovate UK,01/05/2019,Not Co-Funded Monitoring Officer Travel & Subs,CHALLENGE - Energy Batteries,2B-CONSULTING LTD,33843," 1,251.30 ",Not Co-Funded Monitoring Officer Travel & Subs
BEIS,UKRI - Innovate UK,01/05/2019,Not Co-Funded Monitoring Officer Fees,Lending Operations,2B-CONSULTING LTD,33842," 1,141.81 ",Not Co-Funded Monitoring Officer Fees
BEIS,UKRI - Innovate UK,01/05/2019,Not Co-Funded Monitoring Officer Travel & Subs,Lending Operations,2B-CONSULTING LTD,33842," 1,141.81 ",Not Co-Funded Monitoring Officer Travel & Subs
BEIS,UKRI - Innovate UK,01/05/2019,Not Co-Funded Monitoring Officer Fees,Food and Agriculture �����������������������������������,2B-CONSULTING LTD,33823," 1,062.12 ",Not Co-Funded Monitoring Officer Fees
BEIS,UKRI - Innovate UK,01/05/2019,Not Co-Funded Monitoring Officer Travel & Subs,Food and Agriculture �����������������������������������,2B-CONSULTING LTD,33823," 1,062.12 ",Not Co-Funded Monitoring Officer Travel & Subs
BEIS,UKRI - Innovate UK,01/05/2019,Not Co-Funded Monitoring Officer Fees,Lending Operations,2B-CONSULTING LTD,33841," 1,044.20 ",Not Co-Funded Monitoring Officer Fees
BEIS,UKRI - Innovate UK,01/05/2019,Not Co-Funded Monitoring Officer Travel & Subs,Lending Operations,2B-CONSULTING LTD,33841," 1,044.20 ",Not Co-Funded Monitoring Officer Travel & Subs
BEIS,UKRI - Innovate UK,01/05/2019,Not Co-Funded Monitoring Officer Fees,Lending Operations,2B-CONSULTING LTD,33845," 1,020.96 ",Not Co-Funded Monitoring Officer Fees
BEIS,UKRI - Innovate UK,01/05/2019,Not Co-Funded Monitoring Officer Travel & Subs,Lending Operations,2B-CONSULTING LTD,33845," 1,020.96 ",Not Co-Funded Monitoring Officer Travel & Subs
BEIS,UKRI - Innovate UK,01/05/2019,Not Co-Funded Monitoring Officer Fees,CHALLENGE - Energy Batteries,2B-CONSULTING LTD,33844," 1,012.60 ",Not Co-Funded Monitoring Officer Fees
BEIS,UKRI - Innovate UK,01/05/2019,Not Co-Funded Monitoring Officer Travel & Subs,CHALLENGE - Energy Batteries,2B-CONSULTING LTD,33844," 1,012.60 ",Not Co-Funded Monitoring Officer Travel & Subs
BEIS,UKRI - Innovate UK,01/05/2019,Not Co-Funded Monitoring Officer Fees,CHALLENGE - Energy Batteries,2B-CONSULTING LTD,33824," 1,001.10 ",Not Co-Funded Monitoring Officer Fees
BEIS,UKRI - Innovate UK,01/05/2019,Not Co-Funded Monitoring Officer Travel & Subs,CHALLENGE - Energy Batteries,2B-CONSULTING LTD,33824," 1,001.10 ",Not Co-Funded Monitoring Officer Travel & Subs
BEIS,UKRI - Innovate UK,01/05/2019,Not Co-Funded Monitoring Officer Fees,Lending Operations,2B-CONSULTING LTD,33874, 990.11 ,Not Co-Funded Monitoring Officer Fees
BEIS,UKRI - Innovate UK,01/05/2019,Not Co-Funded Monitoring Officer Travel & Subs,Lending Operations,2B-CONSULTING LTD,33874, 990.11 ,Not Co-Funded Monitoring Officer Travel & Subs
BEIS,UKRI - Innovate UK,01/05/2019,Not Co-Funded Monitoring Officer Fees,CHALLENGE - Energy Batteries,2B-CONSULTING LTD,33826, 981.00 ,Not Co-Funded Monitoring Officer Fees
BEIS,UKRI - Innovate UK,01/05/2019,Not Co-Funded Monitoring Officer Travel & Subs,CHALLENGE - Energy Batteries,2B-CONSULTING LTD,33826, 981.00 ,Not Co-Funded Monitoring Officer Travel & Subs
BEIS,UKRI - Innovate UK,01/05/2019,Not Co-Funded Monitoring Officer Fees,CHALLENGE - Energy Batteries,2B-CONSULTING LTD,33825, 951.73 ,Not Co-Funded Monitoring Officer Fees
BEIS,UKRI - Innovate UK,01/05/2019,Not Co-Funded Monitoring Officer Travel & Subs,CHALLENGE - Energy Batteries,2B-CONSULTING LTD,33825, 951.73 ,Not Co-Funded Monitoring Officer Travel & Subs
BEIS,UKRI - Innovate UK,01/05/2019,Not Co-Funded Monitoring Guidance,Transport,2B-CONSULTING LTD,33620, 720.12 ,Not Co-Funded Monitoring Guidance
BEIS,UKRI - Innovate UK,01/05/2019,Not Co-Funded Monitoring Guidance T&S,Transport,2B-CONSULTING LTD,33620, 720.12 ,Not Co-Funded Monitoring Guidance T&S
BEIS,UKRI - Innovate UK,31/05/2019,Not Co-Funded Monitoring Officer Fees,Food and Agriculture �����������������������������������,2B-CONSULTING LTD,39200, 600.00 ,Not Co-Funded Monitoring Officer Fees
BEIS,UKRI - MRC,10/05/2019,Asset Clearing,Regional Estates and Facilities LMB,2bm Ltd,98474110," 46,588.31 ",Asset Clearing
BEIS,UKRI - Innovate UK,03/05/2019,Resource grants,Manufacturing,2-DTECH LTD,32198," 18,003.49 ",Resource grants
BEIS,UKRI - Innovate UK,31/05/2019,Resource grants,Emerging Technologies,2-DTECH LTD,35637," 5,350.59 ",Resource grants
BEIS,UKRI - NERC,16/05/2019,Printing & Stationery,NERC - CEH Water Resources,3d Displays Ltd,98468620, 28.33 ,Printing & Stationery
BEIS,UKRI - NERC,16/05/2019,Printing & Stationery,NERC - CEH Water Resources,3d Displays Ltd,98468620, 5.67 ,Printing & Stationery
BEIS,UKRI - Innovate UK,31/05/2019,Resource grants,Challenge: Construction,3D REPO LTD,35722," 43,139.51 ",Resource grants
BEIS,UKRI - NERC,09/05/2019,Projects CIP,NERC - NOC Long Term Maintenance,3MSE Ltd,98477848," 3,813.71 ",Projects CIP
BEIS,UKRI - STFC,01/05/2019,Advertising & Promotion,CALTA,3T RPD Ltd,98473265," 1,200.00 ",Advertising & Promotion
BEIS,UKRI - MRC,24/05/2019,Advertising & Promotion,Unspecified,4Imprint Ltd,98490744, 880.74 ,Advertising & Promotion
BEIS,UKRI - STFC,31/05/2019,Advertising & Promotion,Hartree Indirect,4Imprint Ltd,98494227, 395.94 ,Advertising & Promotion
BEIS,UKRI - NERC,02/05/2019,Other Bought In Services,NERC - NOC Marine Geochemistry,4Imprint Ltd,98473875, 378.00 ,Other Bought In Services
BEIS,UKRI - STFC,29/05/2019,Advertising & Promotion,Business Development - Daresbury,4Imprint Ltd,98491344, 345.32 ,Advertising & Promotion
BEIS,UKRI - MRC,21/05/2019,Research Consumables,Unspecified,4Titude Ltd,98486893, 630.00 ,Research Consumables
BEIS,UKRI - MRC,21/05/2019,Research Consumables,Unspecified,4Titude Ltd,98486893, 546.00 ,Research Consumables
BEIS,UKRI - MRC,21/05/2019,Research Consumables,Unspecified,4Titude Ltd,98486893, 15.00 ,Research Consumables
BEIS,UKRI - MRC,21/05/2019,Research Consumables,Unspecified,4Titude Ltd,98486893,-2.50 ,Research Consumables
BEIS,UKRI - MRC,21/05/2019,Research Consumables,Unspecified,4Titude Ltd,98486893,-91.00 ,Research Consumables
BEIS,UKRI - MRC,21/05/2019,Research Consumables,Unspecified,4Titude Ltd,98486893,-105.00 ,Research Consumables
BEIS,UKRI - NERC,29/05/2019,Co-Funder Grants Liability - NERC,NERC - NOC Control Centre,52 North Initiative for Geospatial Open Source Software GmbH,98490430," 1,021.51 ",Co-Funder Grants Liability - NERC
BEIS,UKRI - Innovate UK,17/05/2019,Resource grants,Emerging Technologies,5D HEALTH PROTECTION GROUP LTD,34359," 19,823.47 ",Resource grants
BEIS,UKRI - NERC,09/05/2019,Printing & Stationery,NERC - CEH CCS Edinburgh,A V Parts Master Ltd,98477805, 248.53 ,Printing & Stationery
BEIS,UKRI - NERC,17/05/2019,Advertising & Promotion,NERC - NOC Events,A.PERTON SIGNS LTD,98483095, 402.00 ,Advertising & Promotion
BEIS,UKRI - Innovate UK,29/05/2019,Assessor Fees,SBRI,A+E LTD,37310, 600.00 ,Assessor Fees
BEIS,UKRI - Innovate UK,29/05/2019,Assessor Fees,SBRI,A+E LTD,37365, 480.00 ,Assessor Fees
BEIS,UKRI - MRC,17/05/2019,Research Consumables,Unspecified,A1-CBISS LTD,98484145, 102.60 ,Research Consumables
BEIS,UKRI - MRC,17/05/2019,Postage & Courier Services,Unspecified,A1-CBISS LTD,98484145, 12.00 ,Postage & Courier Services
BEIS,UKRI - Innovate UK,13/05/2019,Assessor Fees,Medicines Manufacturing,A2F-ASSOCIATES LIMITED,35490, 576.00 ,Assessor Fees
BEIS,UKRI - Innovate UK,13/05/2019,Assessor Fees,Resp - Smart,A2F-ASSOCIATES LIMITED,48481, 288.00 ,Assessor Fees
BEIS,UKRI - NERC,28/05/2019,International Subscriptions,NERC - NOC Communications and Public Engagement,Aaas/ Eurekalert,98486855," 1,058.00 ",International Subscriptions
BEIS,UKRI - AHRC,23/05/2019,Legal & Professional Services,Public and Stakeholder Engagement,Aardman Animations Ltd,98484222," 86,089.20 ",Legal & Professional Services
BEIS,UKRI - NERC,07/05/2019,International Subscriptions,NERC - BAS Arctic Office,Aarhus Universitet,98475752," 1,262.97 ",International Subscriptions
BEIS,UKRI - Innovate UK,03/05/2019,Resource grants,Emerging Technologies,ABACOGROUP UK,32119," 1,911.59 ",Resource grants
BEIS,UKRI - Innovate UK,17/05/2019,Resource grants,ISCF - EE,ABB LIMITED,34282," 1,357.61 ",Resource grants
BEIS,UKRI - NERC,03/05/2019,Ship Repairs & Refit,NERC - NOC NMFSS Research Ships Engineering,ABB Ltd,98475114," 1,068.87 ",Ship Repairs & Refit
BEIS,UKRI - Innovate UK,31/05/2019,Resource grants,Non Core - Agritech Centres,ABB MARKETING LTD,35638," 3,200.56 ",Resource grants
BEIS,UKRI - STFC,13/05/2019,Asset Clearing,Public Engagement,Abbey Business Equipment Ltd,98478467," 11,958.00 ",Asset Clearing
BEIS,UKRI - BBSRC,28/05/2019,Non-Capital Building Construction,JBOS - Maintenance,Abbey Business Equipment Ltd,98490250," 4,800.00 ",Non-Capital Building Construction
BEIS,UKRI - STFC,15/05/2019,Purchase of non capital equipment,ASTEC Overheads,Abbey Business Equipment Ltd,98478478, 374.40 ,Purchase of non capital equipment
BEIS,UKRI - STFC,15/05/2019,Purchase of non capital equipment,ASTEC Overheads,Abbey Business Equipment Ltd,98478478, 238.80 ,Purchase of non capital equipment
BEIS,UKRI - BBSRC,01/05/2019,Health & Safety (inc. Medicals & Opticians),PDG - Director,Abbey Business Equipment Ltd,98470901, 60.00 ,Health & Safety (inc. Medicals & Opticians)
BEIS,UKRI - BBSRC,01/05/2019,Health & Safety (inc. Medicals & Opticians),PDG - Director,Abbey Business Equipment Ltd,98472762, 60.00 ,Health & Safety (inc. Medicals & Opticians)
BEIS,UKRI - MRC,30/05/2019,Research Consumables,Unspecified,Abcam Plc,98493732, 932.04 ,Research Consumables
BEIS,UKRI - MRC,22/05/2019,Research Consumables,Unspecified,Abcam Plc,98488395, 855.12 ,Research Consumables
BEIS,UKRI - MRC,03/05/2019,Research Consumables,Unspecified,Abcam Plc,98475265, 800.10 ,Research Consumables
BEIS,UKRI - MRC,22/05/2019,Research Consumables,Unspecified,Abcam Plc,98488412, 758.70 ,Research Consumables
BEIS,UKRI - MRC,09/05/2019,Research Consumables,Unspecified,Abcam Plc,98477308, 619.92 ,Research Consumables
BEIS,UKRI - STFC,15/05/2019,Research Consumables,Lasers for Science Facility,Abcam Plc,98482006, 562.80 ,Research Consumables
BEIS,UKRI - STFC,22/05/2019,Research Consumables,Lasers for Science Facility,Abcam Plc,98488401, 562.80 ,Research Consumables
BEIS,UKRI - MRC,15/05/2019,Chemicals,CORE - Lymphocyte Development,Abcam Plc,98481271, 438.00 ,Chemicals
BEIS,UKRI - MRC,16/05/2019,Research Consumables,CORE - Lymphocyte Development,Abcam Plc,98482506, 426.00 ,Research Consumables
BEIS,UKRI - MRC,28/05/2019,Research Consumables,Unspecified,Abcam Plc,98490850, 419.04 ,Research Consumables
BEIS,UKRI - MRC,15/05/2019,Research Consumables,CORE - LMS Germline and Pluripotency,Abcam Plc,98481275, 418.80 ,Research Consumables
BEIS,UKRI - MRC,15/05/2019,Research Consumables,Unspecified,Abcam Plc,98481267, 418.80 ,Research Consumables
BEIS,UKRI - MRC,30/05/2019,Research Consumables,Unspecified,Abcam Plc,98493736, 414.00 ,Research Consumables
BEIS,UKRI - MRC,03/05/2019,Research Consumables,Unspecified,Abcam Plc,98474150, 402.00 ,Research Consumables
BEIS,UKRI - MRC,31/05/2019,Research Consumables,CORE - Cell Proliferation,Abcam Plc,98494218, 394.80 ,Research Consumables
BEIS,UKRI - MRC,01/05/2019,Research Consumables,CORE - Gene Regulation and Chromatin,Abcam Plc,98472356, 378.00 ,Research Consumables
BEIS,UKRI - MRC,01/05/2019,Research Consumables,Unspecified,Abcam Plc,98473023, 378.00 ,Research Consumables
BEIS,UKRI - MRC,03/05/2019,Research Consumables,Unspecified,Abcam Plc,98474149, 378.00 ,Research Consumables
BEIS,UKRI - MRC,07/05/2019,Research Consumables,Unspecified,Abcam Plc,98475706, 378.00 ,Research Consumables
BEIS,UKRI - MRC,07/05/2019,Research Consumables,Unspecified,Abcam Plc,98475708, 378.00 ,Research Consumables
BEIS,UKRI - MRC,15/05/2019,Research Consumables,CORE - Redox Metabolism,Abcam Plc,98481263, 378.00 ,Research Consumables
BEIS,UKRI - MRC,15/05/2019,Research Consumables,CORE - Lymphocyte Development,Abcam Plc,98481272, 378.00 ,Research Consumables
BEIS,UKRI - MRC,15/05/2019,Research Consumables,CORE - Lymphocyte Development,Abcam Plc,98481272, 378.00 ,Research Consumables
BEIS,UKRI - MRC,15/05/2019,Research Consumables,CORE - LMS Germline and Pluripotency,Abcam Plc,98481275, 378.00 ,Research Consumables
BEIS,UKRI - MRC,15/05/2019,Research Consumables,CORE - Gene Regulation and Chromatin,Abcam Plc,98481276, 378.00 ,Research Consumables
BEIS,UKRI - MRC,15/05/2019,Research Consumables,Unspecified,Abcam Plc,98481264, 378.00 ,Research Consumables
BEIS,UKRI - MRC,15/05/2019,Research Consumables,Unspecified,Abcam Plc,98481265, 378.00 ,Research Consumables
BEIS,UKRI - MRC,22/05/2019,Research Consumables,Unspecified,Abcam Plc,98487346, 378.00 ,Research Consumables
BEIS,UKRI - MRC,24/05/2019,Research Consumables,CORE - Gene Regulation and Chromatin,Abcam Plc,98490150, 378.00 ,Research Consumables
BEIS,UKRI - MRC,31/05/2019,Postage & Courier Services,Unspecified,Abcam Plc,98493211, 378.00 ,Postage & Courier Services
BEIS,UKRI - MRC,31/05/2019,Research Consumables,CORE - Cell Cycle,Abcam Plc,98494132, 378.00 ,Research Consumables
BEIS,UKRI - MRC,31/05/2019,Research Consumables,Unspecified,Abcam Plc,98493212, 378.00 ,Research Consumables
BEIS,UKRI - MRC,31/05/2019,Research Consumables,Unspecified,Abcam Plc,98494216, 378.00 ,Research Consumables
BEIS,UKRI - MRC,03/05/2019,Chemicals,CORE - Lymphocyte Development,Abcam Plc,98474148, 370.80 ,Chemicals
BEIS,UKRI - MRC,15/05/2019,Research Consumables,CORE - LMS Chromatin and Development,Abcam Plc,98481274, 370.80 ,Research Consumables
BEIS,UKRI - MRC,31/05/2019,Research Consumables,CORE - Cell Proliferation,Abcam Plc,98494218, 370.80 ,Research Consumables
BEIS,UKRI - MRC,30/05/2019,Chemicals,Unspecified,Abcam Plc,98493733, 366.00 ,Chemicals
BEIS,UKRI - MRC,15/05/2019,Chemicals,Unspecified,Abcam Plc,98481273, 358.80 ,Chemicals
BEIS,UKRI - MRC,20/05/2019,Research Consumables,CORE - Gene Regulation and Chromatin,Abcam Plc,98483661, 358.80 ,Research Consumables
BEIS,UKRI - MRC,31/05/2019,Research Consumables,Unspecified,Abcam Plc,98494215, 358.80 ,Research Consumables
BEIS,UKRI - MRC,15/05/2019,Research Consumables,Unspecified,Abcam Plc,98481266, 354.00 ,Research Consumables
BEIS,UKRI - MRC,22/05/2019,Research Consumables,Unspecified,Abcam Plc,98487344, 354.00 ,Research Consumables
BEIS,UKRI - MRC,31/05/2019,Research Consumables,CORE - Gene Regulation and Chromatin,Abcam Plc,98493387, 354.00 ,Research Consumables
BEIS,UKRI - MRC,01/05/2019,Research Consumables,Unspecified,Abcam Plc,98473023, 346.80 ,Research Consumables
BEIS,UKRI - MRC,03/05/2019,Research Consumables,CORE - Cellular Stress,Abcam Plc,98474117, 346.80 ,Research Consumables
BEIS,UKRI - MRC,15/05/2019,Research Consumables,Unspecified,Abcam Plc,98481277, 346.80 ,Research Consumables
BEIS,UKRI - MRC,15/05/2019,Research Consumables,Unspecified,Abcam Plc,98481279, 346.80 ,Research Consumables
BEIS,UKRI - MRC,16/05/2019,Chemicals,Unspecified,Abcam Plc,98482518, 346.80 ,Chemicals
BEIS,UKRI - MRC,16/05/2019,Research Consumables,CORE - Redox Metabolism,Abcam Plc,98482517, 346.80 ,Research Consumables
BEIS,UKRI - MRC,20/05/2019,Research Consumables,CORE - Gut Signalling and Metabolism,Abcam Plc,98484767, 346.80 ,Research Consumables
BEIS,UKRI - MRC,20/05/2019,Research Consumables,Unspecified,Abcam Plc,98484790, 346.80 ,Research Consumables
BEIS,UKRI - MRC,15/05/2019,Research Consumables,Unspecified,Abcam Plc,98481952, 342.00 ,Research Consumables
BEIS,UKRI - MRC,20/05/2019,Research Consumables,Unspecified,Abcam Plc,98484790, 342.00 ,Research Consumables
BEIS,UKRI - MRC,22/05/2019,Chemicals,Unspecified,Abcam Plc,98488403, 342.00 ,Chemicals
BEIS,UKRI - MRC,15/05/2019,Research Consumables,Unspecified,Abcam Plc,98476270, 340.20 ,Research Consumables
BEIS,UKRI - MRC,08/05/2019,Chemicals,Unspecified,Abcam Plc,98476271, 334.80 ,Chemicals
BEIS,UKRI - MRC,15/05/2019,Chemicals,Unspecified,Abcam Plc,98481268, 334.80 ,Chemicals
BEIS,UKRI - MRC,15/05/2019,Research Consumables,CORE - Lymphocyte Development,Abcam Plc,98481272, 334.80 ,Research Consumables
BEIS,UKRI - MRC,16/05/2019,Chemicals,Unspecified,Abcam Plc,98482518, 334.80 ,Chemicals
BEIS,UKRI - MRC,16/05/2019,Research Consumables,Unspecified,Abcam Plc,98482516, 334.80 ,Research Consumables
BEIS,UKRI - MRC,22/05/2019,Chemicals,Unspecified,Abcam Plc,98488403, 334.80 ,Chemicals
BEIS,UKRI - MRC,23/05/2019,Chemicals,Unspecified,Abcam Plc,98488967, 334.80 ,Chemicals
BEIS,UKRI - MRC,28/05/2019,Chemicals,Unspecified,Abcam Plc,98490849, 334.80 ,Chemicals
BEIS,UKRI - MRC,31/05/2019,Chemicals,CORE - Molecular Cardiology,Abcam Plc,98494133, 334.80 ,Chemicals
BEIS,UKRI - MRC,03/05/2019,Chemicals,CORE - Lymphocyte Development,Abcam Plc,98474116, 330.00 ,Chemicals
BEIS,UKRI - MRC,07/05/2019,Research Consumables,Unspecified,Abcam Plc,98475709, 330.00 ,Research Consumables
BEIS,UKRI - MRC,20/05/2019,Chemicals,Unspecified,Abcam Plc,98484799, 330.00 ,Chemicals
BEIS,UKRI - MRC,30/05/2019,Postage & Courier Services,Unspecified,Abcam Plc,98493735, 322.80 ,Postage & Courier Services
BEIS,UKRI - MRC,22/05/2019,Inventory,Unspecified,Abcam Plc,98487345, 318.00 ,Inventory
BEIS,UKRI - MRC,20/05/2019,Research Consumables,Unspecified,Abcam Plc,98484837, 274.80 ,Research Consumables
BEIS,UKRI - MRC,22/05/2019,Chemicals,Unspecified,Abcam Plc,98487347, 258.00 ,Chemicals
BEIS,UKRI - MRC,03/05/2019,Chemicals,Unspecified,Abcam Plc,98474147, 226.80 ,Chemicals
BEIS,UKRI - MRC,08/05/2019,Chemicals,Unspecified,Abcam Plc,98477240, 202.80 ,Chemicals
BEIS,UKRI - MRC,08/05/2019,Research Consumables,Unspecified,Abcam Plc,98477241, 202.80 ,Research Consumables
BEIS,UKRI - MRC,09/05/2019,Research Consumables,Unspecified,Abcam Plc,98477309, 202.80 ,Research Consumables
BEIS,UKRI - MRC,08/05/2019,Chemicals,Unspecified,Abcam Plc,98477239, 178.80 ,Chemicals
BEIS,UKRI - MRC,03/05/2019,Research Consumables,Unspecified,Abcam Plc,98475158, 166.80 ,Research Consumables
BEIS,UKRI - MRC,30/05/2019,Research Consumables,CORE - Cell Proliferation,Abcam Plc,98493734, 166.80 ,Research Consumables
BEIS,UKRI - MRC,01/05/2019,Chemicals,CORE - LMS Cell Cycle Control,Abcam Plc,98472230, 162.00 ,Chemicals
BEIS,UKRI - MRC,01/05/2019,Research Consumables,Unspecified,Abcam Plc,98473023, 154.80 ,Research Consumables
BEIS,UKRI - MRC,22/05/2019,Chemicals,Unspecified,Abcam Plc,98488398, 154.80 ,Chemicals
BEIS,UKRI - MRC,22/05/2019,Chemicals,Unspecified,Abcam Plc,98488398, 154.80 ,Chemicals
BEIS,UKRI - MRC,31/05/2019,Research Consumables,Unspecified,Abcam Plc,98493389, 154.80 ,Research Consumables
BEIS,UKRI - MRC,31/05/2019,Research Consumables,Unspecified,Abcam Plc,98493389, 154.80 ,Research Consumables
BEIS,UKRI - MRC,03/05/2019,Research Consumables,Unspecified,Abcam Plc,98475268, 139.32 ,Research Consumables
BEIS,UKRI - MRC,07/05/2019,Research Consumables,Unspecified,Abcam Plc,98475800, 124.26 ,Research Consumables
BEIS,UKRI - MRC,03/05/2019,Research Consumables,Unspecified,Abcam Plc,98475272, 117.72 ,Research Consumables
BEIS,UKRI - MRC,07/05/2019,Postage & Courier Services,Unspecified,Abcam Plc,98475707, 106.80 ,Postage & Courier Services
BEIS,UKRI - MRC,15/05/2019,Chemicals,Unspecified,Abcam Plc,98481268, 78.00 ,Chemicals
BEIS,UKRI - MRC,28/05/2019,Chemicals,Unspecified,Abcam Plc,98490818, 42.00 ,Chemicals
BEIS,UKRI - MRC,15/05/2019,Chemicals,Unspecified,Abcam Plc,98468425, 30.00 ,Chemicals
BEIS,UKRI - MRC,15/05/2019,Postage & Courier Services,Unspecified,Abcam Plc,98468425, 30.00 ,Postage & Courier Services
BEIS,UKRI - STFC,15/05/2019,Postage & Courier Services,Lasers for Science Facility,Abcam Plc,98482006, 19.20 ,Postage & Courier Services
BEIS,UKRI - MRC,01/05/2019,Research Consumables,CORE - LMS Cell Cycle Control,Abcam Plc,98472230, 19.20 ,Research Consumables
BEIS,UKRI - MRC,03/05/2019,Postage & Courier Services,Unspecified,Abcam Plc,98475158, 19.20 ,Postage & Courier Services
BEIS,UKRI - MRC,09/05/2019,Research Consumables,Unspecified,Abcam Plc,98477309, 19.20 ,Research Consumables
BEIS,UKRI - MRC,15/05/2019,Chemicals,Unspecified,Abcam Plc,98481273, 19.20 ,Chemicals
BEIS,UKRI - MRC,15/05/2019,Postage & Courier Services,CORE - LMS Chromatin and Development,Abcam Plc,98481274, 19.20 ,Postage & Courier Services
BEIS,UKRI - MRC,15/05/2019,Postage & Courier Services,CORE - Gene Regulation and Chromatin,Abcam Plc,98481276, 19.20 ,Postage & Courier Services
BEIS,UKRI - MRC,15/05/2019,Research Consumables,Unspecified,Abcam Plc,98481264, 19.20 ,Research Consumables
BEIS,UKRI - MRC,20/05/2019,Postage & Courier Services,CORE - Gene Regulation and Chromatin,Abcam Plc,98483661, 19.20 ,Postage & Courier Services
BEIS,UKRI - MRC,20/05/2019,Postage & Courier Services,CORE - Gut Signalling and Metabolism,Abcam Plc,98484767, 19.20 ,Postage & Courier Services
BEIS,UKRI - MRC,20/05/2019,Postage & Courier Services,Unspecified,Abcam Plc,98484799, 19.20 ,Postage & Courier Services
BEIS,UKRI - MRC,22/05/2019,Inventory,Unspecified,Abcam Plc,98487345, 19.20 ,Inventory
BEIS,UKRI - MRC,31/05/2019,Postage & Courier Services,CORE - Gene Regulation and Chromatin,Abcam Plc,98493387, 19.20 ,Postage & Courier Services
BEIS,UKRI - MRC,31/05/2019,Postage & Courier Services,CORE - Molecular Cardiology,Abcam Plc,98494133, 19.20 ,Postage & Courier Services
BEIS,UKRI - MRC,07/05/2019,Research Consumables,Unspecified,Abcam Plc,98475709, 16.80 ,Research Consumables
BEIS,UKRI - MRC,08/05/2019,Postage & Courier Services,Unspecified,Abcam Plc,98477240, 16.80 ,Postage & Courier Services
BEIS,UKRI - MRC,15/05/2019,Postage & Courier Services,Unspecified,Abcam Plc,98481277, 16.80 ,Postage & Courier Services
BEIS,UKRI - MRC,15/05/2019,Research Consumables,Unspecified,Abcam Plc,98481279, 16.80 ,Research Consumables
BEIS,UKRI - MRC,15/05/2019,Research Consumables,Unspecified,Abcam Plc,98481952, 16.80 ,Research Consumables
BEIS,UKRI - MRC,20/05/2019,Postage & Courier Services,Unspecified,Abcam Plc,98484790, 16.80 ,Postage & Courier Services
BEIS,UKRI - MRC,28/05/2019,Chemicals,Unspecified,Abcam Plc,98490818, 16.80 ,Chemicals
BEIS,UKRI - MRC,31/05/2019,Research Consumables,Unspecified,Abcam Plc,98494215, 16.80 ,Research Consumables
BEIS,UKRI - MRC,31/05/2019,Research Consumables,Unspecified,Abcam Plc,98494216, 16.80 ,Research Consumables
BEIS,UKRI - MRC,07/05/2019,Postage & Courier Services,Unspecified,Abcam Plc,98475707,-0.36 ,Postage & Courier Services
BEIS,UKRI - MRC,09/05/2019,Research Consumables,Unspecified,Abcam Plc,98477309,-0.40 ,Research Consumables
BEIS,UKRI - MRC,30/05/2019,Postage & Courier Services,CORE - Cell Proliferation,Abcam Plc,98493734,-0.56 ,Postage & Courier Services
BEIS,UKRI - MRC,03/05/2019,Chemicals,Unspecified,Abcam Plc,98474147,-0.76 ,Chemicals
BEIS,UKRI - MRC,22/05/2019,Chemicals,Unspecified,Abcam Plc,98487347,-0.86 ,Chemicals
BEIS,UKRI - MRC,22/05/2019,Chemicals,Unspecified,Abcam Plc,98488398,-1.03 ,Chemicals
BEIS,UKRI - MRC,31/05/2019,Research Consumables,Unspecified,Abcam Plc,98493389,-1.03 ,Research Consumables
BEIS,UKRI - MRC,22/05/2019,Inventory,Unspecified,Abcam Plc,98487345,-1.06 ,Inventory
BEIS,UKRI - MRC,30/05/2019,Postage & Courier Services,Unspecified,Abcam Plc,98493735,-1.08 ,Postage & Courier Services
BEIS,UKRI - MRC,08/05/2019,Chemicals,Unspecified,Abcam Plc,98476271,-1.12 ,Chemicals
BEIS,UKRI - MRC,16/05/2019,Research Consumables,Unspecified,Abcam Plc,98482516,-1.12 ,Research Consumables
BEIS,UKRI - MRC,23/05/2019,Chemicals,Unspecified,Abcam Plc,98488967,-1.12 ,Chemicals
BEIS,UKRI - MRC,28/05/2019,Chemicals,Unspecified,Abcam Plc,98490849,-1.12 ,Chemicals
BEIS,UKRI - MRC,16/05/2019,Research Consumables,CORE - Redox Metabolism,Abcam Plc,98482517,-1.16 ,Research Consumables
BEIS,UKRI - MRC,15/05/2019,Research Consumables,Unspecified,Abcam Plc,98481266,-1.18 ,Research Consumables
BEIS,UKRI - MRC,22/05/2019,Research Consumables,Unspecified,Abcam Plc,98487344,-1.18 ,Research Consumables
BEIS,UKRI - MRC,30/05/2019,Chemicals,Unspecified,Abcam Plc,98493733,-1.22 ,Chemicals
BEIS,UKRI - MRC,03/05/2019,Postage & Courier Services,CORE - Lymphocyte Development,Abcam Plc,98474148,-1.24 ,Postage & Courier Services
BEIS,UKRI - MRC,03/05/2019,Research Consumables,Unspecified,Abcam Plc,98474149,-1.26 ,Research Consumables
BEIS,UKRI - MRC,07/05/2019,Research Consumables,Unspecified,Abcam Plc,98475706,-1.26 ,Research Consumables
BEIS,UKRI - MRC,07/05/2019,Research Consumables,Unspecified,Abcam Plc,98475708,-1.26 ,Research Consumables
BEIS,UKRI - MRC,15/05/2019,Research Consumables,CORE - Redox Metabolism,Abcam Plc,98481263,-1.26 ,Research Consumables
BEIS,UKRI - MRC,15/05/2019,Research Consumables,Unspecified,Abcam Plc,98481264,-1.26 ,Research Consumables
BEIS,UKRI - MRC,15/05/2019,Research Consumables,Unspecified,Abcam Plc,98481265,-1.26 ,Research Consumables
BEIS,UKRI - MRC,22/05/2019,Research Consumables,Unspecified,Abcam Plc,98487346,-1.26 ,Research Consumables
BEIS,UKRI - MRC,31/05/2019,Postage & Courier Services,Unspecified,Abcam Plc,98493211,-1.26 ,Postage & Courier Services
BEIS,UKRI - MRC,31/05/2019,Research Consumables,Unspecified,Abcam Plc,98493212,-1.26 ,Research Consumables
BEIS,UKRI - MRC,03/05/2019,Research Consumables,Unspecified,Abcam Plc,98474150,-1.34 ,Research Consumables
BEIS,UKRI - MRC,15/05/2019,Chemicals,Unspecified,Abcam Plc,98481268,-1.38 ,Chemicals
BEIS,UKRI - MRC,30/05/2019,Research Consumables,Unspecified,Abcam Plc,98493736,-1.38 ,Research Consumables
BEIS,UKRI - MRC,15/05/2019,Research Consumables,Unspecified,Abcam Plc,98481267,-1.40 ,Research Consumables
BEIS,UKRI - MRC,07/05/2019,Postage & Courier Services,Unspecified,Abcam Plc,98475707,-1.78 ,Postage & Courier Services
BEIS,UKRI - STFC,22/05/2019,Research Consumables,Lasers for Science Facility,Abcam Plc,98488401,-1.88 ,Research Consumables
BEIS,UKRI - MRC,09/05/2019,Research Consumables,Unspecified,Abcam Plc,98477309,-2.00 ,Research Consumables
BEIS,UKRI - MRC,16/05/2019,Chemicals,Unspecified,Abcam Plc,98482518,-2.27 ,Chemicals
BEIS,UKRI - MRC,30/05/2019,Postage & Courier Services,CORE - Cell Proliferation,Abcam Plc,98493734,-2.78 ,Postage & Courier Services
BEIS,UKRI - MRC,01/05/2019,Research Consumables,Unspecified,Abcam Plc,98473023,-2.93 ,Research Consumables
BEIS,UKRI - MRC,03/05/2019,Chemicals,Unspecified,Abcam Plc,98474147,-3.78 ,Chemicals
BEIS,UKRI - MRC,22/05/2019,Chemicals,Unspecified,Abcam Plc,98487347,-4.30 ,Chemicals
BEIS,UKRI - MRC,22/05/2019,Chemicals,Unspecified,Abcam Plc,98488398,-5.16 ,Chemicals
BEIS,UKRI - MRC,31/05/2019,Research Consumables,Unspecified,Abcam Plc,98493389,-5.16 ,Research Consumables
BEIS,UKRI - MRC,22/05/2019,Inventory,Unspecified,Abcam Plc,98487345,-5.30 ,Inventory
BEIS,UKRI - MRC,30/05/2019,Postage & Courier Services,Unspecified,Abcam Plc,98493735,-5.38 ,Postage & Courier Services
BEIS,UKRI - MRC,08/05/2019,Chemicals,Unspecified,Abcam Plc,98476271,-5.58 ,Chemicals
BEIS,UKRI - MRC,16/05/2019,Research Consumables,Unspecified,Abcam Plc,98482516,-5.58 ,Research Consumables
BEIS,UKRI - MRC,23/05/2019,Chemicals,Unspecified,Abcam Plc,98488967,-5.58 ,Chemicals
BEIS,UKRI - MRC,28/05/2019,Chemicals,Unspecified,Abcam Plc,98490849,-5.58 ,Chemicals
BEIS,UKRI - MRC,16/05/2019,Research Consumables,CORE - Redox Metabolism,Abcam Plc,98482517,-5.78 ,Research Consumables
BEIS,UKRI - MRC,15/05/2019,Research Consumables,Unspecified,Abcam Plc,98481266,-5.90 ,Research Consumables
BEIS,UKRI - MRC,22/05/2019,Research Consumables,Unspecified,Abcam Plc,98487344,-5.90 ,Research Consumables
BEIS,UKRI - MRC,30/05/2019,Chemicals,Unspecified,Abcam Plc,98493733,-6.10 ,Chemicals
BEIS,UKRI - MRC,03/05/2019,Postage & Courier Services,CORE - Lymphocyte Development,Abcam Plc,98474148,-6.18 ,Postage & Courier Services
BEIS,UKRI - MRC,03/05/2019,Research Consumables,Unspecified,Abcam Plc,98474149,-6.30 ,Research Consumables
BEIS,UKRI - MRC,07/05/2019,Research Consumables,Unspecified,Abcam Plc,98475706,-6.30 ,Research Consumables
BEIS,UKRI - MRC,07/05/2019,Research Consumables,Unspecified,Abcam Plc,98475708,-6.30 ,Research Consumables
BEIS,UKRI - MRC,15/05/2019,Research Consumables,CORE - Redox Metabolism,Abcam Plc,98481263,-6.30 ,Research Consumables
BEIS,UKRI - MRC,15/05/2019,Research Consumables,Unspecified,Abcam Plc,98481264,-6.30 ,Research Consumables
BEIS,UKRI - MRC,15/05/2019,Research Consumables,Unspecified,Abcam Plc,98481265,-6.30 ,Research Consumables
BEIS,UKRI - MRC,22/05/2019,Research Consumables,Unspecified,Abcam Plc,98487346,-6.30 ,Research Consumables
BEIS,UKRI - MRC,31/05/2019,Postage & Courier Services,Unspecified,Abcam Plc,98493211,-6.30 ,Postage & Courier Services
BEIS,UKRI - MRC,31/05/2019,Research Consumables,Unspecified,Abcam Plc,98493212,-6.30 ,Research Consumables
BEIS,UKRI - MRC,03/05/2019,Research Consumables,Unspecified,Abcam Plc,98474150,-6.70 ,Research Consumables
BEIS,UKRI - MRC,15/05/2019,Chemicals,Unspecified,Abcam Plc,98481268,-6.88 ,Chemicals
BEIS,UKRI - MRC,30/05/2019,Research Consumables,Unspecified,Abcam Plc,98493736,-6.90 ,Research Consumables
BEIS,UKRI - MRC,15/05/2019,Research Consumables,Unspecified,Abcam Plc,98481267,-6.98 ,Research Consumables
BEIS,UKRI - STFC,22/05/2019,Research Consumables,Lasers for Science Facility,Abcam Plc,98488401,-9.38 ,Research Consumables
BEIS,UKRI - MRC,16/05/2019,Chemicals,Unspecified,Abcam Plc,98482518,-11.36 ,Chemicals
BEIS,UKRI - MRC,15/05/2019,Postage & Courier Services,Unspecified,Abcam Plc,98468425,-13.20 ,Postage & Courier Services
BEIS,UKRI - MRC,01/05/2019,Research Consumables,Unspecified,Abcam Plc,98473023,-14.66 ,Research Consumables
BEIS,UKRI - MRC,28/05/2019,Research Consumables,Unspecified,Abcam Plc,98490850,-19.62 ,Research Consumables
BEIS,UKRI - MRC,22/05/2019,Research Consumables,Unspecified,Abcam Plc,98488395,-39.06 ,Research Consumables
BEIS,UKRI - MRC,30/05/2019,Research Consumables,Unspecified,Abcam Plc,98493732,-50.22 ,Research Consumables
BEIS,UKRI - MRC,28/05/2019,Research Consumables,Unspecified,Abcam Plc,98490850,-98.10 ,Research Consumables
BEIS,UKRI - MRC,22/05/2019,Research Consumables,Unspecified,Abcam Plc,98488395,-195.30 ,Research Consumables
BEIS,UKRI - MRC,30/05/2019,Research Consumables,Unspecified,Abcam Plc,98493732,-251.10 ,Research Consumables
BEIS,UKRI - Innovate UK,10/05/2019,Resource grants,Transport,ABERDEEN CITY COUNCIL,33409," 7,416.45 ",Resource grants
BEIS,UKRI - Innovate UK,03/05/2019,Resource grants,Precision and Discovery Medicine ����������,ABINGDON HEALTH LTD,32044," 31,331.67 ",Resource grants
BEIS,UKRI - Innovate UK,17/05/2019,Resource grants,Resp - Smart,ABINGDON HEALTH LTD,34353," 14,611.21 ",Resource grants
BEIS,UKRI - NERC,09/05/2019,Research Consumables,NERC - BAS South Georgia,Abl (Stevens) Resin & Glass,98477800, 36.00 ,Research Consumables
BEIS,UKRI - NERC,09/05/2019,Research Consumables,NERC - BAS South Georgia,Abl (Stevens) Resin & Glass,98477800, 30.00 ,Research Consumables
BEIS,UKRI - NERC,09/05/2019,Research Consumables,NERC - BAS South Georgia,Abl (Stevens) Resin & Glass,98477800, 9.60 ,Research Consumables
BEIS,UKRI - NERC,09/05/2019,VAT Input Tax Control (for UK VAT),NERC - Balance Sheet Control,Abl (Stevens) Resin & Glass,98477800, 7.20 ,VAT Input Tax Control (for UK VAT)
BEIS,UKRI - NERC,09/05/2019,VAT Input Tax Control (for UK VAT),NERC - Balance Sheet Control,Abl (Stevens) Resin & Glass,98477800, 6.00 ,VAT Input Tax Control (for UK VAT)
BEIS,UKRI - NERC,09/05/2019,VAT Input Tax Control (for UK VAT),NERC - Balance Sheet Control,Abl (Stevens) Resin & Glass,98477800, 1.92 ,VAT Input Tax Control (for UK VAT)
BEIS,UKRI - NERC,09/05/2019,VAT Input Tax Control (for UK VAT),NERC - Balance Sheet Control,Abl (Stevens) Resin & Glass,98477800,-2.52 ,VAT Input Tax Control (for UK VAT)
BEIS,UKRI - NERC,09/05/2019,Research Consumables,NERC - BAS South Georgia,Abl (Stevens) Resin & Glass,98477800,-12.60 ,Research Consumables
BEIS,UKRI - NERC,13/05/2019,Research & Scientific Equipment,NERC - BAS KC1 Ice-core Acquisition and Analysis,Able Engineering Ltd,98479244," 9,936.00 ",Research & Scientific Equipment
BEIS,UKRI - Innovate UK,17/05/2019,Resource grants,ISCF - IS,ABOVE SURVEYING LTD,34266," 18,241.60 ",Resource grants
BEIS,UKRI - Innovate UK,10/05/2019,Resource grants,Medicines Manufacturing,ABSOLUTE ANTIBODY LTD,33321," 4,400.32 ",Resource grants
BEIS,UKRI - STFC,16/05/2019,Purchase of non capital equipment,RAL Space Services & Facilities,Absolute Calibration Ltd,98482960, 288.00 ,Purchase of non capital equipment
BEIS,UKRI - STFC,21/05/2019,Purchase of non capital equipment,RAL Space Services & Facilities,Absolute Calibration Ltd,98487994, 288.00 ,Purchase of non capital equipment
BEIS,UKRI - MRC,13/05/2019,Computer Hardware,CORE - Meiosis,Academia Ltd,98479455," 2,824.80 ",Computer Hardware
BEIS,UKRI - MRC,02/05/2019,Computer Hardware,NMR LMB,Academia Ltd,98473787," 2,611.76 ",Computer Hardware
BEIS,UKRI - MRC,13/05/2019,Computer Hardware,CORE - Gut Signalling and Metabolism,Academia Ltd,98478495," 2,510.40 ",Computer Hardware
BEIS,UKRI - MRC,30/05/2019,Computer Hardware,Unspecified,Academia Ltd,98492832," 2,302.21 ",Computer Hardware
BEIS,UKRI - MRC,30/05/2019,Computer Hardware,Unspecified,Academia Ltd,98492829," 2,196.43 ",Computer Hardware
BEIS,UKRI - MRC,29/05/2019,Computer Hardware,CORE - Metabolism and Gene Regulation,Academia Ltd,98491404," 2,178.49 ",Computer Hardware
BEIS,UKRI - MRC,02/05/2019,Computer Hardware,CORE - LMS Host-Microbe Co-Metabolism,Academia Ltd,98473786," 2,169.60 ",Computer Hardware
BEIS,UKRI - NERC,31/05/2019,Computer Hardware,NERC - NOC Directorate of Science and Technology,Academia Ltd,98491407," 2,166.00 ",Computer Hardware
BEIS,UKRI - NERC,16/05/2019,Computer Hardware,NERC - NOC Marine Physics And Ocean Climate,Academia Ltd,98482159," 2,153.20 ",Computer Hardware
BEIS,UKRI - STFC,14/05/2019,Computer Hardware,SCD Overheads,Academia Ltd,98478493," 1,910.04 ",Computer Hardware
BEIS,UKRI - MRC,10/05/2019,Computer Hardware,CORE - Cell Proliferation,Academia Ltd,98478106," 1,883.68 ",Computer Hardware
BEIS,UKRI - MRC,20/05/2019,Computer Hardware,CORE - Gut Signalling and Metabolism,Academia Ltd,98485757," 1,720.81 ",Computer Hardware
BEIS,UKRI - MRC,30/05/2019,Computer Hardware,Unspecified,Academia Ltd,98492831," 1,504.26 ",Computer Hardware
BEIS,UKRI - MRC,28/05/2019,Computer Hardware,CORE - Metabolism and Gene Regulation,Academia Ltd,98491837," 1,326.24 ",Computer Hardware
BEIS,UKRI - MRC,20/05/2019,Computer Hardware,Laboratory Management LMB,Academia Ltd,98485782," 1,178.03 ",Computer Hardware
BEIS,UKRI - STFC,14/05/2019,Computer Hardware,SCD EPSRC SLA,Academia Ltd,98478109, 955.21 ,Computer Hardware
BEIS,UKRI - MRC,28/05/2019,Telecoms - Non Capital Hardware Costs,Unspecified,Academia Ltd,98491838, 842.42 ,Telecoms - Non Capital Hardware Costs
BEIS,UKRI - MRC,10/05/2019,Computing Consumables,Unspecified,Academia Ltd,98478116, 830.06 ,Computing Consumables
BEIS,UKRI - MRC,20/05/2019,Computer Hardware,CORE - LMS Chromatin and Development,Academia Ltd,98485781, 830.06 ,Computer Hardware
BEIS,UKRI - MRC,28/05/2019,Computer Hardware,CORE - Gut Signalling and Metabolism,Academia Ltd,98491837, 798.23 ,Computer Hardware
BEIS,UKRI - STFC,21/05/2019,Computing Consumables,TD UK ATC Projects,Academia Ltd,98488079, 691.72 ,Computing Consumables
BEIS,UKRI - NERC,20/05/2019,Computing Consumables,NERC - NOC Centre Management,Academia Ltd,98485783, 174.43 ,Computing Consumables
BEIS,UKRI - MRC,10/05/2019,Computing Consumables,Unspecified,Academia Ltd,98478116, 174.43 ,Computing Consumables
BEIS,UKRI - MRC,20/05/2019,Computer Hardware,CORE - LMS Chromatin and Development,Academia Ltd,98485781, 174.43 ,Computer Hardware
BEIS,UKRI - NERC,21/05/2019,Computer Hardware,NERC - BAS ICT IT,Academia Ltd,98482172, 167.84 ,Computer Hardware
BEIS,UKRI - MRC,15/05/2019,Computer Hardware,Unspecified,Academia Ltd,98482183, 156.00 ,Computer Hardware
BEIS,UKRI - STFC,21/05/2019,Computing Consumables,TD UK ATC Projects,Academia Ltd,98488079, 145.36 ,Computing Consumables
BEIS,UKRI - STFC,21/05/2019,VAT Input Tax Control (for UK VAT),Balance Sheet,Academia Ltd,98488079, 138.35 ,VAT Input Tax Control (for UK VAT)
BEIS,UKRI - MRC,10/05/2019,Computing Consumables,Unspecified,Academia Ltd,98478116, 115.67 ,Computing Consumables
BEIS,UKRI - MRC,20/05/2019,Computer Hardware,CORE - LMS Chromatin and Development,Academia Ltd,98485781, 115.67 ,Computer Hardware
BEIS,UKRI - NERC,21/05/2019,Computer Hardware,NERC - BAS ICT IT,Academia Ltd,98482172, 107.90 ,Computer Hardware
BEIS,UKRI - NERC,02/05/2019,Computing Consumables,NERC - NOC Coastal Ocean Processes,Academia Ltd,98472739, 89.72 ,Computing Consumables
BEIS,UKRI - MRC,01/05/2019,Computing Consumables,CORE - Computational Regulatory Genomics,Academia Ltd,98473314, 89.11 ,Computing Consumables
BEIS,UKRI - MRC,15/05/2019,Computer Hardware,CORE - LMS Synthetic Biology,Academia Ltd,98482167, 77.93 ,Computer Hardware
BEIS,UKRI - MRC,21/05/2019,Computer Hardware,Unspecified,Academia Ltd,98482166, 77.93 ,Computer Hardware
BEIS,UKRI - NERC,28/05/2019,Computer Hardware,NERC - NOC Directorate of Science and Technology,Academia Ltd,98491839, 73.97 ,Computer Hardware
BEIS,UKRI - MRC,30/05/2019,Computer Hardware,Unspecified,Academia Ltd,98492828, 73.97 ,Computer Hardware
BEIS,UKRI - NERC,21/05/2019,Computer Hardware,NERC - BAS ICT IT,Academia Ltd,98482172, 71.05 ,Computer Hardware
BEIS,UKRI - MRC,28/05/2019,Computer Hardware,Unspecified,Academia Ltd,98491836, 68.69 ,Computer Hardware
BEIS,UKRI - MRC,30/05/2019,Computing Consumables,CORE - LMS Synthetic Biology,Academia Ltd,98492959, 55.48 ,Computing Consumables
BEIS,UKRI - MRC,13/05/2019,Purchase of non capital equipment,Unspecified,Academia Ltd,98478107, 33.98 ,Purchase of non capital equipment
BEIS,UKRI - STFC,21/05/2019,VAT Input Tax Control (for UK VAT),Balance Sheet,Academia Ltd,98488079, 29.07 ,VAT Input Tax Control (for UK VAT)
BEIS,UKRI - MRC,15/05/2019,Computing Consumables,CORE - LMS Synthetic Biology,Academia Ltd,98482167, 18.30 ,Computing Consumables
BEIS,UKRI - MRC,28/05/2019,Computing Consumables,Unspecified,Academia Ltd,98491836, 18.30 ,Computing Consumables
BEIS,UKRI - NERC,10/05/2019,Purchase of non capital equipment,NERC - NOC Communications and Public Engagement,Academia Ltd,98478115, 16.99 ,Purchase of non capital equipment
BEIS,UKRI - MRC,02/05/2019,Computing Consumables,Unspecified,Academia Ltd,98473788, 16.99 ,Computing Consumables
BEIS,UKRI - STFC,14/05/2019,VAT Input Tax Control (for UK VAT),Balance Sheet,Academia Ltd,98468481,-29.07 ,VAT Input Tax Control (for UK VAT)
BEIS,UKRI - STFC,14/05/2019,VAT Input Tax Control (for UK VAT),Balance Sheet,Academia Ltd,98468481,-138.35 ,VAT Input Tax Control (for UK VAT)
BEIS,UKRI - STFC,14/05/2019,Computing Consumables,TD UK ATC Projects,Academia Ltd,98468481,-145.36 ,Computing Consumables
BEIS,UKRI - STFC,14/05/2019,Computing Consumables,TD UK ATC Projects,Academia Ltd,98468481,-691.72 ,Computing Consumables
BEIS,UKRI - Innovate UK,10/05/2019,Resource grants,Medicines Manufacturing,ACADEMIC HEALTH SCIENCE NETWORK NE & N CUMBRIA ltd,33274," 1,482.00 ",Resource grants
BEIS,UKRI - MRC,13/05/2019,Grant - Special Contributions,External Funded Extramural Fellowships,Academy of Medical Sciences,98480161," 395,000.00 ",Grant - Special Contributions
BEIS,UKRI - ESRC,14/05/2019,Consultancy Services,Skills and Methods,Academy of Social Sciences,98480945, 711.79 ,Consultancy Services
BEIS,UKRI - UKRI,29/05/2019,Staff Training,UKRI People and Organisation Development,ACAS,98492340," 1,032.00 ",Staff Training
BEIS,UKRI - STFC,24/05/2019,Maintenance of Research & Scientific Equipment,TD Operational Overheads,Accelonix Ltd,98489595," 5,496.00 ",Maintenance of Research & Scientific Equipment
BEIS,UKRI - STFC,17/05/2019,Safety Materials & Equipment,ISIS Target,Access Service And Maintenance,98477144, 642.60 ,Safety Materials & Equipment
BEIS,UKRI - STFC,17/05/2019,Safety Materials & Equipment,ISIS Target,Access Service And Maintenance,98477144, 74.25 ,Safety Materials & Equipment
BEIS,UKRI - STFC,17/05/2019,Safety Materials & Equipment,ISIS Target,Access Service And Maintenance,98477144, 14.85 ,Safety Materials & Equipment
BEIS,UKRI - Innovate UK,24/05/2019,Resource grants,Manufacturing,ACEON BATTERY SOLAR TECHNOLOGY LTD,35175," 8,610.00 ",Resource grants
BEIS,UKRI - Innovate UK,03/05/2019,Resource grants,Food and Agriculture �����������������������������������,ACI GROUP LTD,32175," 1,640.99 ",Resource grants
BEIS,UKRI - NERC,28/05/2019,Projects CIP,NERC - NOC MAS Capital,Acksys Communications & Systems,98413254," 1,769.52 ",Projects CIP
BEIS,UKRI - NERC,28/05/2019,Projects CIP,NERC - NOC MAS Capital,Acksys Communications & Systems,98413254, 174.47 ,Projects CIP
BEIS,UKRI - NERC,28/05/2019,Projects CIP,NERC - NOC MAS Capital,Acksys Communications & Systems,98413254, 142.03 ,Projects CIP
BEIS,UKRI - NERC,28/05/2019,Projects CIP,NERC - NOC MAS Capital,Acksys Communications & Systems,98413254, 47.34 ,Projects CIP
BEIS,UKRI - NERC,28/05/2019,Projects CIP,NERC - NOC MAS Capital,Acksys Communications & Systems,98413254,-7.89 ,Projects CIP
BEIS,UKRI - STFC,22/05/2019,Engineering works,ISIS Experimental Operations,Acrona Engineering Ltd,98487429, 677.60 ,Engineering works
BEIS,UKRI - Innovate UK,13/05/2019,Assessor Fees,Medicines Manufacturing,ACTION FOR INNOVATION LTD,35570," 2,016.00 ",Assessor Fees
BEIS,UKRI - Innovate UK,13/05/2019,Assessor Fees,Advanced Therapies,ACTION FOR INNOVATION LTD,36346, 864.00 ,Assessor Fees
BEIS,UKRI - Innovate UK,13/05/2019,Assessor Fees,Advanced Therapies,ACTION FOR INNOVATION LTD,36401, 144.00 ,Assessor Fees
BEIS,UKRI - STFC,22/05/2019,Purchase of non capital equipment,CLF Support Group,Activ-Air Automation Ltd,98480741, 31.68 ,Purchase of non capital equipment
BEIS,UKRI - STFC,22/05/2019,Purchase of non capital equipment,CLF Support Group,Activ-Air Automation Ltd,98480741, 31.67 ,Purchase of non capital equipment
BEIS,UKRI - STFC,22/05/2019,Purchase of non capital equipment,CLF Support Group,Activ-Air Automation Ltd,98480741, 26.28 ,Purchase of non capital equipment
BEIS,UKRI - STFC,22/05/2019,Purchase of non capital equipment,CLF Support Group,Activ-Air Automation Ltd,98480741, 22.08 ,Purchase of non capital equipment
BEIS,UKRI - STFC,22/05/2019,Purchase of non capital equipment,CLF Support Group,Activ-Air Automation Ltd,98480741, 20.33 ,Purchase of non capital equipment
BEIS,UKRI - STFC,22/05/2019,Purchase of non capital equipment,CLF Support Group,Activ-Air Automation Ltd,98480741, 20.33 ,Purchase of non capital equipment
BEIS,UKRI - STFC,22/05/2019,Purchase of non capital equipment,CLF Support Group,Activ-Air Automation Ltd,98480741, 20.33 ,Purchase of non capital equipment
BEIS,UKRI - STFC,22/05/2019,Purchase of non capital equipment,CLF Support Group,Activ-Air Automation Ltd,98480741, 19.08 ,Purchase of non capital equipment
BEIS,UKRI - STFC,22/05/2019,Purchase of non capital equipment,CLF Support Group,Activ-Air Automation Ltd,98480741, 17.52 ,Purchase of non capital equipment
BEIS,UKRI - STFC,22/05/2019,Purchase of non capital equipment,CLF Support Group,Activ-Air Automation Ltd,98480741, 12.72 ,Purchase of non capital equipment
BEIS,UKRI - STFC,22/05/2019,Purchase of non capital equipment,CLF Support Group,Activ-Air Automation Ltd,98480741, 12.72 ,Purchase of non capital equipment
BEIS,UKRI - Innovate UK,13/05/2019,Assessor Fees,Medicines Manufacturing,ACTUALISE CONSULTING LIMITED,36059," 2,016.00 ",Assessor Fees
BEIS,UKRI - Innovate UK,07/05/2019,Assessor Fees,SBRI,ACTUALISE CONSULTING LIMITED,33906," 1,080.00 ",Assessor Fees
BEIS,UKRI - Innovate UK,07/05/2019,Assessor Fees,Advanced Therapies,ACTUALISE CONSULTING LIMITED,35457," 1,008.00 ",Assessor Fees
BEIS,UKRI - Innovate UK,29/05/2019,Assessor Fees,SBRI,ACTUALISE CONSULTING LIMITED,37227, 480.00 ,Assessor Fees
BEIS,UKRI - Innovate UK,21/05/2019,Assessor Fees,Advanced Therapies,ACTUALISE CONSULTING LIMITED,36307, 288.00 ,Assessor Fees
BEIS,UKRI - Innovate UK,31/05/2019,Resource grants,Resp - Smart,ACURABLE LIMITED,35692," 36,141.66 ",Resource grants
BEIS,UKRI - Innovate UK,17/05/2019,Resource grants,Advanced Therapies,ADAPTIX LIMITED,34234," 135,234.30 ",Resource grants
BEIS,UKRI - STFC,17/05/2019,Other Programme Costs,Campus Centres,ADAPTIX LIMITED,98483168," 15,100.00 ",Other Programme Costs
BEIS,UKRI - NERC,16/05/2019,Printing & Stationery,NERC - NOC Facilities,Adare SEC Ltd T/A Kalamazoo Direct,98483001, 714.00 ,Printing & Stationery
BEIS,UKRI - NERC,22/05/2019,Printing & Stationery,NERC - BAS Soft Facilities Management,Adare SEC Ltd T/A Kalamazoo Direct,98482999, 594.00 ,Printing & Stationery
BEIS,UKRI - NERC,16/05/2019,Postage & Courier Services,NERC - NOC Facilities,Adare SEC Ltd T/A Kalamazoo Direct,98483001, 23.94 ,Postage & Courier Services
BEIS,UKRI - NERC,22/05/2019,Printing & Stationery,NERC - BAS Soft Facilities Management,Adare SEC Ltd T/A Kalamazoo Direct,98482999, 21.54 ,Printing & Stationery
BEIS,UKRI - UKRI,28/05/2019,Printing & Stationery,UKRI - Estates,Adare SEC Ltd T/A Kalamazoo Direct,98491185, 10.39 ,Printing & Stationery
BEIS,UKRI - UKRI,28/05/2019,Postage & Courier Services,UKRI - Estates,Adare SEC Ltd T/A Kalamazoo Direct,98491185, 7.14 ,Postage & Courier Services
BEIS,UKRI - Innovate UK,17/05/2019,Resource grants,ISCF - MM,ADDED SCIENTIFIC LIMITED,34318," 7,765.40 ",Resource grants
BEIS,UKRI - Innovate UK,03/05/2019,Resource grants,Transport,ADDED SCIENTIFIC LTD,32291," 7,594.27 ",Resource grants
BEIS,UKRI - Innovate UK,17/05/2019,Resource grants,Medicines Manufacturing,ADDED SCIENTIFIC LTD,34224," 1,539.35 ",Resource grants
BEIS,UKRI - MRC,28/05/2019,Chemicals,Unspecified,Addgene Inc.,98489674, 298.91 ,Chemicals
BEIS,UKRI - MRC,21/05/2019,Research Consumables,Unspecified,Addgene Inc.,98474736, 290.49 ,Research Consumables
BEIS,UKRI - MRC,16/05/2019,Chemicals,Unspecified,Addgene Inc.,98481429, 281.53 ,Chemicals
BEIS,UKRI - MRC,21/05/2019,Chemicals,Unspecified,Addgene Inc.,98486891, 226.55 ,Chemicals
BEIS,UKRI - MRC,02/05/2019,Chemicals,CORE - Gut Signalling and Metabolism,Addgene Inc.,98469014, 221.77 ,Chemicals
BEIS,UKRI - MRC,23/05/2019,Chemicals,Unspecified,Addgene Inc.,98489866, 122.71 ,Chemicals
BEIS,UKRI - MRC,28/05/2019,Chemicals,Unspecified,Addgene Inc.,98489674, 117.99 ,Chemicals
BEIS,UKRI - MRC,30/05/2019,Chemicals,Unspecified,Addgene Inc.,98491348, 103.95 ,Chemicals
BEIS,UKRI - MRC,28/05/2019,Chemicals,Unspecified,Addgene Inc.,98489693, 103.83 ,Chemicals
BEIS,UKRI - MRC,02/05/2019,Chemicals,Unspecified,Addgene Inc.,98473556, 102.25 ,Chemicals
BEIS,UKRI - MRC,02/05/2019,Chemicals,Unspecified,Addgene Inc.,98473724, 102.25 ,Chemicals
BEIS,UKRI - MRC,21/05/2019,Postage & Courier Services,Unspecified,Addgene Inc.,98474736, 92.96 ,Postage & Courier Services
BEIS,UKRI - MRC,30/05/2019,Chemicals,CORE - Telomere Replication and Stability,Addgene Inc.,98492221, 61.42 ,Chemicals
BEIS,UKRI - MRC,28/05/2019,Chemicals,CORE - LMS Germline and Pluripotency,Addgene Inc.,98489562, 61.36 ,Chemicals
BEIS,UKRI - MRC,28/05/2019,Chemicals,CORE - LMS Germline and Pluripotency,Addgene Inc.,98489562, 61.36 ,Chemicals
BEIS,UKRI - MRC,07/05/2019,Chemicals,CORE - Cell Proliferation,Addgene Inc.,98408106, 60.54 ,Chemicals
BEIS,UKRI - MRC,02/05/2019,Chemicals,CORE - Metabolism and Gene Regulation,Addgene Inc.,98473548, 60.42 ,Chemicals
BEIS,UKRI - MRC,02/05/2019,Chemicals,CORE - Metabolism and Gene Regulation,Addgene Inc.,98473548, 60.42 ,Chemicals
BEIS,UKRI - MRC,02/05/2019,Chemicals,Unspecified,Addgene Inc.,98473554, 60.42 ,Chemicals
BEIS,UKRI - MRC,02/05/2019,Chemicals,Unspecified,Addgene Inc.,98473671, 60.42 ,Chemicals
BEIS,UKRI - MRC,07/05/2019,Chemicals,Unspecified,Addgene Inc.,98475381, 60.42 ,Chemicals
BEIS,UKRI - MRC,14/05/2019,Chemicals,CORE - Lymphocyte Development,Addgene Inc.,98479650, 60.00 ,Chemicals
BEIS,UKRI - MRC,14/05/2019,Chemicals,CORE - Lymphocyte Development,Addgene Inc.,98479650, 60.00 ,Chemicals
BEIS,UKRI - MRC,14/05/2019,Chemicals,Unspecified,Addgene Inc.,98479289, 59.51 ,Chemicals
BEIS,UKRI - MRC,02/05/2019,Chemicals,Unspecified,Addgene Inc.,98473306, 50.35 ,Chemicals
BEIS,UKRI - MRC,02/05/2019,Chemicals,Unspecified,Addgene Inc.,98473306, 50.35 ,Chemicals
BEIS,UKRI - MRC,02/05/2019,Chemicals,Unspecified,Addgene Inc.,98473306, 50.35 ,Chemicals
BEIS,UKRI - MRC,02/05/2019,Chemicals,Unspecified,Addgene Inc.,98473665, 50.35 ,Chemicals
BEIS,UKRI - MRC,02/05/2019,Chemicals,Unspecified,Addgene Inc.,98473665, 50.35 ,Chemicals
BEIS,UKRI - MRC,30/05/2019,Chemicals,CORE - Telomere Replication and Stability,Addgene Inc.,98492221, 42.52 ,Chemicals
BEIS,UKRI - MRC,23/05/2019,Postage & Courier Services,Unspecified,Addgene Inc.,98489866, 42.48 ,Postage & Courier Services
BEIS,UKRI - MRC,28/05/2019,Chemicals,CORE - LMS Germline and Pluripotency,Addgene Inc.,98489562, 42.48 ,Chemicals
BEIS,UKRI - MRC,07/05/2019,Postage & Courier Services,CORE - Cell Proliferation,Addgene Inc.,98408106, 41.91 ,Postage & Courier Services
BEIS,UKRI - MRC,02/05/2019,Chemicals,CORE - Metabolism and Gene Regulation,Addgene Inc.,98473548, 41.83 ,Chemicals
BEIS,UKRI - MRC,02/05/2019,Chemicals,Unspecified,Addgene Inc.,98473554, 41.83 ,Chemicals
BEIS,UKRI - MRC,02/05/2019,Chemicals,Unspecified,Addgene Inc.,98473671, 41.83 ,Chemicals
BEIS,UKRI - MRC,07/05/2019,Chemicals,Unspecified,Addgene Inc.,98475381, 41.83 ,Chemicals
BEIS,UKRI - MRC,14/05/2019,Chemicals,CORE - Lymphocyte Development,Addgene Inc.,98479650, 41.54 ,Chemicals
BEIS,UKRI - MRC,02/05/2019,Chemicals,Unspecified,Addgene Inc.,98473306, 34.86 ,Chemicals
BEIS,UKRI - MRC,02/05/2019,Chemicals,Unspecified,Addgene Inc.,98473665, 34.86 ,Chemicals
BEIS,UKRI - MRC,14/05/2019,Postage & Courier Services,Unspecified,Addgene Inc.,98479289, 34.33 ,Postage & Courier Services
BEIS,UKRI - MRC,14/05/2019,Chemicals,CORE - Lymphocyte Development,Addgene Inc.,98479650,-6.92 ,Chemicals
BEIS,UKRI - MRC,02/05/2019,Chemicals,CORE - Metabolism and Gene Regulation,Addgene Inc.,98473548,-6.97 ,Chemicals
BEIS,UKRI - MRC,02/05/2019,Chemicals,Unspecified,Addgene Inc.,98473554,-6.97 ,Chemicals
BEIS,UKRI - MRC,02/05/2019,Chemicals,Unspecified,Addgene Inc.,98473671,-6.97 ,Chemicals
BEIS,UKRI - MRC,07/05/2019,Chemicals,Unspecified,Addgene Inc.,98475381,-6.97 ,Chemicals
BEIS,UKRI - MRC,07/05/2019,Postage & Courier Services,CORE - Cell Proliferation,Addgene Inc.,98408106,-6.99 ,Postage & Courier Services
BEIS,UKRI - MRC,23/05/2019,Postage & Courier Services,Unspecified,Addgene Inc.,98489866,-7.08 ,Postage & Courier Services
BEIS,UKRI - MRC,28/05/2019,Chemicals,CORE - LMS Germline and Pluripotency,Addgene Inc.,98489562,-7.08 ,Chemicals
BEIS,UKRI - MRC,30/05/2019,Chemicals,CORE - Telomere Replication and Stability,Addgene Inc.,98492221,-7.09 ,Chemicals
BEIS,UKRI - MRC,14/05/2019,Chemicals,Unspecified,Addgene Inc.,98479289,-9.92 ,Chemicals
BEIS,UKRI - MRC,14/05/2019,Chemicals,CORE - Lymphocyte Development,Addgene Inc.,98479650,-10.00 ,Chemicals
BEIS,UKRI - MRC,14/05/2019,Chemicals,CORE - Lymphocyte Development,Addgene Inc.,98479650,-10.00 ,Chemicals
BEIS,UKRI - MRC,02/05/2019,Chemicals,CORE - Metabolism and Gene Regulation,Addgene Inc.,98473548,-10.07 ,Chemicals
BEIS,UKRI - MRC,02/05/2019,Chemicals,CORE - Metabolism and Gene Regulation,Addgene Inc.,98473548,-10.07 ,Chemicals
BEIS,UKRI - MRC,02/05/2019,Chemicals,Unspecified,Addgene Inc.,98473554,-10.07 ,Chemicals
BEIS,UKRI - MRC,02/05/2019,Chemicals,Unspecified,Addgene Inc.,98473671,-10.07 ,Chemicals
BEIS,UKRI - MRC,07/05/2019,Chemicals,Unspecified,Addgene Inc.,98475381,-10.07 ,Chemicals
BEIS,UKRI - MRC,07/05/2019,Chemicals,CORE - Cell Proliferation,Addgene Inc.,98408106,-10.09 ,Chemicals
BEIS,UKRI - MRC,28/05/2019,Chemicals,CORE - LMS Germline and Pluripotency,Addgene Inc.,98489562,-10.23 ,Chemicals
BEIS,UKRI - MRC,28/05/2019,Chemicals,CORE - LMS Germline and Pluripotency,Addgene Inc.,98489562,-10.23 ,Chemicals
BEIS,UKRI - MRC,30/05/2019,Chemicals,CORE - Telomere Replication and Stability,Addgene Inc.,98492221,-10.24 ,Chemicals
BEIS,UKRI - MRC,21/05/2019,Postage & Courier Services,Unspecified,Addgene Inc.,98474736,-15.49 ,Postage & Courier Services
BEIS,UKRI - MRC,02/05/2019,Chemicals,Unspecified,Addgene Inc.,98473556,-17.04 ,Chemicals
BEIS,UKRI - MRC,02/05/2019,Chemicals,Unspecified,Addgene Inc.,98473724,-17.04 ,Chemicals
BEIS,UKRI - MRC,28/05/2019,Chemicals,Unspecified,Addgene Inc.,98489693,-17.31 ,Chemicals
BEIS,UKRI - MRC,30/05/2019,Chemicals,Unspecified,Addgene Inc.,98491348,-17.32 ,Chemicals
BEIS,UKRI - MRC,23/05/2019,Chemicals,Unspecified,Addgene Inc.,98489866,-20.45 ,Chemicals
BEIS,UKRI - MRC,02/05/2019,Chemicals,CORE - Gut Signalling and Metabolism,Addgene Inc.,98469014,-36.96 ,Chemicals
BEIS,UKRI - MRC,21/05/2019,Chemicals,Unspecified,Addgene Inc.,98486891,-37.76 ,Chemicals
BEIS,UKRI - MRC,16/05/2019,Chemicals,Unspecified,Addgene Inc.,98481429,-46.92 ,Chemicals
BEIS,UKRI - UKRI,08/05/2019,T&S UK - Public Transport,UKRI - Private Office,Addison Lee Plc,98471760, 419.11 ,T&S UK - Public Transport
BEIS,UKRI - Research England,16/05/2019,T&S UK - Public Transport,RE - Research,Addison Lee Plc,98483765, 21.66 ,T&S UK - Public Transport
BEIS,UKRI - STFC,28/05/2019,Research Consumables,Harwell Business Incubation,Adept Pure Water Ltd,98491251," 1,963.20 ",Research Consumables
BEIS,UKRI - NERC,02/05/2019,Catering Contracts,BGS CANTEEN,Adkins Bakery Ltd,98472752, 124.24 ,Catering Contracts
BEIS,UKRI - NERC,02/05/2019,Provisions ( Food etc),NERC - NOC NMFSS Cook Cruises Marine,Admiral Harding Ltd,98474911," 4,473.34 ",Provisions ( Food etc)
BEIS,UKRI - NERC,02/05/2019,Provisions ( Food etc),NERC - NOC NMFSS Cook Cruises Marine,Admiral Harding Ltd,98474902," 4,191.12 ",Provisions ( Food etc)
BEIS,UKRI - NERC,21/05/2019,Laundry Services,NERC - NOC NMFSS Research Ships Operation,Admiral Harding Ltd,98487834," 3,535.73 ",Laundry Services
BEIS,UKRI - NERC,02/05/2019,Provisions ( Food etc),NERC - NOC NMFSS Cook Cruises Marine,Admiral Harding Ltd,98474904," 3,293.55 ",Provisions ( Food etc)
BEIS,UKRI - NERC,02/05/2019,Provisions ( Food etc),NERC - NOC NMFSS Cook Cruises Marine,Admiral Harding Ltd,98474899," 2,682.07 ",Provisions ( Food etc)
BEIS,UKRI - NERC,13/05/2019,Other Debtors,NERC - NOC NMFSS James Cook Bond,Admiral Harding Ltd,98478901," 2,482.90 ",Other Debtors
BEIS,UKRI - NERC,10/05/2019,General Building Maintenance,NERC - NOC NMFSS Research Ships Engineering,Admiral Harding Ltd,98478269," 1,276.00 ",General Building Maintenance
BEIS,UKRI - NERC,02/05/2019,Printing & Stationery,NERC - NOC NMFSS Research Ships Operation,Admiral Harding Ltd,98474895, 901.60 ,Printing & Stationery
BEIS,UKRI - NERC,02/05/2019,Laundry Services,NERC - NOC NMFSS Research Ships Operation,Admiral Harding Ltd,98474897, 610.40 ,Laundry Services
BEIS,UKRI - NERC,02/05/2019,Laundry Services,NERC - NOC NMFSS Research Ships Operation,Admiral Harding Ltd,98474886, 478.30 ,Laundry Services
BEIS,UKRI - NERC,29/05/2019,Ship Repairs & Refit,NERC - BAS Ships Engineering,Admiral Harding Ltd,98491818, 347.50 ,Ship Repairs & Refit
BEIS,UKRI - NERC,09/05/2019,Laundry Services,NERC - NOC NMFSS Research Ships Operation,Admiral Harding Ltd,98477650, 307.04 ,Laundry Services
BEIS,UKRI - NERC,02/05/2019,General Building Maintenance,NERC - NOC NMFSS Research Ships Engineering,Admiral Harding Ltd,98474890, 239.20 ,General Building Maintenance
BEIS,UKRI - NERC,08/05/2019,Other Debtors,NERC - NOC NMFSS James Cook Bond,Admiral Harding Ltd,98477076, 225.36 ,Other Debtors
BEIS,UKRI - NERC,30/05/2019,Catering Contracts,NERC - NOC British Oceanographic Data Centre Projects,Admiral Harding Ltd,98484327, 160.00 ,Catering Contracts
BEIS,UKRI - NERC,09/05/2019,Protective Clothing,NERC - NOC NMFSS Research Ships Operation,Admiral Harding Ltd,98477650, 93.21 ,Protective Clothing
BEIS,UKRI - NERC,02/05/2019,Protective Clothing,NERC - NOC NMFSS Research Ships Operation,Admiral Harding Ltd,98474882, 70.00 ,Protective Clothing
BEIS,UKRI - NERC,02/05/2019,Provisions ( Food etc),NERC - NOC NMFSS Cook Cruises Marine,Admiral Harding Ltd,98474915, 66.66 ,Provisions ( Food etc)
BEIS,UKRI - NERC,08/05/2019,Printing & Stationery,NERC - NOC NMFSS Research Ships Operation,Admiral Harding Ltd,98477079, 48.00 ,Printing & Stationery
BEIS,UKRI - NERC,30/05/2019,Catering Contracts,NERC - NOC British Oceanographic Data Centre Projects,Admiral Harding Ltd,98484327, 32.00 ,Catering Contracts
BEIS,UKRI - NERC,29/05/2019,Ship Repairs & Refit,NERC - BAS Ships Engineering,Admiral Harding Ltd,98491818, 18.50 ,Ship Repairs & Refit
BEIS,UKRI - NERC,30/05/2019,Catering Contracts,NERC - NOC British Oceanographic Data Centre Projects,Admiral Harding Ltd,98484327,-5.33 ,Catering Contracts
BEIS,UKRI - NERC,30/05/2019,Catering Contracts,NERC - NOC British Oceanographic Data Centre Projects,Admiral Harding Ltd,98484327,-26.67 ,Catering Contracts
BEIS,UKRI - NERC,13/05/2019,Other Debtors,NERC - NOC NMFSS James Cook Bond,Admiral Harding Ltd,98478901,-413.82 ,Other Debtors
BEIS,UKRI - STFC,22/05/2019,Books Professional Journals & Guides,Stakeholder Engagement,Adnod Cyf,98488402, 66.00 ,Books Professional Journals & Guides
BEIS,UKRI - UKRI,02/05/2019,Marketing & PR,UKRI - Communication and Engagement,Adnod Cyf,98472678, 30.00 ,Marketing & PR
BEIS,UKRI - Innovate UK,03/05/2019,Resource grants,Aerospace,ADS GROUP LTD,32271," 293,934.17 ",Resource grants
BEIS,UKRI - Innovate UK,31/05/2019,Resource grants,Aerospace,ADS GROUP LTD,35836," 163,766.89 ",Resource grants
BEIS,UKRI - Innovate UK,31/05/2019,Resource grants,Aerospace,ADS GROUP LTD,35835," 75,899.50 ",Resource grants
BEIS,UKRI - Innovate UK,31/05/2019,Resource grants,Aerospace,ADS GROUP LTD,35834," 20,643.73 ",Resource grants
BEIS,UKRI - NERC,15/05/2019,Research Consumables,NERC - BGS MINERALS AND WASTE - PROJECT OWNING,Adtech Polymer Engineering Ltd,98474172, 141.07 ,Research Consumables
BEIS,UKRI - NERC,15/05/2019,Research Consumables,NERC - BGS MINERALS AND WASTE - PROJECT OWNING,Adtech Polymer Engineering Ltd,98474172, 29.41 ,Research Consumables
BEIS,UKRI - NERC,15/05/2019,Postage & Courier Services,NERC - BGS MINERALS AND WASTE - PROJECT OWNING,Adtech Polymer Engineering Ltd,98474172, 14.00 ,Postage & Courier Services
BEIS,UKRI - NERC,15/05/2019,Postage & Courier Services,NERC - BGS MINERALS AND WASTE - PROJECT OWNING,Adtech Polymer Engineering Ltd,98474172, 2.80 ,Postage & Courier Services
BEIS,UKRI - Innovate UK,13/05/2019,Assessor Fees,Advanced Therapies,ADUMATECH LTD,35530," 1,728.00 ",Assessor Fees
BEIS,UKRI - Innovate UK,24/05/2019,Resource grants,Advanced Therapies,ADVANCED EXPERT SYSTEMS LIMITED,35229," 46,467.61 ",Resource grants
BEIS,UKRI - Innovate UK,10/05/2019,Resource grants,Emerging Technologies,ADVANCED HALL SENSORS LTD,33236," 17,834.85 ",Resource grants
BEIS,UKRI - Innovate UK,03/05/2019,Resource grants,Newton,Advanced Microwave Technologies Ltd,32115," 24,871.39 ",Resource grants
BEIS,UKRI - Innovate UK,13/05/2019,Post-grant evaluation,CHALLENGE - Energy Batteries,ADVANCED PROPULSION CENTRE UK LTD,33979," 3,574.80 ",Post-grant evaluation
BEIS,UKRI - Innovate UK,01/05/2019,Post-grant evaluation,CHALLENGE - Energy Batteries,ADVANCED PROPULSION CENTRE UK LTD,33977," 3,574.80 ",Post-grant evaluation
BEIS,UKRI - Innovate UK,01/05/2019,Events/conference/exhibitions,CHALLENGE - Energy Batteries,ADVANCED PROPULSION CENTRE UK LTD,35576," 3,300.00 ",Events/conference/exhibitions
BEIS,UKRI - STFC,16/05/2019,Legal & Professional Services,Hartree Commercial Engagement,ADVANCED PROPULSION CENTRE UK LTD,98483769, 762.41 ,Legal & Professional Services
BEIS,UKRI - STFC,24/05/2019,Purchase of non capital equipment,SCD Overheads,Advanced Watercoolers Ltd T/A Advanced Watercoolers,98483543, 192.00 ,Purchase of non capital equipment
BEIS,UKRI - STFC,24/05/2019,Purchase of non capital equipment,SCD Overheads,Advanced Watercoolers Ltd T/A Advanced Watercoolers,98484725, 27.46 ,Purchase of non capital equipment
BEIS,UKRI - STFC,24/05/2019,Purchase of non capital equipment,SCD Overheads,Advanced Watercoolers Ltd T/A Advanced Watercoolers,98484725, 24.00 ,Purchase of non capital equipment
BEIS,UKRI - STFC,02/05/2019,Safety Materials & Equipment,ISIS Instrumentation,Advantiv Limited,98474849," 7,903.65 ",Safety Materials & Equipment
BEIS,UKRI - NERC,24/05/2019,Research Consumables,NERC - CEH Analytical Chemistry,Advent Research Materials Ltd,98488982, 54.00 ,Research Consumables
BEIS,UKRI - Innovate UK,24/05/2019,Resource grants,Emerging Technologies,ADVISE-DETA LIMITED,35242," 21,468.30 ",Resource grants
BEIS,UKRI - Research England,14/05/2019,Research Grant Expenditure,RE- Quality Research (QR),AECC University College,98478663, 524.90 ,Research Grant Expenditure
BEIS,UKRI - Innovate UK,17/05/2019,Resource grants,Connect Autonomous Vehicles,AECOM,34149," 33,384.25 ",Resource grants
BEIS,UKRI - Innovate UK,17/05/2019,Resource grants,Connect Autonomous Vehicles,AECOM,34173," 28,663.68 ",Resource grants
BEIS,UKRI - Innovate UK,17/05/2019,Resource grants,Connect Autonomous Vehicles,AECOM,34141," 26,704.23 ",Resource grants
BEIS,UKRI - Innovate UK,10/05/2019,Resource grants,Connect Autonomous Vehicles,AECOM,33523," 23,704.10 ",Resource grants
BEIS,UKRI - Innovate UK,17/05/2019,Resource grants,Connect Autonomous Vehicles,AECOM,34135," 21,552.93 ",Resource grants
BEIS,UKRI - Innovate UK,17/05/2019,Resource grants,Connect Autonomous Vehicles,AECOM,34133," 16,382.56 ",Resource grants
BEIS,UKRI - STFC,02/05/2019,Projects CIP,National Satellite Test Facility,Aecom Ltd,98472658," 16,467.60 ",Projects CIP
BEIS,UKRI - STFC,30/05/2019,Projects CIP,National Satellite Test Facility,Aecom Ltd,98492705," 16,467.60 ",Projects CIP
BEIS,UKRI - STFC,02/05/2019,Projects CIP,Rosalind Franklin Institute,Aecom Ltd,98472652," 13,437.60 ",Projects CIP
BEIS,UKRI - STFC,30/05/2019,Projects CIP,Rosalind Franklin Institute,Aecom Ltd,98492696," 13,437.60 ",Projects CIP
BEIS,UKRI - STFC,02/05/2019,Projects CIP,TD R115,Aecom Ltd,98472656," 8,893.20 ",Projects CIP
BEIS,UKRI - STFC,30/05/2019,Projects CIP,TD R115,Aecom Ltd,98492701," 8,893.20 ",Projects CIP
BEIS,UKRI - STFC,02/05/2019,Projects CIP,National Satellite Test Facility,Aecom Ltd,98472654," 6,099.60 ",Projects CIP
BEIS,UKRI - STFC,30/05/2019,Projects CIP,National Satellite Test Facility,Aecom Ltd,98492703," 6,099.60 ",Projects CIP
BEIS,UKRI - STFC,10/05/2019,Projects CIP,ISIS Accelerator,Aecom Ltd,98478265," 2,400.00 ",Projects CIP
BEIS,UKRI - STFC,10/05/2019,Projects CIP,ISIS Accelerator,Aecom Ltd,98478265," 1,200.00 ",Projects CIP
BEIS,UKRI - STFC,02/05/2019,Projects CIP,National Satellite Test Facility,Aecom Ltd,98472655," 1,176.00 ",Projects CIP
BEIS,UKRI - STFC,30/05/2019,Projects CIP,National Satellite Test Facility,Aecom Ltd,98492699," 1,176.00 ",Projects CIP
BEIS,UKRI - STFC,02/05/2019,Projects CIP,Rosalind Franklin Institute,Aecom Ltd,98472660, 43.20 ,Projects CIP
BEIS,UKRI - STFC,30/05/2019,Projects CIP,Rosalind Franklin Institute,Aecom Ltd,98491672, 43.20 ,Projects CIP
BEIS,UKRI - STFC,08/05/2019,Freight Charges,National Satellite Test Facility,AFFA Ltd (Abingdon Freight Forwarding Agency Ltd),98465800, 175.66 ,Freight Charges
BEIS,UKRI - STFC,03/05/2019,Miscellaneous Charges,ISIS Accelerator,AFFA Ltd (Abingdon Freight Forwarding Agency Ltd),98450498, 99.90 ,Miscellaneous Charges
BEIS,UKRI - STFC,08/05/2019,Freight Charges,CLF Support Group,AFFA Ltd (Abingdon Freight Forwarding Agency Ltd),98465797, 44.42 ,Freight Charges
BEIS,UKRI - MRC,23/05/2019,Research Consumables,Electron Microscopy LMB,Agar Scientific Ltd,98489943," 1,263.86 ",Research Consumables
BEIS,UKRI - MRC,17/05/2019,Research Consumables,Unspecified,Agar Scientific Ltd,98484129," 1,164.12 ",Research Consumables
BEIS,UKRI - MRC,23/05/2019,Research & Scientific Equipment,Unspecified,Agar Scientific Ltd,98489930, 632.64 ,Research & Scientific Equipment
BEIS,UKRI - STFC,24/05/2019,Research Consumables,ISIS Newton Fund,Agar Scientific Ltd,98484951, 221.00 ,Research Consumables
BEIS,UKRI - MRC,21/05/2019,Research & Scientific Equipment,Micro Facility,Agar Scientific Ltd,98444315, 102.38 ,Research & Scientific Equipment
BEIS,UKRI - MRC,22/05/2019,Research Consumables,Unspecified,Agar Scientific Ltd,98488428, 70.20 ,Research Consumables
BEIS,UKRI - MRC,02/05/2019,Research Consumables,Unspecified,Agar Scientific Ltd,98474919, 58.82 ,Research Consumables
BEIS,UKRI - MRC,01/05/2019,Research Consumables,Unspecified,Agar Scientific Ltd,98473294, 41.68 ,Research Consumables
BEIS,UKRI - MRC,02/05/2019,Research Consumables,Unspecified,Agar Scientific Ltd,98474919, 41.38 ,Research Consumables
BEIS,UKRI - MRC,01/05/2019,Research Consumables,Unspecified,Agar Scientific Ltd,98473294, 40.40 ,Research Consumables
BEIS,UKRI - MRC,01/05/2019,Research Consumables,Unspecified,Agar Scientific Ltd,98473294, 9.00 ,Research Consumables
BEIS,UKRI - MRC,22/05/2019,Postage & Courier Services,Unspecified,Agar Scientific Ltd,98488428, 9.00 ,Postage & Courier Services
BEIS,UKRI - STFC,24/05/2019,Research Consumables,ISIS Newton Fund,Agar Scientific Ltd,98484951, 7.50 ,Research Consumables
BEIS,UKRI - MRC,17/05/2019,Research Consumables,Unspecified,Agar Scientific Ltd,98484129, 7.50 ,Research Consumables
BEIS,UKRI - MRC,23/05/2019,Research Consumables,Electron Microscopy LMB,Agar Scientific Ltd,98489943, 7.50 ,Research Consumables
BEIS,UKRI - STFC,24/05/2019,Research Consumables,ISIS Newton Fund,Agar Scientific Ltd,98484951, 1.50 ,Research Consumables
BEIS,UKRI - MRC,17/05/2019,Research Consumables,Unspecified,Agar Scientific Ltd,98484129, 1.50 ,Research Consumables
BEIS,UKRI - MRC,23/05/2019,Research Consumables,Electron Microscopy LMB,Agar Scientific Ltd,98489943, 1.50 ,Research Consumables
BEIS,UKRI - MRC,21/05/2019,Research & Scientific Equipment,Micro Facility,Agar Scientific Ltd,98444315,-5.09 ,Research & Scientific Equipment
BEIS,UKRI - MRC,21/05/2019,Research & Scientific Equipment,Micro Facility,Agar Scientific Ltd,98444315,-25.47 ,Research & Scientific Equipment
BEIS,UKRI - Innovate UK,31/05/2019,Resource grants,ISCF - MM,A-GAS ELECTRONIC MATERIALS LTD,35842," 7,675.29 ",Resource grants
BEIS,UKRI - Innovate UK,01/05/2019,Not Co-Funded Monitoring Officer Fees,Food and Agriculture �����������������������������������,AG-BIO LTD,33756," 1,040.49 ",Not Co-Funded Monitoring Officer Fees
BEIS,UKRI - Innovate UK,01/05/2019,Not Co-Funded Monitoring Officer Travel & Subs,Food and Agriculture �����������������������������������,AG-BIO LTD,33756," 1,040.49 ",Not Co-Funded Monitoring Officer Travel & Subs
BEIS,UKRI - Innovate UK,14/05/2019,Not Co-Funded Monitoring Officer Fees,Non Core - Agritech Centres,AG-BIO LTD,38860, 750.00 ,Not Co-Funded Monitoring Officer Fees
BEIS,UKRI - Innovate UK,14/05/2019,Not Co-Funded Monitoring Officer Fees,Non Core - Agritech Centres,AG-BIO LTD,38858, 750.00 ,Not Co-Funded Monitoring Officer Fees
BEIS,UKRI - Innovate UK,01/05/2019,Not Co-Funded Monitoring Officer Fees,Food and Agriculture �����������������������������������,AG-BIO LTD,33821, 750.00 ,Not Co-Funded Monitoring Officer Fees
BEIS,UKRI - Innovate UK,01/05/2019,Not Co-Funded Monitoring Officer Fees,Food and Agriculture �����������������������������������,AG-BIO LTD,33753, 750.00 ,Not Co-Funded Monitoring Officer Fees
BEIS,UKRI - STFC,31/05/2019,Other Debtors,ING - La Palma,"Agencia Casanova, S.L.",98494262, 190.54 ,Other Debtors
BEIS,UKRI - NERC,07/05/2019,T&S Overseas - Other Charges,NERC � BAS Antarctic Travel & Subsistence,Agencias Universales Sa,98472423," 6,521.82 ",T&S Overseas - Other Charges
BEIS,UKRI - NERC,07/05/2019,Port & Airport Expenses,NERC - BAS Air Unit,Agencias Universales Sa,98472423," 5,863.64 ",Port & Airport Expenses
BEIS,UKRI - NERC,07/05/2019,Provisions ( Food etc),NERC - BAS Ship & Station Operations Management,Agencias Universales Sa,98472423," 5,433.03 ",Provisions ( Food etc)
BEIS,UKRI - NERC,07/05/2019,Port & Airport Expenses,NERC - BAS Air Unit,Agencias Universales Sa,98472423," 5,375.61 ",Port & Airport Expenses
BEIS,UKRI - NERC,07/05/2019,Provisions ( Food etc),NERC - BAS Ship & Station Operations Management,Agencias Universales Sa,98472423, 18.27 ,Provisions ( Food etc)
BEIS,UKRI - Innovate UK,01/05/2019,Recruitment,HR & Information Assurance UKRI,Agenda Resource Management,34107, 935.45 ,Recruitment
BEIS,UKRI - Innovate UK,01/05/2019,Recruitment,HR & Information Assurance UKRI,Agenda Resource Management,34107, 935.45 ,Recruitment
BEIS,UKRI - Innovate UK,01/05/2019,Recruitment,HR & Information Assurance UKRI,Agenda Resource Management,34107, 935.45 ,Recruitment
BEIS,UKRI - Innovate UK,01/05/2019,Recruitment,HR & Information Assurance UKRI,Agenda Resource Management,34107, 935.45 ,Recruitment
BEIS,UKRI - Innovate UK,01/05/2019,Recruitment,HR & Information Assurance UKRI,Agenda Resource Management,34107, 935.45 ,Recruitment
BEIS,UKRI - Innovate UK,01/05/2019,Recruitment,HR & Information Assurance UKRI,Agenda Resource Management,34107, 935.45 ,Recruitment
BEIS,UKRI - Innovate UK,01/05/2019,Recruitment,HR & Information Assurance UKRI,Agenda Resource Management,34107, 935.45 ,Recruitment
BEIS,UKRI - Innovate UK,01/05/2019,Recruitment,HR & Information Assurance UKRI,Agenda Resource Management,34107, 935.45 ,Recruitment
BEIS,UKRI - Innovate UK,01/05/2019,Recruitment,HR & Information Assurance UKRI,Agenda Resource Management,34107, 935.45 ,Recruitment
BEIS,UKRI - Innovate UK,01/05/2019,Recruitment,HR & Information Assurance UKRI,Agenda Resource Management,34107, 935.45 ,Recruitment
BEIS,UKRI - Innovate UK,01/05/2019,Recruitment,HR & Information Assurance UKRI,Agenda Resource Management,34107, 935.45 ,Recruitment
BEIS,UKRI - Innovate UK,01/05/2019,Recruitment,HR & Information Assurance UKRI,Agenda Resource Management,34107, 935.45 ,Recruitment
BEIS,UKRI - Innovate UK,01/05/2019,Recruitment,HR & Information Assurance UKRI,Agenda Resource Management,34109, 623.63 ,Recruitment
BEIS,UKRI - Innovate UK,01/05/2019,Recruitment,HR & Information Assurance UKRI,Agenda Resource Management,34109, 623.63 ,Recruitment
BEIS,UKRI - Innovate UK,01/05/2019,Recruitment,HR & Information Assurance UKRI,Agenda Resource Management,34109, 623.63 ,Recruitment
BEIS,UKRI - Innovate UK,01/05/2019,Recruitment,HR & Information Assurance UKRI,Agenda Resource Management,34109, 623.63 ,Recruitment
BEIS,UKRI - Innovate UK,01/05/2019,Recruitment,HR & Information Assurance UKRI,Agenda Resource Management,34109, 623.63 ,Recruitment
BEIS,UKRI - Innovate UK,01/05/2019,Recruitment,HR & Information Assurance UKRI,Agenda Resource Management,34109, 623.63 ,Recruitment
BEIS,UKRI - Innovate UK,01/05/2019,Recruitment,HR & Information Assurance UKRI,Agenda Resource Management,34109, 623.63 ,Recruitment
BEIS,UKRI - Innovate UK,01/05/2019,Recruitment,HR & Information Assurance UKRI,Agenda Resource Management,34109, 623.63 ,Recruitment
BEIS,UKRI - Innovate UK,01/05/2019,Recruitment,HR & Information Assurance UKRI,Agenda Resource Management,34110, 374.83 ,Recruitment
BEIS,UKRI - Innovate UK,01/05/2019,Recruitment,HR & Information Assurance UKRI,Agenda Resource Management,34110, 374.83 ,Recruitment
BEIS,UKRI - Innovate UK,01/05/2019,Recruitment,HR & Information Assurance UKRI,Agenda Resource Management,34110, 374.83 ,Recruitment
BEIS,UKRI - Innovate UK,01/05/2019,Recruitment,HR & Information Assurance UKRI,Agenda Resource Management,34110, 374.83 ,Recruitment
BEIS,UKRI - Innovate UK,14/05/2019,Recruitment,HR & Information Assurance UKRI,Agenda Resource Management,35288, 311.82 ,Recruitment
BEIS,UKRI - Innovate UK,14/05/2019,Recruitment,HR & Information Assurance UKRI,Agenda Resource Management,35288, 311.82 ,Recruitment
BEIS,UKRI - Innovate UK,14/05/2019,Recruitment,HR & Information Assurance UKRI,Agenda Resource Management,35288, 311.82 ,Recruitment
BEIS,UKRI - Innovate UK,14/05/2019,Recruitment,HR & Information Assurance UKRI,Agenda Resource Management,35288, 311.82 ,Recruitment
BEIS,UKRI - Innovate UK,01/05/2019,Recruitment,HR & Information Assurance UKRI,Agenda Resource Management,35286, 311.82 ,Recruitment
BEIS,UKRI - Innovate UK,01/05/2019,Recruitment,HR & Information Assurance UKRI,Agenda Resource Management,35286, 311.82 ,Recruitment
BEIS,UKRI - Innovate UK,01/05/2019,Recruitment,HR & Information Assurance UKRI,Agenda Resource Management,35286, 311.82 ,Recruitment
BEIS,UKRI - Innovate UK,01/05/2019,Recruitment,HR & Information Assurance UKRI,Agenda Resource Management,35286, 311.82 ,Recruitment
BEIS,UKRI - Innovate UK,01/05/2019,Recruitment,HR & Information Assurance UKRI,Agenda Resource Management,35290, 155.91 ,Recruitment
BEIS,UKRI - Innovate UK,01/05/2019,Recruitment,HR & Information Assurance UKRI,Agenda Resource Management,35290, 155.91 ,Recruitment
BEIS,UKRI - Innovate UK,01/05/2019,Recruitment,HR & Information Assurance UKRI,Agenda Resource Management,35289, 155.91 ,Recruitment
BEIS,UKRI - Innovate UK,01/05/2019,Recruitment,HR & Information Assurance UKRI,Agenda Resource Management,35289, 155.91 ,Recruitment
BEIS,UKRI - Innovate UK,01/05/2019,Recruitment,HR & Information Assurance UKRI,Agenda Resource Management,35287, 155.91 ,Recruitment
BEIS,UKRI - Innovate UK,01/05/2019,Recruitment,HR & Information Assurance UKRI,Agenda Resource Management,35287, 155.91 ,Recruitment
BEIS,UKRI - Innovate UK,01/05/2019,Recruitment,HR & Information Assurance UKRI,Agenda Resource Management,34108, 155.91 ,Recruitment
BEIS,UKRI - Innovate UK,01/05/2019,Recruitment,HR & Information Assurance UKRI,Agenda Resource Management,34108, 155.91 ,Recruitment
BEIS,UKRI - NERC,16/05/2019,Recruitment Costs,NERC - BAS HR Central,Agenda Resource Management Ltd,98481981, 259.82 ,Recruitment Costs
BEIS,UKRI - NERC,16/05/2019,Recruitment Costs,NERC - CEH People and Skills,Agenda Resource Management Ltd,98481985, 252.98 ,Recruitment Costs
BEIS,UKRI - NERC,16/05/2019,Recruitment Costs,NERC - NOC Marine Physics And Ocean Climate,Agenda Resource Management Ltd,98482310, 229.52 ,Recruitment Costs
BEIS,UKRI - STFC,15/05/2019,Recruitment Costs,HR Recruitment,Agenda Resource Management Ltd,98481953, 220.80 ,Recruitment Costs
BEIS,UKRI - MRC,28/05/2019,Recruitment Costs,Cell Biology Miscellaneous Science,Agenda Resource Management Ltd,98490190, 195.65 ,Recruitment Costs
BEIS,UKRI - STFC,28/05/2019,Recruitment Costs,HR Recruitment,Agenda Resource Management Ltd,98490264, 194.73 ,Recruitment Costs
BEIS,UKRI - MRC,16/05/2019,Recruitment Costs,LMB Central Miscellaneous Science,Agenda Resource Management Ltd,98481994, 175.52 ,Recruitment Costs
BEIS,UKRI - MRC,09/05/2019,General Building Maintenance,Unspecified,Agenda Resource Management Ltd,98477842, 174.55 ,General Building Maintenance
BEIS,UKRI - BBSRC,01/05/2019,Recruitment Costs,PDG - Director,Agenda Resource Management Ltd,98472489, 160.91 ,Recruitment Costs
BEIS,UKRI - ESRC,24/05/2019,Recruitment Costs,Corporate Services,Agenda Resource Management Ltd,98490165, 160.91 ,Recruitment Costs
BEIS,UKRI - NERC,01/05/2019,Recruitment Costs,NERC - NOC Human Resources,Agenda Resource Management Ltd,98472377, 160.91 ,Recruitment Costs
BEIS,UKRI - NERC,02/05/2019,Recruitment Costs,NERC - NOC Human Resources,Agenda Resource Management Ltd,98472372, 160.91 ,Recruitment Costs
BEIS,UKRI - NERC,02/05/2019,Recruitment Costs,NERC - NOC Human Resources,Agenda Resource Management Ltd,98472373, 160.91 ,Recruitment Costs
BEIS,UKRI - NERC,02/05/2019,Recruitment Costs,NERC - NOC Human Resources,Agenda Resource Management Ltd,98472376, 160.91 ,Recruitment Costs
BEIS,UKRI - NERC,02/05/2019,Recruitment Costs,NERC - BAS HR Central,Agenda Resource Management Ltd,98472383, 160.91 ,Recruitment Costs
BEIS,UKRI - NERC,02/05/2019,Recruitment Costs,NERC - NOC Human Resources,Agenda Resource Management Ltd,98472384, 160.91 ,Recruitment Costs
BEIS,UKRI - NERC,02/05/2019,Recruitment Costs,NERC - BAS HR Central,Agenda Resource Management Ltd,98472386, 160.91 ,Recruitment Costs
BEIS,UKRI - NERC,02/05/2019,Recruitment Costs,NERC - BAS HR Central,Agenda Resource Management Ltd,98473166, 160.91 ,Recruitment Costs
BEIS,UKRI - NERC,08/05/2019,Recruitment Costs,NERC - NOC Human Resources,Agenda Resource Management Ltd,98474272, 160.91 ,Recruitment Costs
BEIS,UKRI - NERC,08/05/2019,Recruitment Costs,NERC - NOC Human Resources,Agenda Resource Management Ltd,98474273, 160.91 ,Recruitment Costs
BEIS,UKRI - NERC,08/05/2019,Recruitment Costs,NERC - BAS HR Central,Agenda Resource Management Ltd,98474274, 160.91 ,Recruitment Costs
BEIS,UKRI - NERC,08/05/2019,Recruitment Costs,NERC - BAS HR Central,Agenda Resource Management Ltd,98474275, 160.91 ,Recruitment Costs
BEIS,UKRI - NERC,16/05/2019,Recruitment Costs,NERC - CEH People and Skills,Agenda Resource Management Ltd,98481978, 160.91 ,Recruitment Costs
BEIS,UKRI - NERC,16/05/2019,Recruitment Costs,NERC - BAS HR Central,Agenda Resource Management Ltd,98481981, 160.91 ,Recruitment Costs
BEIS,UKRI - NERC,16/05/2019,Recruitment Costs,NERC - NOC Human Resources,Agenda Resource Management Ltd,98481987, 160.91 ,Recruitment Costs
BEIS,UKRI - NERC,16/05/2019,Recruitment Costs,NERC - NOC Human Resources,Agenda Resource Management Ltd,98481990, 160.91 ,Recruitment Costs
BEIS,UKRI - NERC,16/05/2019,Recruitment Costs,NERC - BAS HR Central,Agenda Resource Management Ltd,98481992, 160.91 ,Recruitment Costs
BEIS,UKRI - NERC,16/05/2019,Recruitment Costs,NERC - NOC Marine Physics And Ocean Climate,Agenda Resource Management Ltd,98482310, 160.91 ,Recruitment Costs
BEIS,UKRI - NERC,17/05/2019,Recruitment Costs,NERC - BGS HUMAN RESOURCES - PROJECT OWNING,Agenda Resource Management Ltd,98481975, 160.91 ,Recruitment Costs
BEIS,UKRI - NERC,24/05/2019,Recruitment Costs,NERC - CEH People and Skills,Agenda Resource Management Ltd,98490224, 160.91 ,Recruitment Costs
BEIS,UKRI - NERC,24/05/2019,Recruitment Costs,NERC - NOC Human Resources,Agenda Resource Management Ltd,98490238, 160.91 ,Recruitment Costs
BEIS,UKRI - NERC,28/05/2019,Recruitment Costs,NERC - NOC Human Resources,Agenda Resource Management Ltd,98489470, 160.91 ,Recruitment Costs
BEIS,UKRI - NERC,28/05/2019,Recruitment Costs,NERC - NOC Human Resources,Agenda Resource Management Ltd,98489472, 160.91 ,Recruitment Costs
BEIS,UKRI - NERC,28/05/2019,Recruitment Costs,NERC - CEH People and Skills,Agenda Resource Management Ltd,98489478, 160.91 ,Recruitment Costs
BEIS,UKRI - NERC,28/05/2019,Recruitment Costs,NERC - BAS HR Central,Agenda Resource Management Ltd,98489479, 160.91 ,Recruitment Costs
BEIS,UKRI - NERC,28/05/2019,Recruitment Costs,NERC - SO Head Office Services,Agenda Resource Management Ltd,98489482, 160.91 ,Recruitment Costs
BEIS,UKRI - NERC,28/05/2019,Recruitment Costs,NERC - CEH People and Skills,Agenda Resource Management Ltd,98489486, 160.91 ,Recruitment Costs
BEIS,UKRI - NERC,28/05/2019,Recruitment Costs,NERC - CEH People and Skills,Agenda Resource Management Ltd,98489489, 160.91 ,Recruitment Costs
BEIS,UKRI - NERC,28/05/2019,Staff Overtime,NERC - BGS HUMAN RESOURCES - PROJECT OWNING,Agenda Resource Management Ltd,98490226, 160.91 ,Staff Overtime
BEIS,UKRI - NERC,28/05/2019,Recruitment Costs,NERC - NOC Human Resources,Agenda Resource Management Ltd,98490228, 160.91 ,Recruitment Costs
BEIS,UKRI - NERC,31/05/2019,Recruitment Costs,NERC - BAS HR Central,Agenda Resource Management Ltd,98493714, 160.91 ,Recruitment Costs
BEIS,UKRI - NERC,31/05/2019,Recruitment Costs,NERC - BGS HUMAN RESOURCES - PROJECT OWNING,Agenda Resource Management Ltd,98493717, 160.91 ,Recruitment Costs
BEIS,UKRI - NERC,31/05/2019,Recruitment Costs,NERC - NOC Human Resources,Agenda Resource Management Ltd,98493719, 160.91 ,Recruitment Costs
BEIS,UKRI - NERC,31/05/2019,Recruitment Costs,NERC - CEH People and Skills,Agenda Resource Management Ltd,98493721, 160.91 ,Recruitment Costs
BEIS,UKRI - STFC,01/05/2019,Recruitment Costs,HR Recruitment,Agenda Resource Management Ltd,98473154, 160.91 ,Recruitment Costs
BEIS,UKRI - STFC,02/05/2019,Recruitment Costs,HR Recruitment,Agenda Resource Management Ltd,98473153, 160.91 ,Recruitment Costs
BEIS,UKRI - STFC,02/05/2019,Recruitment Costs,HR Recruitment,Agenda Resource Management Ltd,98473155, 160.91 ,Recruitment Costs
BEIS,UKRI - STFC,02/05/2019,Recruitment Costs,HR Recruitment,Agenda Resource Management Ltd,98473160, 160.91 ,Recruitment Costs
BEIS,UKRI - STFC,02/05/2019,Recruitment Costs,HR Recruitment,Agenda Resource Management Ltd,98473161, 160.91 ,Recruitment Costs
BEIS,UKRI - STFC,02/05/2019,Recruitment Costs,HR Recruitment,Agenda Resource Management Ltd,98473163, 160.91 ,Recruitment Costs
BEIS,UKRI - STFC,02/05/2019,Recruitment Costs,HR Recruitment,Agenda Resource Management Ltd,98473164, 160.91 ,Recruitment Costs
BEIS,UKRI - STFC,08/05/2019,Recruitment Costs,HR Recruitment,Agenda Resource Management Ltd,98474266, 160.91 ,Recruitment Costs
BEIS,UKRI - STFC,08/05/2019,Recruitment Costs,HR Recruitment,Agenda Resource Management Ltd,98474267, 160.91 ,Recruitment Costs
BEIS,UKRI - STFC,15/05/2019,Recruitment Costs,HR Recruitment,Agenda Resource Management Ltd,98481953, 160.91 ,Recruitment Costs
BEIS,UKRI - STFC,17/05/2019,Recruitment Costs,HR Recruitment,Agenda Resource Management Ltd,98481945, 160.91 ,Recruitment Costs
BEIS,UKRI - STFC,17/05/2019,Recruitment Costs,HR Recruitment,Agenda Resource Management Ltd,98481949, 160.91 ,Recruitment Costs
BEIS,UKRI - STFC,17/05/2019,Recruitment Costs,HR Recruitment,Agenda Resource Management Ltd,98481956, 160.91 ,Recruitment Costs
BEIS,UKRI - STFC,17/05/2019,Recruitment Costs,HR Recruitment,Agenda Resource Management Ltd,98481960, 160.91 ,Recruitment Costs
BEIS,UKRI - STFC,17/05/2019,Recruitment Costs,HR Recruitment,Agenda Resource Management Ltd,98482308, 160.91 ,Recruitment Costs
BEIS,UKRI - STFC,28/05/2019,Recruitment Costs,HR Recruitment,Agenda Resource Management Ltd,98489509, 160.91 ,Recruitment Costs
BEIS,UKRI - STFC,28/05/2019,Recruitment Costs,HR Recruitment,Agenda Resource Management Ltd,98489512, 160.91 ,Recruitment Costs
BEIS,UKRI - STFC,28/05/2019,Recruitment Costs,HR Recruitment,Agenda Resource Management Ltd,98489515, 160.91 ,Recruitment Costs
BEIS,UKRI - STFC,28/05/2019,Recruitment Costs,HR Recruitment,Agenda Resource Management Ltd,98489516, 160.91 ,Recruitment Costs
BEIS,UKRI - STFC,28/05/2019,Recruitment Costs,HR Recruitment,Agenda Resource Management Ltd,98489517, 160.91 ,Recruitment Costs
BEIS,UKRI - STFC,28/05/2019,Recruitment Costs,HR Recruitment,Agenda Resource Management Ltd,98490254, 160.91 ,Recruitment Costs
BEIS,UKRI - STFC,28/05/2019,Recruitment Costs,HR Recruitment,Agenda Resource Management Ltd,98490258, 160.91 ,Recruitment Costs
BEIS,UKRI - STFC,28/05/2019,Recruitment Costs,HR Recruitment,Agenda Resource Management Ltd,98490262, 160.91 ,Recruitment Costs
BEIS,UKRI - STFC,31/05/2019,Recruitment Costs,HR Recruitment,Agenda Resource Management Ltd,98493730, 160.91 ,Recruitment Costs
BEIS,UKRI - STFC,31/05/2019,Recruitment Costs,HR Recruitment,Agenda Resource Management Ltd,98493762, 160.91 ,Recruitment Costs
BEIS,UKRI - STFC,31/05/2019,Recruitment Costs,HR Recruitment,Agenda Resource Management Ltd,98493763, 160.91 ,Recruitment Costs
BEIS,UKRI - STFC,31/05/2019,Recruitment Costs,HR Recruitment,Agenda Resource Management Ltd,98493765, 160.91 ,Recruitment Costs
BEIS,UKRI - STFC,31/05/2019,Recruitment Costs,HR Recruitment,Agenda Resource Management Ltd,98493769, 160.91 ,Recruitment Costs
BEIS,UKRI - STFC,31/05/2019,Recruitment Costs,HR - Talent and Skills (Programme),Agenda Resource Management Ltd,98493771, 160.91 ,Recruitment Costs
BEIS,UKRI - STFC,31/05/2019,Recruitment Costs,HR Recruitment,Agenda Resource Management Ltd,98493773, 160.91 ,Recruitment Costs
BEIS,UKRI - STFC,31/05/2019,Recruitment Costs,HR Recruitment,Agenda Resource Management Ltd,98493778, 160.91 ,Recruitment Costs
BEIS,UKRI - STFC,31/05/2019,Recruitment Costs,HR Recruitment,Agenda Resource Management Ltd,98493782, 160.91 ,Recruitment Costs
BEIS,UKRI - STFC,31/05/2019,Recruitment Costs,HR Recruitment,Agenda Resource Management Ltd,98493785, 160.91 ,Recruitment Costs
BEIS,UKRI - STFC,31/05/2019,Recruitment Costs,HR Recruitment,Agenda Resource Management Ltd,98493787, 160.91 ,Recruitment Costs
BEIS,UKRI - STFC,31/05/2019,Recruitment Costs,HR Recruitment,Agenda Resource Management Ltd,98493791, 160.91 ,Recruitment Costs
BEIS,UKRI - MRC,01/05/2019,Recruitment Costs,Unspecified,Agenda Resource Management Ltd,98472389, 160.91 ,Recruitment Costs
BEIS,UKRI - MRC,01/05/2019,Recruitment Costs,Unspecified,Agenda Resource Management Ltd,98472453, 160.91 ,Recruitment Costs
BEIS,UKRI - MRC,02/05/2019,Recruitment Costs,PNAC Miscellaneous Science,Agenda Resource Management Ltd,98472388, 160.91 ,Recruitment Costs
BEIS,UKRI - MRC,02/05/2019,Recruitment Costs,Cell Biology Miscellaneous Science,Agenda Resource Management Ltd,98472391, 160.91 ,Recruitment Costs
BEIS,UKRI - MRC,02/05/2019,Recruitment Costs,Unspecified,Agenda Resource Management Ltd,98472436, 160.91 ,Recruitment Costs
BEIS,UKRI - MRC,02/05/2019,Recruitment Costs,Health Safety,Agenda Resource Management Ltd,98472439, 160.91 ,Recruitment Costs
BEIS,UKRI - MRC,02/05/2019,Recruitment Costs,UKRI Future Leaders Fellowships Science Support (Delivery Costs),Agenda Resource Management Ltd,98472447, 160.91 ,Recruitment Costs
BEIS,UKRI - MRC,02/05/2019,Recruitment Costs,LMB Central Miscellaneous Science,Agenda Resource Management Ltd,98472458, 160.91 ,Recruitment Costs
BEIS,UKRI - MRC,02/05/2019,Recruitment Costs,Unspecified,Agenda Resource Management Ltd,98472432, 160.91 ,Recruitment Costs
BEIS,UKRI - MRC,08/05/2019,Recruitment Costs,CORE - Psychiatric Imaging,Agenda Resource Management Ltd,98474277, 160.91 ,Recruitment Costs
BEIS,UKRI - MRC,16/05/2019,Recruitment Costs,LMB Central Miscellaneous Science,Agenda Resource Management Ltd,98481994, 160.91 ,Recruitment Costs
BEIS,UKRI - MRC,16/05/2019,Recruitment Costs,CEO/COO office,Agenda Resource Management Ltd,98481998, 160.91 ,Recruitment Costs
BEIS,UKRI - MRC,16/05/2019,Recruitment Costs,Unspecified,Agenda Resource Management Ltd,98481995, 160.91 ,Recruitment Costs
BEIS,UKRI - MRC,17/05/2019,Recruitment Costs,LMB Central Miscellaneous Science,Agenda Resource Management Ltd,98482020, 160.91 ,Recruitment Costs
BEIS,UKRI - MRC,28/05/2019,Recruitment Costs,LMB Central Miscellaneous Science,Agenda Resource Management Ltd,98490174, 160.91 ,Recruitment Costs
BEIS,UKRI - MRC,28/05/2019,Recruitment Costs,LMB Central Miscellaneous Science,Agenda Resource Management Ltd,98490191, 160.91 ,Recruitment Costs
BEIS,UKRI - MRC,28/05/2019,Recruitment Costs,Unspecified,Agenda Resource Management Ltd,98490173, 160.91 ,Recruitment Costs
BEIS,UKRI - MRC,30/05/2019,Recruitment Costs,LMB Central Miscellaneous Science,Agenda Resource Management Ltd,98493705, 160.91 ,Recruitment Costs
BEIS,UKRI - MRC,31/05/2019,Recruitment Costs,Structural Studies Miscellaneous Science,Agenda Resource Management Ltd,98493696, 160.91 ,Recruitment Costs
BEIS,UKRI - MRC,31/05/2019,Recruitment Costs,LMB Central Miscellaneous Science,Agenda Resource Management Ltd,98493698, 160.91 ,Recruitment Costs
BEIS,UKRI - MRC,31/05/2019,Recruitment Costs,Cell Biology Miscellaneous Science,Agenda Resource Management Ltd,98493703, 160.91 ,Recruitment Costs
BEIS,UKRI - MRC,31/05/2019,Recruitment Costs,Unspecified,Agenda Resource Management Ltd,98493699, 160.91 ,Recruitment Costs
BEIS,UKRI - MRC,31/05/2019,Recruitment Costs,Unspecified,Agenda Resource Management Ltd,98493707, 160.91 ,Recruitment Costs
BEIS,UKRI - NERC,16/05/2019,Recruitment Costs,NERC - CEH People and Skills,Agenda Resource Management Ltd,98481985, 160.90 ,Recruitment Costs
BEIS,UKRI - STFC,28/05/2019,Recruitment Costs,HR Recruitment,Agenda Resource Management Ltd,98490264, 160.90 ,Recruitment Costs
BEIS,UKRI - MRC,28/05/2019,Recruitment Costs,Cell Biology Miscellaneous Science,Agenda Resource Management Ltd,98490190, 160.90 ,Recruitment Costs
BEIS,UKRI - UKRI,28/05/2019,Recruitment Costs,UKRI - International,Agenda Resource Management Ltd,98490163, 157.31 ,Recruitment Costs
BEIS,UKRI - NERC,01/05/2019,Recruitment Costs,NERC - NOC Human Resources,Agenda Resource Management Ltd,98472377, 156.61 ,Recruitment Costs
BEIS,UKRI - AHRC,08/05/2019,Provisions ( Food etc),HR,Agenda Resource Management Ltd,98475387, 155.91 ,Provisions ( Food etc)
BEIS,UKRI - AHRC,24/05/2019,Recruitment Costs,Corporate Services,Agenda Resource Management Ltd,98489177, 155.91 ,Recruitment Costs
BEIS,UKRI - BBSRC,16/05/2019,Recruitment Costs,PDG - Director,Agenda Resource Management Ltd,98482040, 155.91 ,Recruitment Costs
BEIS,UKRI - BBSRC,20/05/2019,Recruitment Costs,PDG - Director,Agenda Resource Management Ltd,98484286, 155.91 ,Recruitment Costs
BEIS,UKRI - BBSRC,31/05/2019,Recruitment Costs,PDG - Director,Agenda Resource Management Ltd,98492686, 155.91 ,Recruitment Costs
BEIS,UKRI - BBSRC,31/05/2019,Recruitment Costs,PDG - Director,Agenda Resource Management Ltd,98492687, 155.91 ,Recruitment Costs
BEIS,UKRI - UKRI,02/05/2019,Recruitment Costs,UKRI - Human Resources Support,Agenda Resource Management Ltd,98472462, 155.91 ,Recruitment Costs
BEIS,UKRI - EPSRC,02/05/2019,Recruitment Costs,EPSRC Corporate Services,Agenda Resource Management Ltd,98472467, 155.91 ,Recruitment Costs
BEIS,UKRI - UKRI,02/05/2019,Recruitment Costs,UKRI - Estates,Agenda Resource Management Ltd,98472473, 155.91 ,Recruitment Costs
BEIS,UKRI - UKRI,02/05/2019,Recruitment Costs,UKRI - Estates,Agenda Resource Management Ltd,98472477, 155.91 ,Recruitment Costs
BEIS,UKRI - Research England,08/05/2019,Recruitment Costs,RE - Operations and Private Office,Agenda Resource Management Ltd,98474278, 155.91 ,Recruitment Costs
BEIS,UKRI - EPSRC,16/05/2019,Recruitment Costs,EPSRC Corporate Services,Agenda Resource Management Ltd,98482024, 155.91 ,Recruitment Costs
BEIS,UKRI - UKRI,16/05/2019,Recruitment Costs,UKRI - Human Resources Support,Agenda Resource Management Ltd,98482026, 155.91 ,Recruitment Costs
BEIS,UKRI - UKRI,16/05/2019,Recruitment Costs,UKRI People and Organisation Development,Agenda Resource Management Ltd,98482032, 155.91 ,Recruitment Costs
BEIS,UKRI - UKRI,24/05/2019,Recruitment Costs,UKRI - Human Resources Support,Agenda Resource Management Ltd,98489180, 155.91 ,Recruitment Costs
BEIS,UKRI - UKRI,28/05/2019,Recruitment Costs,UKRI - Human Resources Support,Agenda Resource Management Ltd,98490145, 155.91 ,Recruitment Costs
BEIS,UKRI - Research England,28/05/2019,Recruitment Costs,RE - Operations and Private Office,Agenda Resource Management Ltd,98490146, 155.91 ,Recruitment Costs
BEIS,UKRI - UKRI,28/05/2019,Recruitment Costs,UKRI - Transformation,Agenda Resource Management Ltd,98490147, 155.91 ,Recruitment Costs
BEIS,UKRI - UKRI,31/05/2019,Recruitment Costs,UKRI - Strategic Finance Business Partners,Agenda Resource Management Ltd,98492688, 155.91 ,Recruitment Costs
BEIS,UKRI - UKRI,31/05/2019,Recruitment Costs,UKRI - Human Resources Support,Agenda Resource Management Ltd,98492689, 155.91 ,Recruitment Costs
BEIS,UKRI - UKRI,31/05/2019,Recruitment Costs,UKRI - Human Resources Support,Agenda Resource Management Ltd,98492691, 155.91 ,Recruitment Costs
BEIS,UKRI - UKRI,31/05/2019,Recruitment Costs,UKRI - Human Resources Support,Agenda Resource Management Ltd,98492692, 155.91 ,Recruitment Costs
BEIS,UKRI - EPSRC,31/05/2019,Recruitment Costs,JRS,Agenda Resource Management Ltd,98493694, 155.91 ,Recruitment Costs
BEIS,UKRI - ESRC,16/05/2019,Recruitment Costs,Corporate Services,Agenda Resource Management Ltd,98482022, 155.91 ,Recruitment Costs
BEIS,UKRI - ESRC,28/05/2019,Recruitment Costs,Corporate Strategy,Agenda Resource Management Ltd,98490164, 155.91 ,Recruitment Costs
BEIS,UKRI - MRC,17/05/2019,Recruitment Costs,LMB Central Miscellaneous Science,Agenda Resource Management Ltd,98482020, 148.25 ,Recruitment Costs
BEIS,UKRI - ESRC,24/05/2019,Recruitment Costs,Corporate Services,Agenda Resource Management Ltd,98490165, 138.00 ,Recruitment Costs
BEIS,UKRI - BBSRC,01/05/2019,Recruitment Costs,PDG - Director,Agenda Resource Management Ltd,98472489, 135.60 ,Recruitment Costs
BEIS,UKRI - MRC,01/05/2019,Recruitment Costs,LMB Central Miscellaneous Science,Agenda Resource Management Ltd,98472443, 122.18 ,Recruitment Costs
BEIS,UKRI - STFC,02/05/2019,Recruitment Costs,HR Recruitment,Agenda Resource Management Ltd,98473160, 111.01 ,Recruitment Costs
BEIS,UKRI - NERC,02/05/2019,Recruitment Costs,NERC - NOC Human Resources,Agenda Resource Management Ltd,98472379, 104.80 ,Recruitment Costs
BEIS,UKRI - NERC,02/05/2019,Recruitment Costs,NERC - NOC Human Resources,Agenda Resource Management Ltd,98472380, 104.80 ,Recruitment Costs
BEIS,UKRI - MRC,17/05/2019,Recruitment Costs,LMB Central Miscellaneous Science,Agenda Resource Management Ltd,98482020, 84.00 ,Recruitment Costs
BEIS,UKRI - STFC,17/05/2019,Recruitment Costs,HR Recruitment,Agenda Resource Management Ltd,98481945, 79.52 ,Recruitment Costs
BEIS,UKRI - NERC,16/05/2019,Recruitment Costs,NERC - BAS HR Central,Agenda Resource Management Ltd,98481981, 63.01 ,Recruitment Costs
BEIS,UKRI - NERC,16/05/2019,Recruitment Costs,NERC - BAS HR Central,Agenda Resource Management Ltd,98481981, 63.01 ,Recruitment Costs
BEIS,UKRI - STFC,31/05/2019,Recruitment Costs,RAL - Building Services Design Team,Agenda Resource Management Ltd,98493762, 63.01 ,Recruitment Costs
BEIS,UKRI - STFC,17/05/2019,Recruitment Costs,HR Recruitment,Agenda Resource Management Ltd,98482308, 62.72 ,Recruitment Costs
BEIS,UKRI - UKRI,28/05/2019,Recruitment Costs,UKRI - International,Agenda Resource Management Ltd,98490163, 61.32 ,Recruitment Costs
BEIS,UKRI - MRC,01/05/2019,Recruitment Costs,Unspecified,Agenda Resource Management Ltd,98472389, 60.00 ,Recruitment Costs
BEIS,UKRI - MRC,01/05/2019,Recruitment Costs,Unspecified,Agenda Resource Management Ltd,98472453, 60.00 ,Recruitment Costs
BEIS,UKRI - UKRI,16/05/2019,Recruitment Costs,UKRI - Human Resources Support,Agenda Resource Management Ltd,98482314, 57.97 ,Recruitment Costs
BEIS,UKRI - UKRI,01/05/2019,Recruitment Costs,UKRI - Management Reporting,Agenda Resource Management Ltd,98472484, 56.11 ,Recruitment Costs
BEIS,UKRI - UKRI,07/05/2019,Recruitment Costs,UKRI - Management Reporting,Agenda Resource Management Ltd,98474281, 56.11 ,Recruitment Costs
BEIS,UKRI - STFC,15/05/2019,Recruitment Costs,HR Recruitment,Agenda Resource Management Ltd,98481963, 56.11 ,Recruitment Costs
BEIS,UKRI - STFC,15/05/2019,Recruitment Costs,HR Recruitment,Agenda Resource Management Ltd,98482067, 56.11 ,Recruitment Costs
BEIS,UKRI - STFC,15/05/2019,Recruitment Costs,HR Recruitment,Agenda Resource Management Ltd,98482070, 56.11 ,Recruitment Costs
BEIS,UKRI - STFC,30/05/2019,Recruitment Costs,HR Recruitment,Agenda Resource Management Ltd,98493760, 56.11 ,Recruitment Costs
BEIS,UKRI - MRC,30/05/2019,Recruitment Costs,CORE - Reprogramming and Chromatin,Agenda Resource Management Ltd,98493701, 56.11 ,Recruitment Costs
BEIS,UKRI - STFC,01/05/2019,Recruitment Costs,HR Recruitment,Agenda Resource Management Ltd,98473154, 48.00 ,Recruitment Costs
BEIS,UKRI - UKRI,16/05/2019,Recruitment Costs,UKRI - Human Resources Support,Agenda Resource Management Ltd,98482315, 46.37 ,Recruitment Costs
BEIS,UKRI - NERC,16/05/2019,Recruitment Costs,NERC - BAS HR Central,Agenda Resource Management Ltd,98481981, 39.01 ,Recruitment Costs
BEIS,UKRI - NERC,15/05/2019,Recruitment Costs,NERC - BAS HR Central,Agenda Resource Management Ltd,98482051, 38.72 ,Recruitment Costs
BEIS,UKRI - NERC,29/05/2019,Recruitment Costs,NERC - BAS HR Central,Agenda Resource Management Ltd,98491749, 38.72 ,Recruitment Costs
BEIS,UKRI - NERC,24/05/2019,Recruitment Costs,NERC - CEH People and Skills,Agenda Resource Management Ltd,98490224, 31.52 ,Recruitment Costs
BEIS,UKRI - NERC,16/05/2019,Recruitment Costs,NERC - NOC Marine Physics And Ocean Climate,Agenda Resource Management Ltd,98482310, 30.00 ,Recruitment Costs
BEIS,UKRI - NERC,15/05/2019,Recruitment Costs,NERC - BAS HR Central,Agenda Resource Management Ltd,98482051, 28.80 ,Recruitment Costs
BEIS,UKRI - NERC,16/05/2019,Recruitment Costs,NERC - NOC Marine Physics And Ocean Climate,Agenda Resource Management Ltd,98482310, 28.80 ,Recruitment Costs
BEIS,UKRI - MRC,30/05/2019,Recruitment Costs,LMB Central Miscellaneous Science,Agenda Resource Management Ltd,98493705, 28.80 ,Recruitment Costs
BEIS,UKRI - MRC,09/05/2019,Security Services,Unspecified,Agenda Resource Management Ltd,98477843, 24.94 ,Security Services
BEIS,UKRI - ESRC,24/05/2019,Recruitment Costs,Corporate Services,Agenda Resource Management Ltd,98490165, 14.40 ,Recruitment Costs
BEIS,UKRI - NERC,16/05/2019,Recruitment Costs,NERC - BAS HR Central,Agenda Resource Management Ltd,98481981,-0.33 ,Recruitment Costs
BEIS,UKRI - NERC,16/05/2019,Recruitment Costs,NERC - BAS HR Central,Agenda Resource Management Ltd,98481981,-0.54 ,Recruitment Costs
BEIS,UKRI - NERC,16/05/2019,Recruitment Costs,NERC - BAS HR Central,Agenda Resource Management Ltd,98481981,-0.54 ,Recruitment Costs
BEIS,UKRI - NERC,16/05/2019,Recruitment Costs,NERC - BAS HR Central,Agenda Resource Management Ltd,98481981,-1.37 ,Recruitment Costs
BEIS,UKRI - STFC,17/05/2019,Recruitment Costs,HR Recruitment,Agenda Resource Management Ltd,98482308,-1.40 ,Recruitment Costs
BEIS,UKRI - STFC,31/05/2019,Recruitment Costs,RAL - Building Services Design Team,Agenda Resource Management Ltd,98493762,-1.41 ,Recruitment Costs
BEIS,UKRI - STFC,17/05/2019,Recruitment Costs,HR Recruitment,Agenda Resource Management Ltd,98481945,-1.65 ,Recruitment Costs
BEIS,UKRI - NERC,16/05/2019,Recruitment Costs,NERC - CEH People and Skills,Agenda Resource Management Ltd,98481985,-1.94 ,Recruitment Costs
BEIS,UKRI - STFC,02/05/2019,Recruitment Costs,HR Recruitment,Agenda Resource Management Ltd,98473160,-2.04 ,Recruitment Costs
BEIS,UKRI - NERC,16/05/2019,Recruitment Costs,NERC - BAS HR Central,Agenda Resource Management Ltd,98481981,-2.22 ,Recruitment Costs
BEIS,UKRI - MRC,28/05/2019,Recruitment Costs,Cell Biology Miscellaneous Science,Agenda Resource Management Ltd,98490190,-2.25 ,Recruitment Costs
BEIS,UKRI - STFC,28/05/2019,Recruitment Costs,HR Recruitment,Agenda Resource Management Ltd,98490264,-2.26 ,Recruitment Costs
BEIS,UKRI - MRC,16/05/2019,Recruitment Costs,LMB Central Miscellaneous Science,Agenda Resource Management Ltd,98481994,-2.39 ,Recruitment Costs
BEIS,UKRI - MRC,16/05/2019,Recruitment Costs,LMB Central Miscellaneous Science,Agenda Resource Management Ltd,98481994,-2.61 ,Recruitment Costs
BEIS,UKRI - STFC,28/05/2019,Recruitment Costs,HR Recruitment,Agenda Resource Management Ltd,98490264,-2.74 ,Recruitment Costs
BEIS,UKRI - MRC,28/05/2019,Recruitment Costs,Cell Biology Miscellaneous Science,Agenda Resource Management Ltd,98490190,-2.74 ,Recruitment Costs
BEIS,UKRI - STFC,02/05/2019,Recruitment Costs,HR Recruitment,Agenda Resource Management Ltd,98473160,-2.96 ,Recruitment Costs
BEIS,UKRI - NERC,16/05/2019,Recruitment Costs,NERC - CEH People and Skills,Agenda Resource Management Ltd,98481985,-3.06 ,Recruitment Costs
BEIS,UKRI - STFC,17/05/2019,Recruitment Costs,HR Recruitment,Agenda Resource Management Ltd,98481945,-3.35 ,Recruitment Costs
BEIS,UKRI - STFC,31/05/2019,Recruitment Costs,HR Recruitment,Agenda Resource Management Ltd,98493762,-3.59 ,Recruitment Costs
BEIS,UKRI - STFC,17/05/2019,Recruitment Costs,HR Recruitment,Agenda Resource Management Ltd,98482308,-3.60 ,Recruitment Costs
BEIS,UKRI - NERC,02/05/2019,Recruitment Costs,NERC - NOC Human Resources,Agenda Resource Management Ltd,98472372,-5.00 ,Recruitment Costs
BEIS,UKRI - NERC,02/05/2019,Recruitment Costs,NERC - NOC Human Resources,Agenda Resource Management Ltd,98472373,-5.00 ,Recruitment Costs
BEIS,UKRI - NERC,02/05/2019,Recruitment Costs,NERC - NOC Human Resources,Agenda Resource Management Ltd,98472376,-5.00 ,Recruitment Costs
BEIS,UKRI - NERC,02/05/2019,Recruitment Costs,NERC - NOC Human Resources,Agenda Resource Management Ltd,98472379,-5.00 ,Recruitment Costs
BEIS,UKRI - NERC,02/05/2019,Recruitment Costs,NERC - NOC Human Resources,Agenda Resource Management Ltd,98472380,-5.00 ,Recruitment Costs
BEIS,UKRI - NERC,02/05/2019,Recruitment Costs,NERC - BAS HR Central,Agenda Resource Management Ltd,98472383,-5.00 ,Recruitment Costs
BEIS,UKRI - NERC,02/05/2019,Recruitment Costs,NERC - NOC Human Resources,Agenda Resource Management Ltd,98472384,-5.00 ,Recruitment Costs
BEIS,UKRI - NERC,02/05/2019,Recruitment Costs,NERC - BAS HR Central,Agenda Resource Management Ltd,98472386,-5.00 ,Recruitment Costs
BEIS,UKRI - NERC,02/05/2019,Recruitment Costs,NERC - BAS HR Central,Agenda Resource Management Ltd,98473166,-5.00 ,Recruitment Costs
BEIS,UKRI - NERC,08/05/2019,Recruitment Costs,NERC - NOC Human Resources,Agenda Resource Management Ltd,98474272,-5.00 ,Recruitment Costs
BEIS,UKRI - NERC,08/05/2019,Recruitment Costs,NERC - NOC Human Resources,Agenda Resource Management Ltd,98474273,-5.00 ,Recruitment Costs
BEIS,UKRI - NERC,08/05/2019,Recruitment Costs,NERC - BAS HR Central,Agenda Resource Management Ltd,98474274,-5.00 ,Recruitment Costs
BEIS,UKRI - NERC,08/05/2019,Recruitment Costs,NERC - BAS HR Central,Agenda Resource Management Ltd,98474275,-5.00 ,Recruitment Costs
BEIS,UKRI - NERC,16/05/2019,Recruitment Costs,NERC - CEH People and Skills,Agenda Resource Management Ltd,98481978,-5.00 ,Recruitment Costs
BEIS,UKRI - NERC,16/05/2019,Recruitment Costs,NERC - NOC Human Resources,Agenda Resource Management Ltd,98481987,-5.00 ,Recruitment Costs
BEIS,UKRI - NERC,16/05/2019,Recruitment Costs,NERC - NOC Human Resources,Agenda Resource Management Ltd,98481990,-5.00 ,Recruitment Costs
BEIS,UKRI - NERC,16/05/2019,Recruitment Costs,NERC - BAS HR Central,Agenda Resource Management Ltd,98481992,-5.00 ,Recruitment Costs
BEIS,UKRI - NERC,17/05/2019,Recruitment Costs,NERC - BGS HUMAN RESOURCES - PROJECT OWNING,Agenda Resource Management Ltd,98481975,-5.00 ,Recruitment Costs
BEIS,UKRI - NERC,28/05/2019,Recruitment Costs,NERC - NOC Human Resources,Agenda Resource Management Ltd,98489470,-5.00 ,Recruitment Costs
BEIS,UKRI - NERC,28/05/2019,Recruitment Costs,NERC - NOC Human Resources,Agenda Resource Management Ltd,98489472,-5.00 ,Recruitment Costs
BEIS,UKRI - NERC,28/05/2019,Recruitment Costs,NERC - CEH People and Skills,Agenda Resource Management Ltd,98489478,-5.00 ,Recruitment Costs
BEIS,UKRI - NERC,28/05/2019,Recruitment Costs,NERC - BAS HR Central,Agenda Resource Management Ltd,98489479,-5.00 ,Recruitment Costs
BEIS,UKRI - NERC,28/05/2019,Recruitment Costs,NERC - SO Head Office Services,Agenda Resource Management Ltd,98489482,-5.00 ,Recruitment Costs
BEIS,UKRI - NERC,28/05/2019,Recruitment Costs,NERC - CEH People and Skills,Agenda Resource Management Ltd,98489486,-5.00 ,Recruitment Costs
BEIS,UKRI - NERC,28/05/2019,Recruitment Costs,NERC - CEH People and Skills,Agenda Resource Management Ltd,98489489,-5.00 ,Recruitment Costs
BEIS,UKRI - NERC,28/05/2019,Staff Overtime,NERC - BGS HUMAN RESOURCES - PROJECT OWNING,Agenda Resource Management Ltd,98490226,-5.00 ,Staff Overtime
BEIS,UKRI - NERC,28/05/2019,Recruitment Costs,NERC - NOC Human Resources,Agenda Resource Management Ltd,98490228,-5.00 ,Recruitment Costs
BEIS,UKRI - NERC,29/05/2019,Recruitment Costs,NERC - BAS HR Central,Agenda Resource Management Ltd,98491749,-5.00 ,Recruitment Costs
BEIS,UKRI - NERC,31/05/2019,Recruitment Costs,NERC - BAS HR Central,Agenda Resource Management Ltd,98493714,-5.00 ,Recruitment Costs
BEIS,UKRI - NERC,31/05/2019,Recruitment Costs,NERC - BGS HUMAN RESOURCES - PROJECT OWNING,Agenda Resource Management Ltd,98493717,-5.00 ,Recruitment Costs
BEIS,UKRI - NERC,31/05/2019,Recruitment Costs,NERC - NOC Human Resources,Agenda Resource Management Ltd,98493719,-5.00 ,Recruitment Costs
BEIS,UKRI - NERC,31/05/2019,Recruitment Costs,NERC - CEH People and Skills,Agenda Resource Management Ltd,98493721,-5.00 ,Recruitment Costs
BEIS,UKRI - STFC,02/05/2019,Recruitment Costs,HR Recruitment,Agenda Resource Management Ltd,98473153,-5.00 ,Recruitment Costs
BEIS,UKRI - STFC,02/05/2019,Recruitment Costs,HR Recruitment,Agenda Resource Management Ltd,98473155,-5.00 ,Recruitment Costs
BEIS,UKRI - STFC,02/05/2019,Recruitment Costs,HR Recruitment,Agenda Resource Management Ltd,98473161,-5.00 ,Recruitment Costs
BEIS,UKRI - STFC,02/05/2019,Recruitment Costs,HR Recruitment,Agenda Resource Management Ltd,98473163,-5.00 ,Recruitment Costs
BEIS,UKRI - STFC,02/05/2019,Recruitment Costs,HR Recruitment,Agenda Resource Management Ltd,98473164,-5.00 ,Recruitment Costs
BEIS,UKRI - STFC,08/05/2019,Recruitment Costs,HR Recruitment,Agenda Resource Management Ltd,98474266,-5.00 ,Recruitment Costs
BEIS,UKRI - STFC,08/05/2019,Recruitment Costs,HR Recruitment,Agenda Resource Management Ltd,98474267,-5.00 ,Recruitment Costs
BEIS,UKRI - STFC,17/05/2019,Recruitment Costs,HR Recruitment,Agenda Resource Management Ltd,98481949,-5.00 ,Recruitment Costs
BEIS,UKRI - STFC,17/05/2019,Recruitment Costs,HR Recruitment,Agenda Resource Management Ltd,98481956,-5.00 ,Recruitment Costs
BEIS,UKRI - STFC,17/05/2019,Recruitment Costs,HR Recruitment,Agenda Resource Management Ltd,98481960,-5.00 ,Recruitment Costs
BEIS,UKRI - STFC,28/05/2019,Recruitment Costs,HR Recruitment,Agenda Resource Management Ltd,98489509,-5.00 ,Recruitment Costs
BEIS,UKRI - STFC,28/05/2019,Recruitment Costs,HR Recruitment,Agenda Resource Management Ltd,98489512,-5.00 ,Recruitment Costs
BEIS,UKRI - STFC,28/05/2019,Recruitment Costs,HR Recruitment,Agenda Resource Management Ltd,98489515,-5.00 ,Recruitment Costs
BEIS,UKRI - STFC,28/05/2019,Recruitment Costs,HR Recruitment,Agenda Resource Management Ltd,98489516,-5.00 ,Recruitment Costs
BEIS,UKRI - STFC,28/05/2019,Recruitment Costs,HR Recruitment,Agenda Resource Management Ltd,98489517,-5.00 ,Recruitment Costs
BEIS,UKRI - STFC,28/05/2019,Recruitment Costs,HR Recruitment,Agenda Resource Management Ltd,98490254,-5.00 ,Recruitment Costs
BEIS,UKRI - STFC,28/05/2019,Recruitment Costs,HR Recruitment,Agenda Resource Management Ltd,98490258,-5.00 ,Recruitment Costs
BEIS,UKRI - STFC,28/05/2019,Recruitment Costs,HR Recruitment,Agenda Resource Management Ltd,98490262,-5.00 ,Recruitment Costs
BEIS,UKRI - STFC,31/05/2019,Recruitment Costs,HR Recruitment,Agenda Resource Management Ltd,98493730,-5.00 ,Recruitment Costs
BEIS,UKRI - STFC,31/05/2019,Recruitment Costs,HR Recruitment,Agenda Resource Management Ltd,98493763,-5.00 ,Recruitment Costs
BEIS,UKRI - STFC,31/05/2019,Recruitment Costs,HR Recruitment,Agenda Resource Management Ltd,98493765,-5.00 ,Recruitment Costs
BEIS,UKRI - STFC,31/05/2019,Recruitment Costs,HR Recruitment,Agenda Resource Management Ltd,98493769,-5.00 ,Recruitment Costs
BEIS,UKRI - STFC,31/05/2019,Recruitment Costs,HR - Talent and Skills (Programme),Agenda Resource Management Ltd,98493771,-5.00 ,Recruitment Costs
BEIS,UKRI - STFC,31/05/2019,Recruitment Costs,HR Recruitment,Agenda Resource Management Ltd,98493773,-5.00 ,Recruitment Costs
BEIS,UKRI - STFC,31/05/2019,Recruitment Costs,HR Recruitment,Agenda Resource Management Ltd,98493778,-5.00 ,Recruitment Costs
BEIS,UKRI - STFC,31/05/2019,Recruitment Costs,HR Recruitment,Agenda Resource Management Ltd,98493782,-5.00 ,Recruitment Costs
BEIS,UKRI - STFC,31/05/2019,Recruitment Costs,HR Recruitment,Agenda Resource Management Ltd,98493785,-5.00 ,Recruitment Costs
BEIS,UKRI - STFC,31/05/2019,Recruitment Costs,HR Recruitment,Agenda Resource Management Ltd,98493787,-5.00 ,Recruitment Costs
BEIS,UKRI - STFC,31/05/2019,Recruitment Costs,HR Recruitment,Agenda Resource Management Ltd,98493791,-5.00 ,Recruitment Costs
BEIS,UKRI - MRC,02/05/2019,Recruitment Costs,PNAC Miscellaneous Science,Agenda Resource Management Ltd,98472388,-5.00 ,Recruitment Costs
BEIS,UKRI - MRC,02/05/2019,Recruitment Costs,Cell Biology Miscellaneous Science,Agenda Resource Management Ltd,98472391,-5.00 ,Recruitment Costs
BEIS,UKRI - MRC,02/05/2019,Recruitment Costs,Unspecified,Agenda Resource Management Ltd,98472436,-5.00 ,Recruitment Costs
BEIS,UKRI - MRC,02/05/2019,Recruitment Costs,Health Safety,Agenda Resource Management Ltd,98472439,-5.00 ,Recruitment Costs
BEIS,UKRI - MRC,02/05/2019,Recruitment Costs,UKRI Future Leaders Fellowships Science Support (Delivery Costs),Agenda Resource Management Ltd,98472447,-5.00 ,Recruitment Costs
BEIS,UKRI - MRC,02/05/2019,Recruitment Costs,LMB Central Miscellaneous Science,Agenda Resource Management Ltd,98472458,-5.00 ,Recruitment Costs
BEIS,UKRI - MRC,02/05/2019,Recruitment Costs,Unspecified,Agenda Resource Management Ltd,98472432,-5.00 ,Recruitment Costs
BEIS,UKRI - MRC,08/05/2019,Recruitment Costs,CORE - Psychiatric Imaging,Agenda Resource Management Ltd,98474277,-5.00 ,Recruitment Costs
BEIS,UKRI - MRC,16/05/2019,Recruitment Costs,CEO/COO office,Agenda Resource Management Ltd,98481998,-5.00 ,Recruitment Costs
BEIS,UKRI - MRC,16/05/2019,Recruitment Costs,Unspecified,Agenda Resource Management Ltd,98481995,-5.00 ,Recruitment Costs
BEIS,UKRI - MRC,28/05/2019,Recruitment Costs,LMB Central Miscellaneous Science,Agenda Resource Management Ltd,98490174,-5.00 ,Recruitment Costs
BEIS,UKRI - MRC,28/05/2019,Recruitment Costs,LMB Central Miscellaneous Science,Agenda Resource Management Ltd,98490191,-5.00 ,Recruitment Costs
BEIS,UKRI - MRC,28/05/2019,Recruitment Costs,Unspecified,Agenda Resource Management Ltd,98490173,-5.00 ,Recruitment Costs
BEIS,UKRI - MRC,31/05/2019,Recruitment Costs,Structural Studies Miscellaneous Science,Agenda Resource Management Ltd,98493696,-5.00 ,Recruitment Costs
BEIS,UKRI - MRC,31/05/2019,Recruitment Costs,LMB Central Miscellaneous Science,Agenda Resource Management Ltd,98493698,-5.00 ,Recruitment Costs
BEIS,UKRI - MRC,31/05/2019,Recruitment Costs,Cell Biology Miscellaneous Science,Agenda Resource Management Ltd,98493703,-5.00 ,Recruitment Costs
BEIS,UKRI - MRC,31/05/2019,Recruitment Costs,Unspecified,Agenda Resource Management Ltd,98493699,-5.00 ,Recruitment Costs
BEIS,UKRI - MRC,31/05/2019,Recruitment Costs,Unspecified,Agenda Resource Management Ltd,98493707,-5.00 ,Recruitment Costs
BEIS,UKRI - MRC,24/05/2019,Asset Clearing,Central Fixed Assets LMB,AGILENT TECHNOLOGIES LDA UK LTD,98489277," 55,176.04 ",Asset Clearing
BEIS,UKRI - NERC,09/05/2019,Asset Clearing,NERC - CEH Pollution,AGILENT TECHNOLOGIES LDA UK LTD,98476654," 41,188.50 ",Asset Clearing
BEIS,UKRI - NERC,09/05/2019,Asset Clearing,NERC - CEH Pollution,AGILENT TECHNOLOGIES LDA UK LTD,98476650," 6,864.75 ",Asset Clearing
BEIS,UKRI - NERC,24/05/2019,Research Consumables,NERC - BGS Inorganic Analytical Geochemistry - Project Owning,AGILENT TECHNOLOGIES LDA UK LTD,98490287," 5,195.88 ",Research Consumables
BEIS,UKRI - NERC,01/05/2019,Maintenance of Research & Scientific Equipment,NERC - BAS Horizon 2020,AGILENT TECHNOLOGIES LDA UK LTD,98466979," 5,183.57 ",Maintenance of Research & Scientific Equipment
BEIS,UKRI - NERC,01/05/2019,Research & Scientific Equipment,NERC - BAS Horizon 2020,AGILENT TECHNOLOGIES LDA UK LTD,98466979," 5,183.57 ",Research & Scientific Equipment
BEIS,UKRI - NERC,24/05/2019,Research Consumables,NERC - BGS Inorganic Analytical Geochemistry - Project Owning,AGILENT TECHNOLOGIES LDA UK LTD,98489555," 4,513.50 ",Research Consumables
BEIS,UKRI - NERC,22/05/2019,Maintenance of Research & Scientific Equipment,NERC - CEH Science Equipment Maintenance Bangor,AGILENT TECHNOLOGIES LDA UK LTD,98484334," 2,337.84 ",Maintenance of Research & Scientific Equipment
BEIS,UKRI - NERC,07/05/2019,Research Consumables,NERC - BGS Inorganic Analytical Geochemistry - Project Owning,AGILENT TECHNOLOGIES LDA UK LTD,98475550," 1,946.16 ",Research Consumables
BEIS,UKRI - MRC,08/05/2019,Chemicals,Genomics Core Laboratory,AGILENT TECHNOLOGIES LDA UK LTD,98476209," 1,667.46 ",Chemicals
BEIS,UKRI - NERC,24/05/2019,Research Consumables,NERC - BGS Inorganic Analytical Geochemistry - Project Owning,AGILENT TECHNOLOGIES LDA UK LTD,98490287," 1,262.76 ",Research Consumables
BEIS,UKRI - NERC,02/05/2019,Research & Scientific Equipment,NERC - BGS Inorganic Analytical Geochemistry - Project Owning,AGILENT TECHNOLOGIES LDA UK LTD,98474751, 960.09 ,Research & Scientific Equipment
BEIS,UKRI - MRC,17/05/2019,Research Consumables,CORE - Metabolism and Gene Regulation,AGILENT TECHNOLOGIES LDA UK LTD,98461889, 596.16 ,Research Consumables
BEIS,UKRI - NERC,24/05/2019,Research Consumables,NERC - BGS Inorganic Analytical Geochemistry - Project Owning,AGILENT TECHNOLOGIES LDA UK LTD,98490287, 492.66 ,Research Consumables
BEIS,UKRI - MRC,03/05/2019,Safety Materials & Equipment,Unspecified,AGILENT TECHNOLOGIES LDA UK LTD,98475411, 488.02 ,Safety Materials & Equipment
BEIS,UKRI - MRC,03/05/2019,Safety Materials & Equipment,Unspecified,AGILENT TECHNOLOGIES LDA UK LTD,98475411, 477.26 ,Safety Materials & Equipment
BEIS,UKRI - MRC,01/05/2019,Chemicals,CORE - Reprogramming and Chromatin,AGILENT TECHNOLOGIES LDA UK LTD,98472227, 452.89 ,Chemicals
BEIS,UKRI - MRC,24/05/2019,Chemicals,Unspecified,AGILENT TECHNOLOGIES LDA UK LTD,98489833, 448.80 ,Chemicals
BEIS,UKRI - NERC,02/05/2019,Research & Scientific Equipment,NERC - BGS Inorganic Analytical Geochemistry - Project Owning,AGILENT TECHNOLOGIES LDA UK LTD,98474751, 421.36 ,Research & Scientific Equipment
BEIS,UKRI - MRC,08/05/2019,Chemicals,Unspecified,AGILENT TECHNOLOGIES LDA UK LTD,98476206, 421.26 ,Chemicals
BEIS,UKRI - MRC,16/05/2019,Chemicals,Unspecified,AGILENT TECHNOLOGIES LDA UK LTD,98482574, 395.76 ,Chemicals
BEIS,UKRI - MRC,29/05/2019,Chemicals,Unspecified,AGILENT TECHNOLOGIES LDA UK LTD,98491466, 395.76 ,Chemicals
BEIS,UKRI - NERC,02/05/2019,Research & Scientific Equipment,NERC - BGS Inorganic Analytical Geochemistry - Project Owning,AGILENT TECHNOLOGIES LDA UK LTD,98474751, 386.32 ,Research & Scientific Equipment
BEIS,UKRI - MRC,03/05/2019,Research Consumables,Unspecified,AGILENT TECHNOLOGIES LDA UK LTD,98475299, 333.49 ,Research Consumables
BEIS,UKRI - STFC,20/05/2019,Chemicals,Lasers for Science Facility,AGILENT TECHNOLOGIES LDA UK LTD,98484906, 295.80 ,Chemicals
BEIS,UKRI - MRC,21/05/2019,Chemicals,Unspecified,AGILENT TECHNOLOGIES LDA UK LTD,98488047, 286.62 ,Chemicals
BEIS,UKRI - MRC,10/05/2019,Research Consumables,CORE - Meiosis,AGILENT TECHNOLOGIES LDA UK LTD,98478891, 240.59 ,Research Consumables
BEIS,UKRI - NERC,07/05/2019,Maintenance of Research & Scientific Equipment,NERC - NOC Marine Geochemistry,AGILENT TECHNOLOGIES LDA UK LTD,98450735, 229.22 ,Maintenance of Research & Scientific Equipment
BEIS,UKRI - MRC,02/05/2019,Chemicals,Unspecified,AGILENT TECHNOLOGIES LDA UK LTD,98474753, 224.40 ,Chemicals
BEIS,UKRI - MRC,10/05/2019,Chemicals,CORE - LMS Functional Gene Control,AGILENT TECHNOLOGIES LDA UK LTD,98478883, 203.42 ,Chemicals
BEIS,UKRI - MRC,03/05/2019,Chemicals,Unspecified,AGILENT TECHNOLOGIES LDA UK LTD,98475303, 197.88 ,Chemicals
BEIS,UKRI - MRC,16/05/2019,Chemicals,CORE - Lymphocyte Development,AGILENT TECHNOLOGIES LDA UK LTD,98482570, 197.88 ,Chemicals
BEIS,UKRI - MRC,16/05/2019,Chemicals,Unspecified,AGILENT TECHNOLOGIES LDA UK LTD,98482573, 197.88 ,Chemicals
BEIS,UKRI - MRC,29/05/2019,Chemicals,Unspecified,AGILENT TECHNOLOGIES LDA UK LTD,98492224, 197.88 ,Chemicals
BEIS,UKRI - MRC,02/05/2019,Chemicals,Unspecified,AGILENT TECHNOLOGIES LDA UK LTD,98474750, 196.57 ,Chemicals
BEIS,UKRI - MRC,03/05/2019,Research Consumables,Unspecified,AGILENT TECHNOLOGIES LDA UK LTD,98475299, 196.57 ,Research Consumables
BEIS,UKRI - MRC,03/05/2019,Chemicals,Mass Spectroscopy LMB,AGILENT TECHNOLOGIES LDA UK LTD,98475407, 166.44 ,Chemicals
BEIS,UKRI - MRC,10/05/2019,Chemicals,CORE - Meiosis,AGILENT TECHNOLOGIES LDA UK LTD,98478141, 163.32 ,Chemicals
BEIS,UKRI - MRC,03/05/2019,Chemicals,Proteomics,AGILENT TECHNOLOGIES LDA UK LTD,98475418, 154.18 ,Chemicals
BEIS,UKRI - NERC,09/05/2019,Research Consumables,NERC - BGS Energy Systems and Basin Analysis - Project Owning,AGILENT TECHNOLOGIES LDA UK LTD,98475242, 121.76 ,Research Consumables
BEIS,UKRI - MRC,03/05/2019,Chemicals,Unspecified,AGILENT TECHNOLOGIES LDA UK LTD,98475301, 121.38 ,Chemicals
BEIS,UKRI - MRC,10/05/2019,Chemicals,CORE - Meiosis,AGILENT TECHNOLOGIES LDA UK LTD,98478892, 112.46 ,Chemicals
BEIS,UKRI - MRC,17/05/2019,Research Consumables,CORE - Metabolism and Gene Regulation,AGILENT TECHNOLOGIES LDA UK LTD,98461889, 62.76 ,Research Consumables
BEIS,UKRI - MRC,10/05/2019,Chemicals,CORE - Meiosis,AGILENT TECHNOLOGIES LDA UK LTD,98478113, 53.78 ,Chemicals
BEIS,UKRI - MRC,21/05/2019,Chemicals,CORE - Epigenetic Inheritance and Evolution,AGILENT TECHNOLOGIES LDA UK LTD,98488045, 50.86 ,Chemicals
BEIS,UKRI - NERC,07/05/2019,Maintenance of Research & Scientific Equipment,NERC - NOC Marine Geochemistry,AGILENT TECHNOLOGIES LDA UK LTD,98450735, 45.84 ,Maintenance of Research & Scientific Equipment
BEIS,UKRI - NERC,24/05/2019,Postage & Courier Services,NERC - BGS Inorganic Analytical Geochemistry - Project Owning,AGILENT TECHNOLOGIES LDA UK LTD,98490287, 22.76 ,Postage & Courier Services
BEIS,UKRI - MRC,10/05/2019,Research Consumables,CORE - LMS Functional Gene Control,AGILENT TECHNOLOGIES LDA UK LTD,98478890, 22.49 ,Research Consumables
BEIS,UKRI - NERC,24/05/2019,Postage & Courier Services,NERC - BGS Inorganic Analytical Geochemistry - Project Owning,AGILENT TECHNOLOGIES LDA UK LTD,98489555, 13.24 ,Postage & Courier Services
BEIS,UKRI - NERC,07/05/2019,Maintenance of Research & Scientific Equipment,NERC - NOC Marine Geochemistry,AGILENT TECHNOLOGIES LDA UK LTD,98450735, 12.00 ,Maintenance of Research & Scientific Equipment
BEIS,UKRI - MRC,24/05/2019,Asset Clearing,Central Fixed Assets LMB,AGILENT TECHNOLOGIES LDA UK LTD,98490138,"-7,033.99 ",Asset Clearing
BEIS,UKRI - NERC,09/05/2019,Asset Clearing,NERC - CEH Pollution,AGILENT TECHNOLOGIES LDA UK LTD,98476650,"-41,188.50 ",Asset Clearing
BEIS,UKRI - Innovate UK,21/05/2019,Assessor Fees,Advanced Therapies,AGILITY HEALTH TECH LTD,36410," 1,296.00 ",Assessor Fees
BEIS,UKRI - Innovate UK,07/05/2019,Assessor Fees,Advanced Therapies,AGILITY HEALTH TECH LTD,35525," 1,296.00 ",Assessor Fees
BEIS,UKRI - Innovate UK,24/05/2019,Assessor Fees,Public Sector Innovation Strategy,AGILITY HEALTH TECH LTD,36448," 1,008.00 ",Assessor Fees
BEIS,UKRI - Innovate UK,21/05/2019,Assessor Fees,Advanced Therapies,AGILITY HEALTH TECH LTD,36405, 720.00 ,Assessor Fees
BEIS,UKRI - Innovate UK,07/05/2019,Assessor Fees,Advanced Therapies,AGILITY HEALTH TECH LTD,36347, 720.00 ,Assessor Fees
BEIS,UKRI - Innovate UK,14/05/2019,Assessor Fees,Public Sector Innovation Strategy,AGILITY HEALTH TECH LTD,36005, 432.00 ,Assessor Fees
BEIS,UKRI - Innovate UK,14/05/2019,Assessor Fees,Public Sector Innovation Strategy,AGILITY HEALTH TECH LTD,35995, 432.00 ,Assessor Fees
BEIS,UKRI - Innovate UK,15/05/2019,Assessor Fees,Public Sector Innovation Strategy,AGILITY HEALTH TECH LTD,36004, 144.00 ,Assessor Fees
BEIS,UKRI - Innovate UK,24/05/2019,Resource grants,Emerging Technologies,AGILITY3 LTD,35025," 1,128.40 ",Resource grants
BEIS,UKRI - Innovate UK,03/05/2019,Resource grants,Manufacturing,Aglaris Limited,32157," 60,477.04 ",Resource grants
BEIS,UKRI - Innovate UK,31/05/2019,Resource grants,CHALLENGE - Energy Batteries,AGM BATTERIES LTD,35871," 128,931.81 ",Resource grants
BEIS,UKRI - NERC,24/05/2019,Library Services,NERC - BGS SCIENCE SERVICES - PROJECT OWNING,AGNE Ltd T/A AlphaGraphics,98483663, 454.87 ,Library Services
BEIS,UKRI - Innovate UK,31/05/2019,Resource grants,Non Core - Agritech Centres,AGRICULTURE & HORTICULTURE DEVELOPMENT BOARD,35652, 110.82 ,Resource grants
BEIS,UKRI - Innovate UK,31/05/2019,Resource grants,Non Core - Agritech Centres,AGRI-EPI CENTRE LIMITED,35816," 59,391.08 ",Resource grants
BEIS,UKRI - Innovate UK,10/05/2019,Resource grants,Connect Autonomous Vehicles,AGRI-EPI CENTRE LIMITED,33432," 22,519.61 ",Resource grants
BEIS,UKRI - Innovate UK,03/05/2019,Resource grants,Precision and Discovery Medicine ����������,AGRI-EPI CENTRE LTD,32359," 3,372.40 ",Resource grants
BEIS,UKRI - Innovate UK,10/05/2019,Resource grants,Non Core - Agritech Centres,AGRITHERM LTD,33215," 3,695.53 ",Resource grants
BEIS,UKRI - STFC,15/05/2019,General Building Maintenance,ING - La Palma,Aguas De La Palma SA,98482078, 51.85 ,General Building Maintenance
BEIS,UKRI - STFC,15/05/2019,Provisions ( Food etc),ING - La Palma,Aguas De La Palma SA,98482078, 37.59 ,Provisions ( Food etc)
BEIS,UKRI - Innovate UK,10/05/2019,Resource grants,Transforming Food Production,AHDB LIMITED,33288," 1,563.41 ",Resource grants
BEIS,UKRI - Innovate UK,07/05/2019,Assessor Fees,Medicines Manufacturing,AIBI HEALTH LTD,41593, 480.00 ,Assessor Fees
BEIS,UKRI - Innovate UK,07/05/2019,Assessor Fees,Advanced Therapies,AIBI HEALTH LTD,41593, 480.00 ,Assessor Fees
BEIS,UKRI - NERC,21/05/2019,Marketing & PR,NERC - BGS CORPORATE COMMUNICATIONS AND PUBLICATIONS - PROJECT OWNING,AIMediaData Ltd T/A Vuelio,98486938," 11,160.00 ",Marketing & PR
BEIS,UKRI - Innovate UK,03/05/2019,Resource grants,Transport,AIMSUN LIMITED,32078," 2,522.93 ",Resource grants
BEIS,UKRI - Innovate UK,24/05/2019,Resource grants,Connect Autonomous Vehicles,AIMSUN LTD,35088," 5,494.01 ",Resource grants
BEIS,UKRI - Innovate UK,17/05/2019,Resource grants,Resp - Smart,Air Control Entech Limited,34255," 56,862.38 ",Resource grants
BEIS,UKRI - Innovate UK,10/05/2019,Resource grants,Transport,AIR LIQUIDE ADVANCED BUS. & TECH. UK LTD,33464," 5,254.71 ",Resource grants
BEIS,UKRI - MRC,09/05/2019,Research & Scientific Equipment,Laboratory Management RCAH Oxford,Air Liquide UK Ltd,98476655, 414.00 ,Research & Scientific Equipment
BEIS,UKRI - MRC,09/05/2019,Postage & Courier Services,Laboratory Management RCAH Oxford,Air Liquide UK Ltd,98476655, 69.38 ,Postage & Courier Services
BEIS,UKRI - NERC,01/05/2019,Research Consumables,NERC - BGS SIGL - Project Owning,Air Liquide UK Ltd,98473053, 42.42 ,Research Consumables
BEIS,UKRI - NERC,14/05/2019,Research Consumables,NERC - BGS MINERALS AND WASTE - PROJECT OWNING,Air Liquide UK Ltd,98480946, 31.13 ,Research Consumables
BEIS,UKRI - STFC,16/05/2019,Research Consumables,TD Operational Overheads,Air Liquide UK Ltd,98481672, 12.60 ,Research Consumables
BEIS,UKRI - STFC,07/05/2019,Research Consumables,ISIS Instrumentation,Air Liquide UK Ltd,98474376, 9.24 ,Research Consumables
BEIS,UKRI - STFC,31/05/2019,Research Consumables,ISIS Instrumentation,Air Liquide UK Ltd,98494299, 9.24 ,Research Consumables
BEIS,UKRI - STFC,07/05/2019,Research Consumables,ISIS Instrumentation,Air Liquide UK Ltd,98474378, 8.77 ,Research Consumables
BEIS,UKRI - STFC,31/05/2019,Research Consumables,ISIS Instrumentation,Air Liquide UK Ltd,98494301, 8.77 ,Research Consumables
BEIS,UKRI - MRC,09/05/2019,Research & Scientific Equipment,Laboratory Management RCAH Oxford,Air Liquide UK Ltd,98476655, 1.19 ,Research & Scientific Equipment
BEIS,UKRI - STFC,07/05/2019,Research Consumables,ISIS Instrumentation,Air Liquide UK Ltd,98474378, 0.39 ,Research Consumables
BEIS,UKRI - STFC,31/05/2019,Research Consumables,ISIS Instrumentation,Air Liquide UK Ltd,98494301, 0.39 ,Research Consumables
BEIS,UKRI - STFC,07/05/2019,Research Consumables,ISIS Instrumentation,Air Liquide UK Ltd,98474378, 0.08 ,Research Consumables
BEIS,UKRI - STFC,31/05/2019,Research Consumables,ISIS Instrumentation,Air Liquide UK Ltd,98494301, 0.08 ,Research Consumables
BEIS,UKRI - NERC,02/05/2019,Research & Scientific Equipment,NERC - CEH Biosphere-atmosphere Exchange and Effects,Air Monitors Ltd,98449668," 6,390.50 ",Research & Scientific Equipment
BEIS,UKRI - NERC,02/05/2019,Research & Scientific Equipment,"NERC - CEH Emission Sources, Sinks and Solutions",Air Monitors Ltd,98449668," 3,108.26 ",Research & Scientific Equipment
BEIS,UKRI - NERC,02/05/2019,Research & Scientific Equipment,NERC - CEH Atmospheric Chemistry and Effects,Air Monitors Ltd,98449668," 2,099.24 ",Research & Scientific Equipment
BEIS,UKRI - NERC,17/05/2019,Maintenance of Research & Scientific Equipment,NERC - CEH Science Programme Office,Air Monitors Ltd,98483130," 1,935.60 ",Maintenance of Research & Scientific Equipment
BEIS,UKRI - NERC,17/05/2019,Maintenance of Research & Scientific Equipment,NERC - CEH Science Programme Office,Air Monitors Ltd,98483131, 336.00 ,Maintenance of Research & Scientific Equipment
BEIS,UKRI - NERC,17/05/2019,Postage & Courier Services,NERC - CEH Science Programme Office,Air Monitors Ltd,98483131, 72.00 ,Postage & Courier Services
BEIS,UKRI - NERC,02/05/2019,Research & Scientific Equipment,NERC - CEH Biosphere-atmosphere Exchange and Effects,Air Monitors Ltd,98413086, 42.00 ,Research & Scientific Equipment
BEIS,UKRI - NERC,02/05/2019,Research & Scientific Equipment,NERC - CEH Biosphere-atmosphere Exchange and Effects,Air Monitors Ltd,98413086, 42.00 ,Research & Scientific Equipment
BEIS,UKRI - NERC,02/05/2019,Postage & Courier Services,NERC - CEH Biosphere-atmosphere Exchange and Effects,Air Monitors Ltd,98413086, 12.00 ,Postage & Courier Services
BEIS,UKRI - MRC,16/05/2019,Research Consumables,Unspecified,Air Products Plc (CryoService Ltd T/A Air Products CryoEase Services),98482528," 1,802.33 ",Research Consumables
BEIS,UKRI - MRC,08/05/2019,Research Consumables,Unspecified,Air Products Plc (CryoService Ltd T/A Air Products CryoEase Services),98465772," 1,754.22 ",Research Consumables
BEIS,UKRI - STFC,28/05/2019,Research Consumables,PPD SP Particle Physics,Air Products Plc (CryoService Ltd T/A Air Products CryoEase Services),98483805, 274.28 ,Research Consumables
BEIS,UKRI - MRC,07/05/2019,Research Consumables,Laboratory Management RCAH Oxford,Air Products Plc (CryoService Ltd T/A Air Products CryoEase Services),98475542, 204.31 ,Research Consumables
BEIS,UKRI - MRC,30/05/2019,Research Consumables,Laboratory Management RCAH Oxford,Air Products Plc (CryoService Ltd T/A Air Products CryoEase Services),98491674, 198.36 ,Research Consumables
BEIS,UKRI - NERC,30/05/2019,Other Bought In Services,NERC - CEH Science Equipment Maintenance Wallingford,Air Products Plc (CryoService Ltd T/A Air Products CryoEase Services),98491651, 135.14 ,Other Bought In Services
BEIS,UKRI - MRC,16/05/2019,Research Consumables,Laboratory Management RCAH Oxford,Air Products Plc (CryoService Ltd T/A Air Products CryoEase Services),98482529, 121.97 ,Research Consumables
BEIS,UKRI - NERC,01/05/2019,Research Consumables,NERC - CEH Science Equipment Maintenance Bangor,Air Products Plc (CryoService Ltd T/A Air Products CryoEase Services),98473274, 106.50 ,Research Consumables
BEIS,UKRI - STFC,28/05/2019,Research Consumables,National Labs Salaries Control,Air Products Plc (CryoService Ltd T/A Air Products CryoEase Services),98475807, 88.75 ,Research Consumables
BEIS,UKRI - STFC,31/05/2019,Research Consumables,PPD SP Particle Physics,Air Products Plc (CryoService Ltd T/A Air Products CryoEase Services),98491691, 86.00 ,Research Consumables
BEIS,UKRI - STFC,28/05/2019,VAT Input Tax Control (for UK VAT),Balance Sheet,Air Products Plc (CryoService Ltd T/A Air Products CryoEase Services),98483805, 54.86 ,VAT Input Tax Control (for UK VAT)
BEIS,UKRI - STFC,28/05/2019,VAT Input Tax Control (for UK VAT),Balance Sheet,Air Products Plc (CryoService Ltd T/A Air Products CryoEase Services),98475807, 17.75 ,VAT Input Tax Control (for UK VAT)
BEIS,UKRI - STFC,31/05/2019,VAT Input Tax Control (for UK VAT),Balance Sheet,Air Products Plc (CryoService Ltd T/A Air Products CryoEase Services),98491691, 17.20 ,VAT Input Tax Control (for UK VAT)
BEIS,UKRI - STFC,28/05/2019,VAT Input Tax Control (for UK VAT),Balance Sheet,Air Products Plc (CryoService Ltd T/A Air Products CryoEase Services),98412304,-26.40 ,VAT Input Tax Control (for UK VAT)
BEIS,UKRI - STFC,28/05/2019,Research Consumables,PPD SP Particle Physics,Air Products Plc (CryoService Ltd T/A Air Products CryoEase Services),98412304,-132.00 ,Research Consumables
BEIS,UKRI - MRC,08/05/2019,Research Consumables,Unspecified,Air Products Plc (CryoService Ltd T/A Air Products CryoEase Services),98465772,-292.37 ,Research Consumables
BEIS,UKRI - MRC,16/05/2019,Research Consumables,Unspecified,Air Products Plc (CryoService Ltd T/A Air Products CryoEase Services),98482528,-300.39 ,Research Consumables
BEIS,UKRI - MRC,28/05/2019,Safety Materials & Equipment,Unspecified,Air Sea Containers Ltd,98490686, 140.16 ,Safety Materials & Equipment
BEIS,UKRI - MRC,16/05/2019,Safety Materials & Equipment,Unspecified,Air Sea Containers Ltd,98482552, 77.11 ,Safety Materials & Equipment
BEIS,UKRI - MRC,16/05/2019,Postage & Courier Services,Unspecified,Air Sea Containers Ltd,98482552, 34.62 ,Postage & Courier Services
BEIS,UKRI - MRC,28/05/2019,Safety Materials & Equipment,Unspecified,Air Sea Containers Ltd,98490686, 31.14 ,Safety Materials & Equipment
BEIS,UKRI - STFC,28/05/2019,Purchase of non capital equipment,RAL Space Services & Facilities,Air Techniques International (a division of Hamilton Associates Inc),98491221," 2,570.82 ",Purchase of non capital equipment
BEIS,UKRI - STFC,10/05/2019,Purchase of non capital equipment,RAL Space Technology Exploitation,AIRBUS DEFENCE AND SPACE LIMITED,98473685," 17,450.00 ",Purchase of non capital equipment
BEIS,UKRI - Innovate UK,24/05/2019,Resource grants,ISCF - EE,AIRBUS DEFENCE AND SPACE LIMITED,35210," 7,033.38 ",Resource grants
BEIS,UKRI - NERC,02/05/2019,Research Consumables,NERC - BGS ODA - Project Owning,AIRBUS DEFENCE AND SPACE LIMITED,98474912," 6,532.00 ",Research Consumables
BEIS,UKRI - STFC,10/05/2019,Purchase of non capital equipment,RAL Space Technology Exploitation,AIRBUS DEFENCE AND SPACE LIMITED,98473686," 5,850.00 ",Purchase of non capital equipment
BEIS,UKRI - STFC,10/05/2019,Purchase of non capital equipment,RAL Space Technology Exploitation,AIRBUS DEFENCE AND SPACE LIMITED,98473686," 5,800.00 ",Purchase of non capital equipment
BEIS,UKRI - STFC,10/05/2019,Purchase of non capital equipment,RAL Space Technology Exploitation,AIRBUS DEFENCE AND SPACE LIMITED,98473685," 5,070.00 ",Purchase of non capital equipment
BEIS,UKRI - NERC,17/05/2019,Research Grant Expenditure,NERC - NOC Surface Processes & Satellite Oceanography,AIRBUS DEFENCE AND SPACE LIMITED,98484310," 5,000.00 ",Research Grant Expenditure
BEIS,UKRI - Innovate UK,10/05/2019,Resource grants,Manufacturing,AIRBUS DEFENCE AND SPACE LIMITED,33336," 4,860.86 ",Resource grants
BEIS,UKRI - STFC,10/05/2019,VAT Input Tax Control (for UK VAT),Balance Sheet,AIRBUS DEFENCE AND SPACE LIMITED,98473685," 3,490.00 ",VAT Input Tax Control (for UK VAT)
BEIS,UKRI - NERC,02/05/2019,Research Consumables,NERC - BGS ODA - Project Owning,AIRBUS DEFENCE AND SPACE LIMITED,98474912," 1,306.40 ",Research Consumables
BEIS,UKRI - STFC,10/05/2019,VAT Input Tax Control (for UK VAT),Balance Sheet,AIRBUS DEFENCE AND SPACE LIMITED,98473686," 1,170.00 ",VAT Input Tax Control (for UK VAT)
BEIS,UKRI - STFC,10/05/2019,VAT Input Tax Control (for UK VAT),Balance Sheet,AIRBUS DEFENCE AND SPACE LIMITED,98473686," 1,160.00 ",VAT Input Tax Control (for UK VAT)
BEIS,UKRI - STFC,10/05/2019,VAT Input Tax Control (for UK VAT),Balance Sheet,AIRBUS DEFENCE AND SPACE LIMITED,98473685," 1,014.00 ",VAT Input Tax Control (for UK VAT)
BEIS,UKRI - NERC,17/05/2019,Research Grant Expenditure,NERC - NOC Surface Processes & Satellite Oceanography,AIRBUS DEFENCE AND SPACE LIMITED,98484310," 1,000.00 ",Research Grant Expenditure
BEIS,UKRI - Innovate UK,31/05/2019,Resource grants,Emerging Technologies,Airbus Group Ltd,35623," 1,166.66 ",Resource grants
BEIS,UKRI - Innovate UK,03/05/2019,Resource grants,Aerospace,AIRBUS OPERATIONS LTD,32027," 1,629,815.88 ",Resource grants
BEIS,UKRI - Innovate UK,03/05/2019,Resource grants,Aerospace,AIRBUS OPERATIONS LTD,32005," 318,363.79 ",Resource grants
BEIS,UKRI - Innovate UK,03/05/2019,Resource grants,Aerospace,AIRBUS OPERATIONS LTD,32003," 164,623.94 ",Resource grants
BEIS,UKRI - Innovate UK,17/05/2019,Resource grants,Aerospace,AIRBUS OPERATIONS LTD,34269," 9,969.53 ",Resource grants
BEIS,UKRI - MRC,16/05/2019,General Building Maintenance,Unspecified,Airedale International Air Conditioning Ltd,98482557," 7,183.20 ",General Building Maintenance
BEIS,UKRI - STFC,08/05/2019,Purchase of non capital equipment,ISIS Accelerator,Airedale International Air Conditioning Ltd,98477141, 905.40 ,Purchase of non capital equipment
BEIS,UKRI - STFC,07/05/2019,Projects CIP,CLF Support Group,Airedale International Air Conditioning Ltd,98475557, 714.00 ,Projects CIP
BEIS,UKRI - NERC,24/05/2019,T&S UK - Public Transport,NERC - BAS Air Unit,Airport Lynx,98474779, 841.21 ,T&S UK - Public Transport
BEIS,UKRI - NERC,30/05/2019,T&S UK - Other Charges,NERC - BAS Air Unit,Airport Lynx,98487180, 529.62 ,T&S UK - Other Charges
BEIS,UKRI - NERC,24/05/2019,T&S UK - Public Transport,NERC - BAS Grant Funded,Airport Lynx,98474779, 512.70 ,T&S UK - Public Transport
BEIS,UKRI - NERC,24/05/2019,T&S UK - Public Transport,NERC - BAS Climate Processes,Airport Lynx,98474779, 417.61 ,T&S UK - Public Transport
BEIS,UKRI - NERC,24/05/2019,T&S UK - Subsistence,NERC � BAS Antarctic Travel & Subsistence,Airport Lynx,98474779, 369.31 ,T&S UK - Subsistence
BEIS,UKRI - NERC,24/05/2019,T&S Overseas - Other Charges,NERC - BAS Biodiversity,Airport Lynx,98474779, 259.20 ,T&S Overseas - Other Charges
BEIS,UKRI - NERC,24/05/2019,T&S UK - Public Transport,NERC - BAS Shelf Seas,Airport Lynx,98474779, 206.41 ,T&S UK - Public Transport
BEIS,UKRI - NERC,24/05/2019,T&S UK - Public Transport,NERC - BAS Open Ocean,Airport Lynx,98474779, 170.40 ,T&S UK - Public Transport
BEIS,UKRI - NERC,24/05/2019,T&S Overseas - Other Charges,NERC - BAS AMOS,Airport Lynx,98474779, 146.40 ,T&S Overseas - Other Charges
BEIS,UKRI - NERC,24/05/2019,T&S UK - Public Transport,NERC - BAS Palaeoclimate,Airport Lynx,98474779, 138.58 ,T&S UK - Public Transport
BEIS,UKRI - NERC,30/05/2019,T&S UK - Other Charges,BAS KC3 Airborne Geophysics,Airport Lynx,98487180, 119.00 ,T&S UK - Other Charges
BEIS,UKRI - NERC,30/05/2019,T&S UK - Other Charges,NERC - BAS NC National Public Good,Airport Lynx,98487180, 112.00 ,T&S UK - Other Charges
BEIS,UKRI - STFC,08/05/2019,T&S Overseas - Vehicle Hire,ISIS Accelerator,Unspecified,98476422," 4,159.55 ",T&S Overseas - Vehicle Hire
BEIS,UKRI - NERC,30/05/2019,T&S UK - Other Charges,NERC - BAS Air Unit,Airport Lynx,98487180, 105.93 ,T&S UK - Other Charges
BEIS,UKRI - NERC,24/05/2019,T&S UK - Public Transport,"NERC - BAS Space, Weather and Atmosphere",Airport Lynx,98474779, 87.60 ,T&S UK - Public Transport
BEIS,UKRI - NERC,24/05/2019,T&S UK - Public Transport,BAS KC3 Airborne Geophysics,Airport Lynx,98474779, 75.60 ,T&S UK - Public Transport
BEIS,UKRI - NERC,30/05/2019,T&S UK - Other Charges,NERC - BAS Directorate,Airport Lynx,98487180, 62.49 ,T&S UK - Other Charges
BEIS,UKRI - NERC,24/05/2019,T&S UK - Public Transport,NERC - BAS Directorate,Airport Lynx,98474779, 50.00 ,T&S UK - Public Transport
BEIS,UKRI - NERC,30/05/2019,T&S UK - Other Charges,NERC - BAS HR Central,Airport Lynx,98487180, 48.00 ,T&S UK - Other Charges
BEIS,UKRI - NERC,30/05/2019,T&S UK - Other Charges,BAS KC3 Airborne Geophysics,Airport Lynx,98487180, 23.80 ,T&S UK - Other Charges
BEIS,UKRI - NERC,30/05/2019,T&S UK - Other Charges,NERC - BAS NC National Public Good,Airport Lynx,98487180, 22.40 ,T&S UK - Other Charges
BEIS,UKRI - NERC,22/05/2019,T&S UK - Vehicle Hire,NERC - BAS Air Unit,Enterprise Rent-A-Car UK Ltd,98488658," 1,082.46 ",T&S UK - Vehicle Hire
BEIS,UKRI - NERC,30/05/2019,T&S UK - Other Charges,NERC - BAS Directorate,Airport Lynx,98487180, 12.50 ,T&S UK - Other Charges
BEIS,UKRI - NERC,30/05/2019,T&S UK - Other Charges,NERC - BAS HR Central,Airport Lynx,98487180, 9.60 ,T&S UK - Other Charges
BEIS,UKRI - Innovate UK,03/05/2019,Resource grants,Resp - Smart,AIXTRON LIMITED,32294," 11,358.56 ",Resource grants
BEIS,UKRI - NERC,17/05/2019,Purchase of non capital equipment,NERC - NOC NMFSS Research Ships Operation,AJ Products (UK) Ltd,98484391, 900.00 ,Purchase of non capital equipment
BEIS,UKRI - NERC,17/05/2019,Projects CIP,NERC - BAS New Polar Research Vessel / AP,AJ Products (UK) Ltd,98456840, 448.20 ,Projects CIP
BEIS,UKRI - NERC,17/05/2019,Projects CIP,NERC - BAS New Polar Research Vessel / AP,AJ Products (UK) Ltd,98456840, 89.64 ,Projects CIP
BEIS,UKRI - NERC,17/05/2019,Projects CIP,NERC - BAS New Polar Research Vessel / AP,AJ Products (UK) Ltd,98456840, 49.80 ,Projects CIP
BEIS,UKRI - NERC,17/05/2019,Projects CIP,NERC - BAS New Polar Research Vessel / AP,AJ Products (UK) Ltd,98456840, 9.96 ,Projects CIP
BEIS,UKRI - NERC,17/05/2019,Projects CIP,NERC - BAS New Polar Research Vessel / AP,AJ Products (UK) Ltd,98483174,-29.88 ,Projects CIP
BEIS,UKRI - NERC,17/05/2019,Projects CIP,NERC - BAS New Polar Research Vessel / AP,AJ Products (UK) Ltd,98483177,-29.88 ,Projects CIP
BEIS,UKRI - Innovate UK,20/05/2019,Assessor Fees,Advanced Therapies,AJR & ASSOCIATES LTD,36408," 1,584.00 ",Assessor Fees
BEIS,UKRI - Innovate UK,20/05/2019,Assessor Fees,Advanced Therapies,AJR & ASSOCIATES LTD,35991, 432.00 ,Assessor Fees
BEIS,UKRI - Innovate UK,21/05/2019,Assessor Fees,Advanced Therapies,AJRATCLIFFE,36426, 960.00 ,Assessor Fees
BEIS,UKRI - Innovate UK,07/05/2019,Assessor Fees,Advanced Therapies,AJRATCLIFFE,35507, 480.00 ,Assessor Fees
BEIS,UKRI - Innovate UK,10/05/2019,Resource grants,Emerging Technologies,AKA MEDIA LIMITED,33328," 12,391.80 ",Resource grants
BEIS,UKRI - Innovate UK,30/05/2019,Assessor Fees,Advanced Therapies,ALACRITY PHARMA ASSOCIATES,36461, 576.00 ,Assessor Fees
BEIS,UKRI - Innovate UK,30/05/2019,Assessor Fees,Advanced Therapies,ALACRITY PHARMA ASSOCIATES,36460, 576.00 ,Assessor Fees
BEIS,UKRI - ESRC,20/05/2019,Advertising & Promotion,"Impact, Promotion & Engagement",Alamy Ltd,98484918, 646.80 ,Advertising & Promotion
BEIS,UKRI - NERC,16/05/2019,Mechanical & Electrical Maintenance,NERC - BGS Lyell Support Building,Alba Water,98482769, 39.60 ,Mechanical & Electrical Maintenance
BEIS,UKRI - EPSRC,16/05/2019,Fees (Including College Members),Grants Processing - Science,Alban Potherat,98482056, 160.00 ,Fees (Including College Members)
BEIS,UKRI - Innovate UK,18/05/2019,Assessor Fees,Medicines Manufacturing,ALBANY BUSINESS CONSULTANTS,36054, 960.00 ,Assessor Fees
BEIS,UKRI - Innovate UK,22/05/2019,Assessor Fees,Advanced Therapies,ALBANY BUSINESS CONSULTANTS,36310, 720.00 ,Assessor Fees
BEIS,UKRI - Innovate UK,17/05/2019,Resource grants,ISCF - IS,ALBATERN LTD,34289," 109,487.70 ",Resource grants
BEIS,UKRI - Innovate UK,17/05/2019,Resource grants,OLEV,Albright Product Design Limited,34232," 10,459.00 ",Resource grants
BEIS,UKRI - Innovate UK,23/05/2019,Assessor Fees,Emerging Technologies,ALCHEMY SCIENTIFIC LTD,39117, 600.00 ,Assessor Fees
BEIS,UKRI - Innovate UK,23/05/2019,Assessor Fees,Emerging Technologies,ALCHEMY SCIENTIFIC LTD,39117, 600.00 ,Assessor Fees
BEIS,UKRI - Innovate UK,03/05/2019,Resource grants,Transport,ALCON COMPONENTS LIMITED,32443," 66,001.22 ",Resource grants
BEIS,UKRI - Innovate UK,03/05/2019,Resource grants,Manufacturing,ALCON COMPONENTS LIMITED,32155," 21,401.45 ",Resource grants
BEIS,UKRI - Innovate UK,03/05/2019,Resource grants,Transport,ALCON COMPONENTS LTD,32181," 4,488.88 ",Resource grants
BEIS,UKRI - Innovate UK,29/05/2019,Assessor Fees,SBRI,ALETHO CONSULTING LTD,37331, 120.00 ,Assessor Fees
BEIS,UKRI - Innovate UK,29/05/2019,Assessor Fees,SBRI,ALETHO CONSULTING LTD,37286, 120.00 ,Assessor Fees
BEIS,UKRI - NERC,22/05/2019,Transport Operating Costs,NERC - CEH Facilities - Edinburgh,Alex F Noble & Sons,98487187, 610.36 ,Transport Operating Costs
BEIS,UKRI - NERC,14/05/2019,Transport Operating Costs,NERC - CEH Facilities - Edinburgh,Alex F Noble & Sons,98480989, 323.64 ,Transport Operating Costs
BEIS,UKRI - NERC,22/05/2019,Transport Operating Costs,NERC - CEH Facilities - Edinburgh,Alex F Noble & Sons,98487187, 65.82 ,Transport Operating Costs
BEIS,UKRI - NERC,22/05/2019,Transport Operating Costs,NERC - CEH Facilities - Edinburgh,Alex F Noble & Sons,98487187,-1.07 ,Transport Operating Costs
BEIS,UKRI - NERC,22/05/2019,Transport Operating Costs,NERC - CEH Facilities - Edinburgh,Alex F Noble & Sons,98487187,-9.90 ,Transport Operating Costs
BEIS,UKRI - UKRI,02/05/2019,Contract Staff,UKRI People and Organisation Development,Alexander Mann Solutions Ltd,98474822," 56,912.69 ",Contract Staff
BEIS,UKRI - UKRI,16/05/2019,Contract Staff,UKRI - Digital Data and Technology Project Costs,Alexander Mann Solutions Ltd,98462659," 14,397.41 ",Contract Staff
BEIS,UKRI - UKRI,02/05/2019,Contract Staff,UKRI - Digital Data and Technology Project Costs,Alexander Mann Solutions Ltd,98457135," 10,409.26 ",Contract Staff
BEIS,UKRI - UKRI,22/05/2019,Contract Staff,UKRI - Digital Data and Technology Project Costs,Alexander Mann Solutions Ltd,98488573," 9,423.76 ",Contract Staff
BEIS,UKRI - STFC,29/05/2019,Contract Staff,CD CSE External Funding,Alexander Mann Solutions Ltd,98489937," 7,533.24 ",Contract Staff
BEIS,UKRI - UKRI,31/05/2019,Contract Staff,UKRI - Digital Data and Technology Project Costs,Alexander Mann Solutions Ltd,98483261," 7,165.58 ",Contract Staff
BEIS,UKRI - UKRI,23/05/2019,Contract Staff,UKRI - Digital Data and Technology Project Costs,Alexander Mann Solutions Ltd,98473208," 7,110.85 ",Contract Staff
BEIS,UKRI - Innovate UK,01/05/2019,Agency Staff & Interims,DDAT UKRI,Alexander Mann Solutions Ltd,32891," 6,203.90 ",Agency Staff & Interims
BEIS,UKRI - STFC,15/05/2019,Contract Staff,TD Operational Overheads,Alexander Mann Solutions Ltd,98463722," 6,201.18 ",Contract Staff
BEIS,UKRI - UKRI,30/05/2019,Contract Staff,UKRI People and Organisation Development,Alexander Mann Solutions Ltd,98484299," 6,097.79 ",Contract Staff
BEIS,UKRI - AHRC,15/05/2019,Contract Staff,PSU JRS,Alexander Mann Solutions Ltd,98481309," 6,092.50 ",Contract Staff
BEIS,UKRI - STFC,20/05/2019,Contract Staff,ISIS Target,Alexander Mann Solutions Ltd,98484511," 5,994.96 ",Contract Staff
BEIS,UKRI - STFC,08/05/2019,Contract Staff,CD CSE External Funding,Alexander Mann Solutions Ltd,98462670," 5,794.80 ",Contract Staff
BEIS,UKRI - UKRI,16/05/2019,Contract Staff,UKRI - PSU IT Costs/BAU,Alexander Mann Solutions Ltd,98469260," 5,543.40 ",Contract Staff
BEIS,UKRI - UKRI,16/05/2019,Contract Staff,UKRI - PSU IT Costs/BAU,Alexander Mann Solutions Ltd,98473214," 4,927.44 ",Contract Staff
BEIS,UKRI - UKRI,24/05/2019,Contract Staff,UKRI - Transformation,Alexander Mann Solutions Ltd,98484417," 4,914.43 ",Contract Staff
BEIS,UKRI - UKRI,24/05/2019,Contract Staff,UKRI - Digital Data and Technology BAU Costs,Alexander Mann Solutions Ltd,98484305," 4,861.98 ",Contract Staff
BEIS,UKRI - UKRI,23/05/2019,Contract Staff,UKRI - Digital Data and Technology Project Costs,Alexander Mann Solutions Ltd,98489002," 4,781.74 ",Contract Staff
BEIS,UKRI - STFC,17/05/2019,Contract Staff,TD Operational Overheads,Alexander Mann Solutions Ltd,98483277," 4,530.78 ",Contract Staff
BEIS,UKRI - UKRI,16/05/2019,Contract Staff,UKRI - Digital Data and Technology Project Costs,Alexander Mann Solutions Ltd,98475343," 4,493.14 ",Contract Staff
BEIS,UKRI - Innovate UK,09/05/2019,Agency Staff & Interims,DDAT UKRI,Alexander Mann Solutions Ltd,33704," 4,431.36 ",Agency Staff & Interims
BEIS,UKRI - Innovate UK,01/05/2019,Agency Staff & Interims,Operational Delivery,Alexander Mann Solutions Ltd,32582," 4,311.47 ",Agency Staff & Interims
BEIS,UKRI - UKRI,02/05/2019,Contract Staff,UKRI - Digital Data and Technology Project Costs,Alexander Mann Solutions Ltd,98462691," 4,003.56 ",Contract Staff
BEIS,UKRI - UKRI,31/05/2019,Contract Staff,UKRI - Digital Data and Technology Project Costs,Alexander Mann Solutions Ltd,98473213," 3,980.88 ",Contract Staff
BEIS,UKRI - UKRI,13/05/2019,Contract Staff,UKRI - Digital Data and Technology BAU Costs,Alexander Mann Solutions Ltd,98477512," 3,889.58 ",Contract Staff
BEIS,UKRI - UKRI,13/05/2019,Contract Staff,UKRI - Digital Data and Technology BAU Costs,Alexander Mann Solutions Ltd,98477513," 3,889.58 ",Contract Staff
BEIS,UKRI - Innovate UK,01/05/2019,Agency Staff & Interims,DDAT UKRI,Alexander Mann Solutions Ltd,32525," 3,889.58 ",Agency Staff & Interims
BEIS,UKRI - Innovate UK,01/05/2019,Agency Staff & Interims,Lending Operations,Alexander Mann Solutions Ltd,32590," 3,780.38 ",Agency Staff & Interims
BEIS,UKRI - UKRI,16/05/2019,Contract Staff,UKRI - Project Management Office,Alexander Mann Solutions Ltd,98469288," 3,766.62 ",Contract Staff
BEIS,UKRI - STFC,02/05/2019,Projects CIP,CALTA,Alexander Mann Solutions Ltd,98473212," 3,637.44 ",Projects CIP
BEIS,UKRI - EPSRC,20/05/2019,Contract Staff,JRS,Alexander Mann Solutions Ltd,98484503," 3,552.00 ",Contract Staff
BEIS,UKRI - Innovate UK,16/05/2019,Agency Staff & Interims,DDAT UKRI,Alexander Mann Solutions Ltd,34633," 3,545.09 ",Agency Staff & Interims
BEIS,UKRI - Innovate UK,09/05/2019,CPS Development,BICC Programme,Alexander Mann Solutions Ltd,33721," 3,481.74 ",CPS Development
BEIS,UKRI - Innovate UK,01/05/2019,CPS Development,BICC Programme,Alexander Mann Solutions Ltd,34644," 3,481.74 ",CPS Development
BEIS,UKRI - UKRI,28/05/2019,Contract Staff,UKRI - Digital Data and Technology BAU Costs,Alexander Mann Solutions Ltd,98490990," 3,403.39 ",Contract Staff
BEIS,UKRI - NERC,24/05/2019,Contract Staff,Research Technical Services - Corporate IT Services,Alexander Mann Solutions Ltd,98487428," 3,213.31 ",Contract Staff
BEIS,UKRI - UKRI,31/05/2019,Contract Staff,UKRI - Digital Data and Technology Project Costs,Alexander Mann Solutions Ltd,98475380," 3,184.70 ",Contract Staff
BEIS,UKRI - UKRI,31/05/2019,Contract Staff,UKRI - Digital Data and Technology Project Costs,Alexander Mann Solutions Ltd,98488607," 3,184.70 ",Contract Staff
BEIS,UKRI - UKRI,24/05/2019,Contract Staff,UKRI - Digital Data and Technology BAU Costs,Alexander Mann Solutions Ltd,98487490," 3,160.28 ",Contract Staff
BEIS,UKRI - STFC,24/05/2019,Agency Staff,ISIS Design,Alexander Mann Solutions Ltd,98489777," 3,081.54 ",Agency Staff
BEIS,UKRI - Innovate UK,09/05/2019,Agency Staff & Interims,Operational Delivery,Alexander Mann Solutions Ltd,33702," 3,079.62 ",Agency Staff & Interims
BEIS,UKRI - Innovate UK,09/05/2019,Agency Staff & Interims,Operational Delivery,Alexander Mann Solutions Ltd,33698," 3,079.62 ",Agency Staff & Interims
BEIS,UKRI - Innovate UK,01/05/2019,Agency Staff & Interims,Operational Delivery,Alexander Mann Solutions Ltd,32585," 3,079.62 ",Agency Staff & Interims
BEIS,UKRI - STFC,02/05/2019,Contract Staff,RAL Space Overheads,Alexander Mann Solutions Ltd,98472496," 3,025.51 ",Contract Staff
BEIS,UKRI - STFC,24/05/2019,Contract Staff,RAL Space Overheads,Alexander Mann Solutions Ltd,98489798," 3,025.51 ",Contract Staff
BEIS,UKRI - UKRI,28/05/2019,Contract Staff,UKRI - Project Management Office,Alexander Mann Solutions Ltd,98490986," 3,013.30 ",Contract Staff
BEIS,UKRI - UKRI,02/05/2019,Recruitment Costs,UKRI - PSU IT Costs/BAU,Alexander Mann Solutions Ltd,98474815," 2,985.66 ",Recruitment Costs
BEIS,UKRI - UKRI,07/05/2019,Recruitment Costs,UKRI - PSU IT Costs/BAU,Alexander Mann Solutions Ltd,98474514," 2,985.66 ",Recruitment Costs
BEIS,UKRI - UKRI,07/05/2019,Recruitment Costs,UKRI - PSU IT Costs/BAU,Alexander Mann Solutions Ltd,98474517," 2,985.66 ",Recruitment Costs
BEIS,UKRI - UKRI,31/05/2019,Agency Staff,UKRI - Project Management Office,Alexander Mann Solutions Ltd,98489742," 2,952.76 ",Agency Staff
BEIS,UKRI - STFC,24/05/2019,Agency Staff,ISIS Design,Alexander Mann Solutions Ltd,98489774," 2,943.05 ",Agency Staff
BEIS,UKRI - STFC,08/05/2019,Contract Staff,CD CSE External Funding,Alexander Mann Solutions Ltd,98475395," 2,897.40 ",Contract Staff
BEIS,UKRI - STFC,15/05/2019,Contract Staff,TD Operational Overheads,Alexander Mann Solutions Ltd,98463722," 2,859.00 ",Contract Staff
BEIS,UKRI - AHRC,17/05/2019,Contract Staff,PSU Project Office,Alexander Mann Solutions Ltd,98484295," 2,795.58 ",Contract Staff
BEIS,UKRI - AHRC,28/05/2019,Contract Staff,PSU Project Office,Alexander Mann Solutions Ltd,98490988," 2,795.58 ",Contract Staff
BEIS,UKRI - Innovate UK,01/05/2019,CPS Development,BICC Programme,Alexander Mann Solutions Ltd,32889," 2,785.39 ",CPS Development
BEIS,UKRI - Innovate UK,01/05/2019,CPS Development,BICC Programme,Alexander Mann Solutions Ltd,32531," 2,785.39 ",CPS Development
BEIS,UKRI - UKRI,31/05/2019,Contract Staff,UKRI - PSU IT Costs/BAU,Alexander Mann Solutions Ltd,98483256," 2,771.70 ",Contract Staff
BEIS,UKRI - UKRI,30/05/2019,Contract Staff,UKRI People and Organisation Development,Alexander Mann Solutions Ltd,98484302," 2,710.13 ",Contract Staff
BEIS,UKRI - AHRC,22/05/2019,Contract Staff,PSU JRS,Alexander Mann Solutions Ltd,98488641," 2,707.78 ",Contract Staff
BEIS,UKRI - AHRC,23/05/2019,Contract Staff,PSU JRS,Alexander Mann Solutions Ltd,98483265," 2,707.78 ",Contract Staff
BEIS,UKRI - STFC,15/05/2019,Agency Staff,ISIS Design,Alexander Mann Solutions Ltd,98481389," 2,656.64 ",Agency Staff
BEIS,UKRI - NERC,09/05/2019,Contract Staff,Research Technical Services - Corporate IT Services,Alexander Mann Solutions Ltd,98474841," 2,646.25 ",Contract Staff
BEIS,UKRI - STFC,08/05/2019,Non-Capital Building Construction,ASTEC High Brightness Experiments,Alexander Mann Solutions Ltd,98473207," 2,617.83 ",Non-Capital Building Construction
BEIS,UKRI - STFC,15/05/2019,Projects CIP,ESS,Alexander Mann Solutions Ltd,98481984," 2,532.40 ",Projects CIP
BEIS,UKRI - Innovate UK,09/05/2019,Agency Staff & Interims,Operational Delivery,Alexander Mann Solutions Ltd,33700," 2,532.18 ",Agency Staff & Interims
BEIS,UKRI - STFC,08/05/2019,Contract Staff,RAL Space Overheads,Alexander Mann Solutions Ltd,98474508," 2,521.26 ",Contract Staff
BEIS,UKRI - STFC,24/05/2019,Contract Staff,RAL Space Overheads,Alexander Mann Solutions Ltd,98484524," 2,521.26 ",Contract Staff
BEIS,UKRI - STFC,29/05/2019,Contract Staff,RAL Space Overheads,Alexander Mann Solutions Ltd,98491791," 2,521.26 ",Contract Staff
BEIS,UKRI - UKRI,16/05/2019,Contract Staff,UKRI - PSU IT Costs/BAU,Alexander Mann Solutions Ltd,98457790," 2,494.54 ",Contract Staff
BEIS,UKRI - UKRI,16/05/2019,Contract Staff,UKRI - PSU IT Costs/BAU,Alexander Mann Solutions Ltd,98457788," 2,463.72 ",Contract Staff
BEIS,UKRI - UKRI,16/05/2019,Contract Staff,UKRI - PSU IT Costs/BAU,Alexander Mann Solutions Ltd,98462656," 2,463.72 ",Contract Staff
BEIS,UKRI - UKRI,31/05/2019,Contract Staff,UKRI - PSU IT Costs/BAU,Alexander Mann Solutions Ltd,98473211," 2,463.72 ",Contract Staff
BEIS,UKRI - UKRI,31/05/2019,Contract Staff,UKRI - PSU IT Costs/BAU,Alexander Mann Solutions Ltd,98483259," 2,463.72 ",Contract Staff
BEIS,UKRI - Innovate UK,16/05/2019,Agency Staff & Interims,Operational Delivery,Alexander Mann Solutions Ltd,34628," 2,463.70 ",Agency Staff & Interims
BEIS,UKRI - Innovate UK,16/05/2019,Agency Staff & Interims,Operational Delivery,Alexander Mann Solutions Ltd,34627," 2,463.70 ",Agency Staff & Interims
BEIS,UKRI - Innovate UK,01/05/2019,Agency Staff & Interims,Operational Delivery,Alexander Mann Solutions Ltd,32860," 2,463.70 ",Agency Staff & Interims
BEIS,UKRI - Innovate UK,01/05/2019,Agency Staff & Interims,Operational Delivery,Alexander Mann Solutions Ltd,32858," 2,463.70 ",Agency Staff & Interims
BEIS,UKRI - Innovate UK,01/05/2019,Agency Staff & Interims,Operational Delivery,Alexander Mann Solutions Ltd,32583," 2,463.70 ",Agency Staff & Interims
BEIS,UKRI - UKRI,24/05/2019,Contract Staff,UKRI - Transformation,Alexander Mann Solutions Ltd,98473234," 2,457.22 ",Contract Staff
BEIS,UKRI - UKRI,24/05/2019,Contract Staff,UKRI - Transformation,Alexander Mann Solutions Ltd,98473680," 2,457.22 ",Contract Staff
BEIS,UKRI - STFC,29/05/2019,Contract Staff,CLF Support Group,Alexander Mann Solutions Ltd,98483291," 2,444.26 ",Contract Staff
BEIS,UKRI - UKRI,02/05/2019,Recruitment Costs,UKRI - PSU IT Costs/BAU,Alexander Mann Solutions Ltd,98474819," 2,388.53 ",Recruitment Costs
BEIS,UKRI - Innovate UK,09/05/2019,Agency Staff & Interims,Lending Operations,Alexander Mann Solutions Ltd,33706," 2,362.74 ",Agency Staff & Interims
BEIS,UKRI - Innovate UK,01/05/2019,Agency Staff & Interims,Lending Operations,Alexander Mann Solutions Ltd,32593," 2,362.74 ",Agency Staff & Interims
BEIS,UKRI - Innovate UK,01/05/2019,Agency Staff & Interims,Lending Operations,Alexander Mann Solutions Ltd,32591," 2,362.74 ",Agency Staff & Interims
BEIS,UKRI - STFC,01/05/2019,Legal & Professional Services,RAL Space Technology Exploitation,Alexander Mann Solutions Ltd,98472424," 2,309.75 ",Legal & Professional Services
BEIS,UKRI - STFC,20/05/2019,Legal & Professional Services,RAL Space Technology Exploitation,Alexander Mann Solutions Ltd,98484518," 2,309.75 ",Legal & Professional Services
BEIS,UKRI - AHRC,02/05/2019,Contract Staff,PSU Project Office,Alexander Mann Solutions Ltd,98474836," 2,236.46 ",Contract Staff
BEIS,UKRI - AHRC,17/05/2019,Contract Staff,PSU Project Office,Alexander Mann Solutions Ltd,98484294," 2,236.46 ",Contract Staff
BEIS,UKRI - AHRC,22/05/2019,Contract Staff,PSU Project Office,Alexander Mann Solutions Ltd,98487426," 2,236.46 ",Contract Staff
BEIS,UKRI - UKRI,16/05/2019,Contract Staff,UKRI - PSU IT Costs/BAU,Alexander Mann Solutions Ltd,98481294," 2,217.36 ",Contract Staff
BEIS,UKRI - UKRI,31/05/2019,Contract Staff,UKRI - PSU IT Costs/BAU,Alexander Mann Solutions Ltd,98488555," 2,217.36 ",Contract Staff
BEIS,UKRI - Innovate UK,16/05/2019,Agency Staff & Interims,Operational Delivery,Alexander Mann Solutions Ltd,34626," 2,025.74 ",Agency Staff & Interims
BEIS,UKRI - Innovate UK,01/05/2019,Agency Staff & Interims,Operational Delivery,Alexander Mann Solutions Ltd,32855," 2,025.74 ",Agency Staff & Interims
BEIS,UKRI - STFC,02/05/2019,Contract Staff,CLF Support Group,Alexander Mann Solutions Ltd,98473242," 2,019.17 ",Contract Staff
BEIS,UKRI - STFC,15/05/2019,Contract Staff,CLF Support Group,Alexander Mann Solutions Ltd,98481950," 2,019.17 ",Contract Staff
BEIS,UKRI - STFC,23/05/2019,Contract Staff,CLF Support Group,Alexander Mann Solutions Ltd,98489069," 1,992.60 ",Contract Staff
BEIS,UKRI - STFC,01/05/2019,Contract Staff,RAL Space Technology Exploitation,Alexander Mann Solutions Ltd,98472474," 1,990.45 ",Contract Staff
BEIS,UKRI - STFC,20/05/2019,Contract Staff,RAL Space Technology Exploitation,Alexander Mann Solutions Ltd,98484482," 1,990.45 ",Contract Staff
BEIS,UKRI - UKRI,16/05/2019,Contract Staff,UKRI - PSU IT Costs/BAU,Alexander Mann Solutions Ltd,98481295," 1,970.98 ",Contract Staff
BEIS,UKRI - UKRI,31/05/2019,Contract Staff,UKRI - PSU IT Costs/BAU,Alexander Mann Solutions Ltd,98475382," 1,970.98 ",Contract Staff
BEIS,UKRI - UKRI,31/05/2019,Contract Staff,UKRI - PSU IT Costs/BAU,Alexander Mann Solutions Ltd,98483263," 1,970.98 ",Contract Staff
BEIS,UKRI - UKRI,31/05/2019,Contract Staff,UKRI - PSU IT Costs/BAU,Alexander Mann Solutions Ltd,98488596," 1,970.98 ",Contract Staff
BEIS,UKRI - UKRI,31/05/2019,Contract Staff,UKRI - PSU IT Costs/BAU,Alexander Mann Solutions Ltd,98488664," 1,970.98 ",Contract Staff
BEIS,UKRI - STFC,02/05/2019,Recruitment Costs,Campus Centres,Alexander Mann Solutions Ltd,98472460," 1,946.22 ",Recruitment Costs
BEIS,UKRI - STFC,07/05/2019,Recruitment Costs,Campus Centres,Alexander Mann Solutions Ltd,98475427," 1,946.22 ",Recruitment Costs
BEIS,UKRI - STFC,21/05/2019,Recruitment Costs,Campus Centres,Alexander Mann Solutions Ltd,98481988," 1,946.22 ",Recruitment Costs
BEIS,UKRI - STFC,21/05/2019,Recruitment Costs,Campus Centres,Alexander Mann Solutions Ltd,98484414," 1,946.22 ",Recruitment Costs
BEIS,UKRI - STFC,28/05/2019,Contract Staff,RAL Space Technology Exploitation,Alexander Mann Solutions Ltd,98491834," 1,935.15 ",Contract Staff
BEIS,UKRI - STFC,01/05/2019,Contract Staff,RAL Space Technology Exploitation,Alexander Mann Solutions Ltd,98472412," 1,921.85 ",Contract Staff
BEIS,UKRI - STFC,17/05/2019,Contract Staff,RAL Space Technology Exploitation,Alexander Mann Solutions Ltd,98483271," 1,921.85 ",Contract Staff
BEIS,UKRI - Innovate UK,23/05/2019,Agency Staff & Interims,Lending Operations,Alexander Mann Solutions Ltd,35343," 1,890.19 ",Agency Staff & Interims
BEIS,UKRI - Innovate UK,16/05/2019,Agency Staff & Interims,Lending Operations,Alexander Mann Solutions Ltd,34629," 1,890.19 ",Agency Staff & Interims
BEIS,UKRI - Innovate UK,01/05/2019,Agency Staff & Interims,Lending Operations,Alexander Mann Solutions Ltd,32963," 1,890.19 ",Agency Staff & Interims
BEIS,UKRI - NERC,28/05/2019,Contract Staff,Research Technical Services - Corporate IT Services,Alexander Mann Solutions Ltd,98490987," 1,890.18 ",Contract Staff
BEIS,UKRI - STFC,02/05/2019,Contract Staff,CALTA,Alexander Mann Solutions Ltd,98473217," 1,880.10 ",Contract Staff
BEIS,UKRI - STFC,20/05/2019,Contract Staff,CALTA,Alexander Mann Solutions Ltd,98484413," 1,880.10 ",Contract Staff
BEIS,UKRI - STFC,15/05/2019,Legal & Professional Services,RAL Space Technology Exploitation,Alexander Mann Solutions Ltd,98481997," 1,847.80 ",Legal & Professional Services
BEIS,UKRI - STFC,23/05/2019,Legal & Professional Services,RAL Space Technology Exploitation,Alexander Mann Solutions Ltd,98489922," 1,847.80 ",Legal & Professional Services
BEIS,UKRI - STFC,24/05/2019,Projects CIP,CALTA,Alexander Mann Solutions Ltd,98484527," 1,818.72 ",Projects CIP
BEIS,UKRI - EPSRC,28/05/2019,Contract Staff,JRS,Alexander Mann Solutions Ltd,98490992," 1,776.00 ",Contract Staff
BEIS,UKRI - EPSRC,29/05/2019,Contract Staff,JRS,Alexander Mann Solutions Ltd,98488679," 1,776.00 ",Contract Staff
BEIS,UKRI - Innovate UK,01/05/2019,Agency Staff & Interims,DDAT UKRI,Alexander Mann Solutions Ltd,32529," 1,772.54 ",Agency Staff & Interims
BEIS,UKRI - Innovate UK,01/05/2019,Agency Staff & Interims,Operational Delivery,Alexander Mann Solutions Ltd,32584," 1,772.53 ",Agency Staff & Interims
BEIS,UKRI - STFC,23/05/2019,Projects CIP,CALTA,Alexander Mann Solutions Ltd,98489781," 1,750.52 ",Projects CIP
BEIS,UKRI - STFC,01/05/2019,Agency Staff,CD e-Science,Alexander Mann Solutions Ltd,98473223," 1,747.05 ",Agency Staff
BEIS,UKRI - STFC,20/05/2019,Agency Staff,CD e-Science,Alexander Mann Solutions Ltd,98484485," 1,747.05 ",Agency Staff
BEIS,UKRI - STFC,28/05/2019,Agency Staff,CD e-Science,Alexander Mann Solutions Ltd,98491829," 1,747.05 ",Agency Staff
